Invoice_Payment_Date,Org_Level_2_Desc,Supplier_Name,Nominal_Desc,Invoice_Line_Net_Amount,Internal_Category_Code
02/10/2015,"REGENERATION, PLANNING & NEIGHBOURHOODS",Lambeth Lighting Services,"PURCHASE - EQUIPMENT, FURNITURE AND MATERIALS","223,051.74",Highway Equipment & Materials.Street Lighting.NA
02/10/2015,POLICY & COMMUNICATIONS,Greenbox Events Ltd,REFUSE COLLECTION,"21,226.00",Environmental Services.Waste Management.Waste Collection for Recycling
02/10/2015,ADULT SOCIAL CARE,Apetito Ltd,MEALS ON WHEELS - PRIVATE CONTRACTORS PAYMENT,"5,382.73",Catering.Social Care.NA
02/10/2015,ADULT SOCIAL CARE,Apetito Ltd,MEALS ON WHEELS - PRIVATE CONTRACTORS PAYMENT,"1,429.27",Catering.Social Care.NA
02/10/2015,ADULT SOCIAL CARE,Apetito Ltd,CATERING AND VENDING SUPPLIES,"1,161.34",Catering.Food & Beverages.NA
02/10/2015,HUMAN RESOURCES AND ORGANISATIONAL DEVELOPMENT (HRA),Ocean Media Group Ltd,"BOOKS, PUBLICATIONS AND RESOURCES",895.00,Education.Library Books.NA
02/10/2015,ADULT SOCIAL CARE,Unique Personnel (Uk) Ltd,DOMICILIARY CARE - THIRD PARTY,837.00,Social Community Care Supplies & Service.Disabled Children.NA
02/10/2015,ADULT SOCIAL CARE,Unique Personnel (Uk) Ltd,DOMICILIARY CARE - THIRD PARTY,819.75,Social Community Care Supplies & Service.Disabled Children.NA
02/10/2015,HUMAN RESOURCES AND ORGANISATIONAL DEVELOPMENT (HRA),Highlander Ltd,STAFF DEVELOPMENT AND TRAINING,792.00,Human Resources.Training & Conferences.Training
02/10/2015,EDUCATION & LEARNING,Fleet Tutors,AGENCY STAFF,784.00,Human Resources.Temporary & Agency Staff.Supply Teachers
02/10/2015,ADULT SOCIAL CARE,Unique Personnel (Uk) Ltd,DOMICILIARY CARE - THIRD PARTY,783.00,Social Community Care Supplies & Service.Disabled Children.NA
02/10/2015,CHILDREN'S SERVICES,Prime Time Recruitment Ltd,PRIVATE CONTRACTORS PAYMENT - OTHER,717.75,Social Community Care Supplies & Service.Children.NA
02/10/2015,ADULT SOCIAL CARE,Exodus Healthcare Services,DOMICILIARY CARE - THIRD PARTY,712.50,Social Community Care Supplies & Service.Adult.Residential Care
02/10/2015,ADULT SOCIAL CARE,Unique Personnel (Uk) Ltd,DOMICILIARY CARE - THIRD PARTY,644.00,Social Community Care Supplies & Service.Disabled Children.NA
02/10/2015,ADULT SOCIAL CARE,Unique Personnel (Uk) Ltd,DOMICILIARY CARE - THIRD PARTY,639.75,Social Community Care Supplies & Service.Disabled Children.NA
02/10/2015,ADULT SOCIAL CARE,Unique Personnel (Uk) Ltd,DOMICILIARY CARE - THIRD PARTY,629.35,Social Community Care Supplies & Service.Disabled Children.NA
02/10/2015,"STRATEGY & COMMISSIONING - CHILDREN, DISABILITIES & PUBLIC HEALTH",4Children Trading Ltd,PRIVATE CONTRACTORS PAYMENT - OTHER,570.00,Social Community Care Supplies & Service.Children.NA
02/10/2015,ADULT SOCIAL CARE,Unique Personnel (Uk) Ltd,DOMICILIARY CARE - THIRD PARTY,546.38,Social Community Care Supplies & Service.Disabled Children.NA
02/10/2015,ADULT SOCIAL CARE,Apetito Ltd,ADULT PAID MEALS INCOME,"(1,122.00)",Catering.Social Care.NA
05/10/2015,CAPITAL CC,Lawtech Ltd,"MAINTENANCE - EQUIPMENT, FURNITURE AND MATERIALS","522,202.01","Works - Construction, Repair & Maint.Buildings.NA"
05/10/2015,CAPITAL CC,Lawtech Ltd,"MAINTENANCE - EQUIPMENT, FURNITURE AND MATERIALS","424,295.81","Works - Construction, Repair & Maint.Buildings.NA"
05/10/2015,CAPITAL CC,Lawtech Ltd,"MAINTENANCE - EQUIPMENT, FURNITURE AND MATERIALS","76,304.19","Works - Construction, Repair & Maint.Buildings.NA"
05/10/2015,CAPITAL CC,Lawtech Ltd,"MAINTENANCE - EQUIPMENT, FURNITURE AND MATERIALS","58,002.18","Works - Construction, Repair & Maint.Buildings.NA"
05/10/2015,CHILDREN'S SERVICES,Ethelbert Specialist Homes Ltd,RESIDENTIAL PLACEMENTS - PRIVATE CONTRACTORS PAYMENT,"25,433.82",Social Community Care Supplies & Service.Children.Residential Care
05/10/2015,"REGENERATION, PLANNING & NEIGHBOURHOODS",Social Life,CONSULTANCY FEES,"20,000.00",Consultancy.Business.NA
05/10/2015,CHILDREN'S SERVICES,Richard House Trust,RESIDENTIAL PLACEMENTS - PRIVATE CONTRACTORS PAYMENT,"9,700.00",Social Community Care Supplies & Service.Adult.Residential Homes for Older People
05/10/2015,BUSINESS & CUSTOMER SERVICES,Medlene Isalene Callender,LEGAL FEES,"4,950.00",Legal Services.General Support.NA
05/10/2015,CHILDREN'S SERVICES,Netpex Ltd_d,RESIDENTIAL PLACEMENTS - PRIVATE CONTRACTORS PAYMENT,"4,426.24",Social Community Care Supplies & Service.Children.Fostering
05/10/2015,"REGENERATION, PLANNING & NEIGHBOURHOODS",Brand Amplifier,CONSULTANCY FEES,"3,185.00",Consultancy.Management.NA
05/10/2015,BUSINESS TRANSFORMATION,Unique Office Solutions Ltd,"PURCHASE - EQUIPMENT, FURNITURE AND MATERIALS","2,425.00",Furniture & Soft Furnishings.Office Furniture.NA
05/10/2015,"REGENERATION, PLANNING & NEIGHBOURHOODS",Affinity Workforce Ltd,STAFF RECRUITMENT COSTS,"2,375.00",Human Resources.Recruitment & Assessment.NA
05/10/2015,"REGENERATION, PLANNING & NEIGHBOURHOODS",Affinity Workforce Ltd,STAFF RECRUITMENT COSTS,"2,375.00",Human Resources.Recruitment & Assessment.NA
05/10/2015,ADULT SOCIAL CARE,L K Homecare Provider Ltd,DOMICILIARY CARE - THIRD PARTY,"2,119.60",Social Community Care Supplies & Service.Adult.Residential Care
05/10/2015,ADULT SOCIAL CARE,National Autistic Society,DAYCARE - PRIVATE CONTRACTORS PAYMENT,"2,017.08",Social Community Care Supplies & Service.Adult.Day Care
05/10/2015,"REGENERATION, PLANNING & NEIGHBOURHOODS",Affinity Workforce Ltd,STAFF RECRUITMENT COSTS,"1,900.00",Human Resources.Recruitment & Assessment.NA
05/10/2015,FINANCE,British Gas,GAS,"1,534.41",Utilities.Gas.NA
05/10/2015,ADULT SOCIAL CARE,L K Homecare Provider Ltd,DOMICILIARY CARE - THIRD PARTY,"1,398.60",Social Community Care Supplies & Service.Adult.Residential Care
05/10/2015,HOUSING MANAGEMENT SERVICES,Tunde Colins Akinyooye,PUBLIC TRANSPORT FOR STAFF,"1,299.54",Public Transport.Passenger Transport.NA
05/10/2015,NO RECOURSE TO PUBLIC FUNDS,South East London Family Mediation Bureau,PRIVATE CONTRACTORS PAYMENT - OTHER,"1,284.10",Social Community Care Supplies & Service.Adult.Advice & Counselling Services
05/10/2015,FINANCE,British Gas,GAS,"1,190.37",Utilities.Gas.NA
05/10/2015,ADULT SOCIAL CARE,L K Homecare Provider Ltd,DOMICILIARY CARE - THIRD PARTY,"1,159.88",Social Community Care Supplies & Service.Adult.Residential Care
05/10/2015,FINANCE,Miranda Feasey,CONFERENCE EXPENSES,"1,132.20",Human Resources.Training & Conferences.Conferences
05/10/2015,ADULT SOCIAL CARE,L K Homecare Provider Ltd,DOMICILIARY CARE - THIRD PARTY,"1,075.22",Social Community Care Supplies & Service.Adult.Residential Care
05/10/2015,CHILDREN'S SERVICES,Anne Mulindwa,SUBSISTENCE,"1,028.73",Human Resources.Travel & Subsistence.NA
05/10/2015,"REGENERATION, PLANNING & NEIGHBOURHOODS",Neil Shaw Fenton,PAYMENT TO HEALTH AUTHORITIES,"1,008.00",Healthcare.Services.NA
05/10/2015,CHILDREN'S SERVICES,Lorette Muirhead,"PURCHASE - EQUIPMENT, FURNITURE AND MATERIALS",942.50,Furniture & Soft Furnishings.Domestic Furniture.NA
05/10/2015,EDUCATION & LEARNING,Specialised Orthotic Services Ltd,SPECIALIST EQUIPMENT FOR SERVICE PROVISION,934.35,Social Community Care Supplies & Service.Supplies.Equipment
05/10/2015,"REGENERATION, PLANNING & NEIGHBOURHOODS (HRA)",Malcolm John De Vela,SOLID FUEL,915.00,Utilities.Gas.NA
05/10/2015,ADULT SOCIAL CARE,L K Homecare Provider Ltd,DOMICILIARY CARE - THIRD PARTY,875.60,Social Community Care Supplies & Service.Adult.Residential Care
05/10/2015,FINANCE,Yvette Orriggio,PROFESSIONAL SERVICES - GENERAL,830.00,Financial Services.Accountancy.NA
05/10/2015,CHILDREN'S SERVICES,Zara Lucy Thwaites,PUBLIC TRANSPORT FOR STAFF,779.22,Public Transport.Passenger Transport.NA
05/10/2015,HOUSING MANAGEMENT SERVICES,Mark Howarth,CATERING AND VENDING SUPPLIES,734.01,Catering.Food & Beverages.NA
05/10/2015,ADULT SOCIAL CARE,L K Homecare Provider Ltd,DOMICILIARY CARE - THIRD PARTY,718.20,Social Community Care Supplies & Service.Adult.Residential Care
05/10/2015,CORPORATE AFFAIRS,Joanna Hayley Couzens,STAFF OTHER EXPENSES,710.00,Stationery.Sundries.NA
05/10/2015,HOUSING NEEDS,Screwfix Direct Ltd,"PURCHASE - EQUIPMENT, FURNITURE AND MATERIALS",700.56,Building Construction Materials.Hand Tools.NA
05/10/2015,ADULT SOCIAL CARE,L K Homecare Provider Ltd,DOMICILIARY CARE - THIRD PARTY,695.76,Social Community Care Supplies & Service.Adult.Residential Care
05/10/2015,"STRATEGY & COMMISSIONING - CHILDREN, DISABILITIES & PUBLIC HEALTH",Harfleur Pharmacy,PAYMENT TO HEALTH AUTHORITIES,662.04,Healthcare.Public Health.NA
05/10/2015,EDUCATION & LEARNING,Ying Tong Chan,SUBSISTENCE,635.60,Human Resources.Travel & Subsistence.NA
05/10/2015,FINANCE,Yvette Orriggio,PROFESSIONAL SERVICES - GENERAL,633.34,Education.Adult & Further Education Services.NA
05/10/2015,FINANCE,British Gas,GAS,630.56,Utilities.Gas.NA
05/10/2015,ADULT SOCIAL CARE,L K Homecare Provider Ltd,DOMICILIARY CARE - THIRD PARTY,627.84,Social Community Care Supplies & Service.Adult.Residential Care
05/10/2015,ADULT SOCIAL CARE,The Rathbone Centre,DOMICILIARY CARE - THIRD PARTY,611.10,Social Community Care Supplies & Service.Adult.Domiciliary Care
05/10/2015,ADULT SOCIAL CARE,Dignity Domiciliary Care Ltd,DOMICILIARY CARE - THIRD PARTY,603.00,Social Community Care Supplies & Service.Adult.Domiciliary Care
05/10/2015,"REGENERATION, PLANNING & NEIGHBOURHOODS (HRA)",Malcolm John De Vela,SOLID FUEL,572.82,Utilities.Gas.NA
05/10/2015,ADULT SOCIAL CARE,L K Homecare Provider Ltd,DOMICILIARY CARE - THIRD PARTY,533.42,Social Community Care Supplies & Service.Adult.Residential Care
05/10/2015,"REGENERATION, PLANNING & NEIGHBOURHOODS",Suzanne Harrison,PAYMENT TO HEALTH AUTHORITIES,515.00,Healthcare.Services.NA
06/10/2015,ADULT SOCIAL CARE,Allied Healthcare (UK) Ltd,DOMICILIARY CARE - THIRD PARTY,"10,490.58",Social Community Care Supplies & Service.Adult.Domiciliary Care
06/10/2015,POLICY & COMMUNICATIONS,South Bank Employers Group,CONSULTANCY FEES,"9,000.00",Consultancy.Strategic Planning.NA
06/10/2015,ADULT SOCIAL CARE,Kairos Community Trust,RESIDENTIAL PLACEMENTS - PRIVATE CONTRACTORS PAYMENT,"6,966.84",Social Community Care Supplies & Service.Adult.Alcohol & Drug Rehabilitation
06/10/2015,HOUSING MANAGEMENT SERVICES,Morrison Facilities Services Ltd_d,RESPONSIVE REPAIRS - MECHANICAL AND ELECTRICAL,"6,580.00","Works - Construction, Repair & Maint.Buildings.Repair & Maintenance"
06/10/2015,HOUSING MANAGEMENT SERVICES,Morrison Facilities Services Ltd_d,RESPONSIVE REPAIRS - BUILDING,"5,342.00","Works - Construction, Repair & Maint.Buildings.Repair & Maintenance"
06/10/2015,HOUSING MANAGEMENT SERVICES,Morrison Facilities Services Ltd_d,RESPONSIVE REPAIRS - BUILDING,"3,230.02","Works - Construction, Repair & Maint.Buildings.Repair & Maintenance"
06/10/2015,HOUSING MANAGEMENT SERVICES,Morrison Facilities Services Ltd_d,RESPONSIVE REPAIRS - BUILDING,"2,968.00","Works - Construction, Repair & Maint.Buildings.Repair & Maintenance"
06/10/2015,HOUSING MANAGEMENT SERVICES,Morrison Facilities Services Ltd_d,RESPONSIVE REPAIRS - BUILDING,"2,955.00","Works - Construction, Repair & Maint.Buildings.Repair & Maintenance"
06/10/2015,"REGENERATION, PLANNING & NEIGHBOURHOODS",Tank Consulting Ltd,CONSULTANCY FEES,"2,850.00",Consultancy.Business.NA
06/10/2015,HOUSING MANAGEMENT SERVICES,Morrison Facilities Services Ltd_d,RESPONSIVE REPAIRS - BUILDING,"2,668.86","Works - Construction, Repair & Maint.Buildings.Repair & Maintenance"
06/10/2015,HOUSING MANAGEMENT SERVICES,Morrison Facilities Services Ltd_d,RESPONSIVE REPAIRS - BUILDING,"2,643.00","Works - Construction, Repair & Maint.Buildings.Repair & Maintenance"
06/10/2015,HOUSING MANAGEMENT SERVICES,Morrison Facilities Services Ltd_d,RESPONSIVE REPAIRS - BUILDING,"2,532.84","Works - Construction, Repair & Maint.Buildings.Repair & Maintenance"
06/10/2015,ADULT SOCIAL CARE,Snowball Care,DOMICILIARY CARE - THIRD PARTY,"2,493.00",Social Community Care Supplies & Service.Adult.Domiciliary Care
06/10/2015,ADULT SOCIAL CARE,Kenward Trust,RESIDENTIAL PLACEMENTS - PRIVATE CONTRACTORS PAYMENT,"2,360.00",Social Community Care Supplies & Service.Adult.Alcohol & Drug Rehabilitation
06/10/2015,ADULT SOCIAL CARE,Kenward Trust,RESIDENTIAL PLACEMENTS - PRIVATE CONTRACTORS PAYMENT,"2,360.00",Social Community Care Supplies & Service.Adult.Alcohol & Drug Rehabilitation
06/10/2015,HOUSING MANAGEMENT SERVICES,Morrison Facilities Services Ltd_d,RESPONSIVE REPAIRS - MECHANICAL AND ELECTRICAL,"2,313.55","Works - Construction, Repair & Maint.Buildings.Repair & Maintenance"
06/10/2015,HOUSING MANAGEMENT SERVICES,Morrison Facilities Services Ltd_d,RESPONSIVE REPAIRS - BUILDING,"2,123.00","Works - Construction, Repair & Maint.Buildings.Repair & Maintenance"
06/10/2015,ADULT SOCIAL CARE,Snowball Care,DOMICILIARY CARE - THIRD PARTY,"2,120.00",Social Community Care Supplies & Service.Adult.Domiciliary Care
06/10/2015,HOUSING MANAGEMENT SERVICES,Morrison Facilities Services Ltd_d,RESPONSIVE REPAIRS - MECHANICAL AND ELECTRICAL,"2,081.05","Works - Construction, Repair & Maint.Buildings.Repair & Maintenance"
06/10/2015,"STRATEGY & COMMISSIONING - CHILDREN, DISABILITIES & PUBLIC HEALTH",Cam Pharmacy,HIRE OF ROOMS AND HALLS INCOME - NON VATABLE,"2,067.77",Facilities & Management Services.Room Hire.NA
06/10/2015,HOUSING MANAGEMENT SERVICES,Morrison Facilities Services Ltd_d,RESPONSIVE REPAIRS - MECHANICAL AND ELECTRICAL,"2,000.00","Works - Construction, Repair & Maint.Buildings.Repair & Maintenance"
06/10/2015,HOUSING MANAGEMENT SERVICES,Morrison Facilities Services Ltd_d,RESPONSIVE REPAIRS - BUILDING,"1,988.04","Works - Construction, Repair & Maint.Buildings.Repair & Maintenance"
06/10/2015,ADULT SOCIAL CARE,Capital Homecare (UK) Ltd,DOMICILIARY CARE - THIRD PARTY,"1,984.40",Social Community Care Supplies & Service.Adult.Domiciliary Care
06/10/2015,ADULT SOCIAL CARE,Capital Homecare (UK) Ltd,DOMICILIARY CARE - THIRD PARTY,"1,979.60",Social Community Care Supplies & Service.Adult.Domiciliary Care
06/10/2015,ADULT SOCIAL CARE,Capital Homecare (UK) Ltd,DOMICILIARY CARE - THIRD PARTY,"1,979.60",Social Community Care Supplies & Service.Adult.Domiciliary Care
06/10/2015,ADULT SOCIAL CARE,Capital Homecare (UK) Ltd,DOMICILIARY CARE - THIRD PARTY,"1,979.60",Social Community Care Supplies & Service.Adult.Domiciliary Care
06/10/2015,HOUSING MANAGEMENT SERVICES,Morrison Facilities Services Ltd_d,RESPONSIVE REPAIRS - BUILDING,"1,941.84","Works - Construction, Repair & Maint.Buildings.Repair & Maintenance"
06/10/2015,ADULT SOCIAL CARE,Capital Homecare (UK) Ltd,DOMICILIARY CARE - THIRD PARTY,"1,925.00",Social Community Care Supplies & Service.Adult.Domiciliary Care
06/10/2015,ADULT SOCIAL CARE,Capital Homecare (UK) Ltd,DOMICILIARY CARE - THIRD PARTY,"1,925.00",Social Community Care Supplies & Service.Adult.Domiciliary Care
06/10/2015,ADULT SOCIAL CARE,Capital Homecare (UK) Ltd,DOMICILIARY CARE - THIRD PARTY,"1,925.00",Social Community Care Supplies & Service.Adult.Domiciliary Care
06/10/2015,ADULT SOCIAL CARE,Capital Homecare (UK) Ltd,DOMICILIARY CARE - THIRD PARTY,"1,925.00",Social Community Care Supplies & Service.Adult.Domiciliary Care
06/10/2015,HOUSING MANAGEMENT SERVICES,Morrison Facilities Services Ltd_d,RESPONSIVE REPAIRS - MECHANICAL AND ELECTRICAL,"1,811.25","Works - Construction, Repair & Maint.Buildings.Repair & Maintenance"
06/10/2015,HOUSING MANAGEMENT SERVICES,Morrison Facilities Services Ltd_d,RESPONSIVE REPAIRS - BUILDING,"1,790.64","Works - Construction, Repair & Maint.Buildings.Repair & Maintenance"
06/10/2015,HOUSING MANAGEMENT SERVICES,Morrison Facilities Services Ltd_d,RESPONSIVE REPAIRS - BUILDING,"1,752.50","Works - Construction, Repair & Maint.Buildings.Repair & Maintenance"
06/10/2015,POLICY & COMMUNICATIONS,Paul Curran Executive Coaching Ltd,STAFF DEVELOPMENT AND TRAINING,"1,687.50",Human Resources.Training & Conferences.Training
06/10/2015,HOUSING MANAGEMENT SERVICES,Morrison Facilities Services Ltd_d,RESPONSIVE REPAIRS - BUILDING,"1,662.96","Works - Construction, Repair & Maint.Buildings.Repair & Maintenance"
06/10/2015,HOUSING MANAGEMENT SERVICES,Morrison Facilities Services Ltd_d,RESPONSIVE REPAIRS - MECHANICAL AND ELECTRICAL,"1,637.61","Works - Construction, Repair & Maint.Buildings.Repair & Maintenance"
06/10/2015,HOUSING MANAGEMENT SERVICES,Morrison Facilities Services Ltd_d,RESPONSIVE REPAIRS - BUILDING,"1,594.80","Works - Construction, Repair & Maint.Buildings.Repair & Maintenance"
06/10/2015,ADULT SOCIAL CARE,Snowball Care,DOMICILIARY CARE - THIRD PARTY,"1,546.50",Social Community Care Supplies & Service.Adult.Domiciliary Care
06/10/2015,HOUSING MANAGEMENT SERVICES,Morrison Facilities Services Ltd_d,OPEN SPACES WORKS,"1,542.72","Works - Construction, Repair & Maint.Buildings.Repair & Maintenance"
06/10/2015,"STRATEGY & COMMISSIONING - CHILDREN, DISABILITIES & PUBLIC HEALTH",Cam Pharmacy,HIRE OF ROOMS AND HALLS INCOME - NON VATABLE,"1,532.44",Facilities & Management Services.Room Hire.NA
06/10/2015,HOUSING MANAGEMENT SERVICES,Morrison Facilities Services Ltd_d,RESPONSIVE REPAIRS - MECHANICAL AND ELECTRICAL,"1,512.00","Works - Construction, Repair & Maint.Buildings.Repair & Maintenance"
06/10/2015,HOUSING MANAGEMENT SERVICES,Morrison Facilities Services Ltd_d,RESPONSIVE REPAIRS - BUILDING,"1,507.68","Works - Construction, Repair & Maint.Buildings.Repair & Maintenance"
06/10/2015,ADULT SOCIAL CARE,Snowball Care,DOMICILIARY CARE - THIRD PARTY,"1,428.00",Social Community Care Supplies & Service.Adult.Domiciliary Care
06/10/2015,HOUSING MANAGEMENT SERVICES,Morrison Facilities Services Ltd_d,RESPONSIVE REPAIRS - BUILDING,"1,402.00","Works - Construction, Repair & Maint.Buildings.Repair & Maintenance"
06/10/2015,HOUSING MANAGEMENT SERVICES,Morrison Facilities Services Ltd_d,RESPONSIVE REPAIRS - BUILDING,"1,385.05","Works - Construction, Repair & Maint.Buildings.Repair & Maintenance"
06/10/2015,HOUSING MANAGEMENT SERVICES,Morrison Facilities Services Ltd_d,RESPONSIVE REPAIRS - BUILDING,"1,365.00","Works - Construction, Repair & Maint.Buildings.Repair & Maintenance"
06/10/2015,CORPORATE ITEMS,Morrison Facilities Services Ltd_d,MISCELLANEOUS EXPENSES,"1,364.00","Works - Construction, Repair & Maint.Buildings.Repair & Maintenance"
06/10/2015,HOUSING MANAGEMENT SERVICES,Morrison Facilities Services Ltd_d,RESPONSIVE REPAIRS - BUILDING,"1,352.40","Works - Construction, Repair & Maint.Buildings.Repair & Maintenance"
06/10/2015,HOUSING MANAGEMENT SERVICES,Morrison Facilities Services Ltd_d,RESPONSIVE REPAIRS - MECHANICAL AND ELECTRICAL,"1,330.00","Works - Construction, Repair & Maint.Buildings.Repair & Maintenance"
06/10/2015,ADULT SOCIAL CARE,Snowball Care,DOMICILIARY CARE - THIRD PARTY,"1,320.00",Social Community Care Supplies & Service.Adult.Domiciliary Care
06/10/2015,HOUSING MANAGEMENT SERVICES,Morrison Facilities Services Ltd_d,RESPONSIVE REPAIRS - BUILDING,"1,288.00","Works - Construction, Repair & Maint.Buildings.Repair & Maintenance"
06/10/2015,HOUSING MANAGEMENT SERVICES,Morrison Facilities Services Ltd_d,RESPONSIVE REPAIRS - BUILDING,"1,275.84","Works - Construction, Repair & Maint.Buildings.Repair & Maintenance"
06/10/2015,HOUSING MANAGEMENT SERVICES,Morrison Facilities Services Ltd_d,RESPONSIVE REPAIRS - BUILDING,"1,266.42","Works - Construction, Repair & Maint.Buildings.Repair & Maintenance"
06/10/2015,HOUSING MANAGEMENT SERVICES,Morrison Facilities Services Ltd_d,RESPONSIVE REPAIRS - BUILDING,"1,206.36","Works - Construction, Repair & Maint.Buildings.Repair & Maintenance"
06/10/2015,HOUSING MANAGEMENT SERVICES,Morrison Facilities Services Ltd_d,RESPONSIVE REPAIRS - BUILDING,"1,200.96","Works - Construction, Repair & Maint.Buildings.Repair & Maintenance"
06/10/2015,HOUSING MANAGEMENT SERVICES,Morrison Facilities Services Ltd_d,RESPONSIVE REPAIRS - MECHANICAL AND ELECTRICAL,"1,200.00","Works - Construction, Repair & Maint.Buildings.Repair & Maintenance"
06/10/2015,HOUSING MANAGEMENT SERVICES,Morrison Facilities Services Ltd_d,RESPONSIVE REPAIRS - BUILDING,"1,193.76","Works - Construction, Repair & Maint.Buildings.Repair & Maintenance"
06/10/2015,HOUSING MANAGEMENT SERVICES,Morrison Facilities Services Ltd_d,OPEN SPACES WORKS,"1,157.04","Works - Construction, Repair & Maint.Buildings.Repair & Maintenance"
06/10/2015,HOUSING MANAGEMENT SERVICES,Morrison Facilities Services Ltd_d,RESPONSIVE REPAIRS - BUILDING,"1,156.90","Works - Construction, Repair & Maint.Buildings.Repair & Maintenance"
06/10/2015,ADULT SOCIAL CARE,Unique Personnel (Uk) Ltd,DOMICILIARY CARE - THIRD PARTY,"1,120.50",Social Community Care Supplies & Service.Disabled Children.NA
06/10/2015,HOUSING MANAGEMENT SERVICES,Morrison Facilities Services Ltd_d,RESPONSIVE REPAIRS - BUILDING,"1,092.00","Works - Construction, Repair & Maint.Buildings.Repair & Maintenance"
06/10/2015,HOUSING MANAGEMENT SERVICES,Morrison Facilities Services Ltd_d,RESPONSIVE REPAIRS - BUILDING,"1,063.20","Works - Construction, Repair & Maint.Buildings.Repair & Maintenance"
06/10/2015,HOUSING MANAGEMENT SERVICES,Morrison Facilities Services Ltd_d,RESPONSIVE REPAIRS - BUILDING,"1,012.44","Works - Construction, Repair & Maint.Buildings.Repair & Maintenance"
06/10/2015,HOUSING MANAGEMENT SERVICES,Morrison Facilities Services Ltd_d,RESPONSIVE REPAIRS - BUILDING,"1,005.60","Works - Construction, Repair & Maint.Buildings.Repair & Maintenance"
06/10/2015,HOUSING MANAGEMENT SERVICES,Morrison Facilities Services Ltd_d,RESPONSIVE REPAIRS - BUILDING,"1,002.12","Works - Construction, Repair & Maint.Buildings.Repair & Maintenance"
06/10/2015,HOUSING MANAGEMENT SERVICES,Morrison Facilities Services Ltd_d,RESPONSIVE REPAIRS - BUILDING,"1,002.12","Works - Construction, Repair & Maint.Buildings.Repair & Maintenance"
06/10/2015,HOUSING MANAGEMENT SERVICES,Morrison Facilities Services Ltd_d,RESPONSIVE REPAIRS - BUILDING,"1,002.12","Works - Construction, Repair & Maint.Buildings.Repair & Maintenance"
06/10/2015,HOUSING MANAGEMENT SERVICES,Morrison Facilities Services Ltd_d,RESPONSIVE REPAIRS - BUILDING,"1,000.80","Works - Construction, Repair & Maint.Buildings.Repair & Maintenance"
06/10/2015,HOUSING MANAGEMENT SERVICES,Morrison Facilities Services Ltd_d,RESPONSIVE REPAIRS - BUILDING,979.02,"Works - Construction, Repair & Maint.Buildings.Repair & Maintenance"
06/10/2015,ADULT SOCIAL CARE,Holistic Community Care Ltd,DOMICILIARY CARE - THIRD PARTY,975.50,Social Community Care Supplies & Service.Adult.Domiciliary Care
06/10/2015,HOUSING MANAGEMENT SERVICES,Morrison Facilities Services Ltd_d,RESPONSIVE REPAIRS - MECHANICAL AND ELECTRICAL,952.00,"Works - Construction, Repair & Maint.Buildings.Repair & Maintenance"
06/10/2015,HOUSING MANAGEMENT SERVICES,Morrison Facilities Services Ltd_d,RESPONSIVE REPAIRS - BUILDING,947.52,"Works - Construction, Repair & Maint.Buildings.Repair & Maintenance"
06/10/2015,HOUSING MANAGEMENT SERVICES,Morrison Facilities Services Ltd_d,RESPONSIVE REPAIRS - BUILDING,934.10,"Works - Construction, Repair & Maint.Buildings.Repair & Maintenance"
06/10/2015,HOUSING MANAGEMENT SERVICES,Morrison Facilities Services Ltd_d,RESPONSIVE REPAIRS - MECHANICAL AND ELECTRICAL,927.03,"Works - Construction, Repair & Maint.Buildings.Repair & Maintenance"
06/10/2015,ADULT SOCIAL CARE,Holistic Community Care Ltd,DOMICILIARY CARE - THIRD PARTY,926.65,Social Community Care Supplies & Service.Adult.Domiciliary Care
06/10/2015,HOUSING MANAGEMENT SERVICES,Morrison Facilities Services Ltd_d,RESPONSIVE REPAIRS - MECHANICAL AND ELECTRICAL,924.00,"Works - Construction, Repair & Maint.Buildings.Repair & Maintenance"
06/10/2015,HOUSING MANAGEMENT SERVICES,Morrison Facilities Services Ltd_d,RESPONSIVE REPAIRS - MECHANICAL AND ELECTRICAL,924.00,"Works - Construction, Repair & Maint.Buildings.Repair & Maintenance"
06/10/2015,HOUSING MANAGEMENT SERVICES,Morrison Facilities Services Ltd_d,RESPONSIVE REPAIRS - BUILDING,923.40,"Works - Construction, Repair & Maint.Buildings.Repair & Maintenance"
06/10/2015,HOUSING MANAGEMENT SERVICES,Morrison Facilities Services Ltd_d,RESPONSIVE REPAIRS - BUILDING,923.40,"Works - Construction, Repair & Maint.Buildings.Repair & Maintenance"
06/10/2015,HOUSING MANAGEMENT SERVICES,Morrison Facilities Services Ltd_d,RESPONSIVE REPAIRS - BUILDING,920.80,"Works - Construction, Repair & Maint.Buildings.Repair & Maintenance"
06/10/2015,HOUSING MANAGEMENT SERVICES,Morrison Facilities Services Ltd_d,RESPONSIVE REPAIRS - BUILDING,893.78,"Works - Construction, Repair & Maint.Buildings.Repair & Maintenance"
06/10/2015,ADULT SOCIAL CARE,Capital Homecare (UK) Ltd,DOMICILIARY CARE - THIRD PARTY,887.95,Social Community Care Supplies & Service.Adult.Domiciliary Care
06/10/2015,HOUSING MANAGEMENT SERVICES,Morrison Facilities Services Ltd_d,RESPONSIVE REPAIRS - BUILDING,883.26,"Works - Construction, Repair & Maint.Buildings.Repair & Maintenance"
06/10/2015,HOUSING MANAGEMENT SERVICES,Morrison Facilities Services Ltd_d,RESPONSIVE REPAIRS - BUILDING,876.25,"Works - Construction, Repair & Maint.Buildings.Repair & Maintenance"
06/10/2015,HOUSING MANAGEMENT SERVICES,Morrison Facilities Services Ltd_d,RESPONSIVE REPAIRS - BUILDING,876.25,"Works - Construction, Repair & Maint.Buildings.Repair & Maintenance"
06/10/2015,ADULT SOCIAL CARE,Capital Homecare (UK) Ltd,DOMICILIARY CARE - THIRD PARTY,869.34,Social Community Care Supplies & Service.Adult.Domiciliary Care
06/10/2015,ADULT SOCIAL CARE,Capital Homecare (UK) Ltd,DOMICILIARY CARE - THIRD PARTY,869.34,Social Community Care Supplies & Service.Adult.Domiciliary Care
06/10/2015,ADULT SOCIAL CARE,Capital Homecare (UK) Ltd,DOMICILIARY CARE - THIRD PARTY,869.34,Social Community Care Supplies & Service.Adult.Domiciliary Care
06/10/2015,HOUSING MANAGEMENT SERVICES,Morrison Facilities Services Ltd_d,OPEN SPACES WORKS,867.78,"Works - Construction, Repair & Maint.Buildings.Repair & Maintenance"
06/10/2015,HOUSING MANAGEMENT SERVICES,Morrison Facilities Services Ltd_d,RESPONSIVE REPAIRS - MECHANICAL AND ELECTRICAL,866.25,"Works - Construction, Repair & Maint.Buildings.Repair & Maintenance"
06/10/2015,HOUSING MANAGEMENT SERVICES,Morrison Facilities Services Ltd_d,RESPONSIVE REPAIRS - BUILDING,864.20,"Works - Construction, Repair & Maint.Buildings.Repair & Maintenance"
06/10/2015,HOUSING MANAGEMENT SERVICES,Morrison Facilities Services Ltd_d,RESPONSIVE REPAIRS - BUILDING,845.72,"Works - Construction, Repair & Maint.Buildings.Repair & Maintenance"
06/10/2015,HOUSING MANAGEMENT SERVICES,Morrison Facilities Services Ltd_d,RESPONSIVE REPAIRS - BUILDING,845.72,"Works - Construction, Repair & Maint.Buildings.Repair & Maintenance"
06/10/2015,HOUSING MANAGEMENT SERVICES,Morrison Facilities Services Ltd_d,RESPONSIVE REPAIRS - BUILDING,843.70,"Works - Construction, Repair & Maint.Buildings.Repair & Maintenance"
06/10/2015,HOUSING MANAGEMENT SERVICES,Morrison Facilities Services Ltd_d,RESPONSIVE REPAIRS - BUILDING,835.10,"Works - Construction, Repair & Maint.Buildings.Repair & Maintenance"
06/10/2015,HOUSING MANAGEMENT SERVICES,Morrison Facilities Services Ltd_d,RESPONSIVE REPAIRS - BUILDING,832.10,"Works - Construction, Repair & Maint.Buildings.Repair & Maintenance"
06/10/2015,ADULT SOCIAL CARE,Capital Homecare (UK) Ltd,DOMICILIARY CARE - THIRD PARTY,824.60,Social Community Care Supplies & Service.Adult.Domiciliary Care
06/10/2015,ADULT SOCIAL CARE,Capital Homecare (UK) Ltd,DOMICILIARY CARE - THIRD PARTY,824.60,Social Community Care Supplies & Service.Adult.Domiciliary Care
06/10/2015,ADULT SOCIAL CARE,Capital Homecare (UK) Ltd,DOMICILIARY CARE - THIRD PARTY,824.60,Social Community Care Supplies & Service.Adult.Domiciliary Care
06/10/2015,ADULT SOCIAL CARE,Capital Homecare (UK) Ltd,DOMICILIARY CARE - THIRD PARTY,824.60,Social Community Care Supplies & Service.Adult.Domiciliary Care
06/10/2015,HOUSING MANAGEMENT SERVICES,Morrison Facilities Services Ltd_d,RESPONSIVE REPAIRS - BUILDING,820.64,"Works - Construction, Repair & Maint.Buildings.Repair & Maintenance"
06/10/2015,HOUSING MANAGEMENT SERVICES,Morrison Facilities Services Ltd_d,RESPONSIVE REPAIRS - BUILDING,820.12,"Works - Construction, Repair & Maint.Buildings.Repair & Maintenance"
06/10/2015,HOUSING MANAGEMENT SERVICES,Morrison Facilities Services Ltd_d,RESPONSIVE REPAIRS - BUILDING,819.00,"Works - Construction, Repair & Maint.Buildings.Repair & Maintenance"
06/10/2015,HOUSING MANAGEMENT SERVICES,Morrison Facilities Services Ltd_d,RESPONSIVE REPAIRS - BUILDING,818.98,"Works - Construction, Repair & Maint.Buildings.Repair & Maintenance"
06/10/2015,ADULT SOCIAL CARE,Capital Homecare (UK) Ltd,DOMICILIARY CARE - THIRD PARTY,812.26,Social Community Care Supplies & Service.Adult.Domiciliary Care
06/10/2015,HOUSING MANAGEMENT SERVICES,Morrison Facilities Services Ltd_d,RESPONSIVE REPAIRS - BUILDING,801.00,"Works - Construction, Repair & Maint.Buildings.Repair & Maintenance"
06/10/2015,HOUSING MANAGEMENT SERVICES,Morrison Facilities Services Ltd_d,RESPONSIVE REPAIRS - BUILDING,798.33,"Works - Construction, Repair & Maint.Buildings.Repair & Maintenance"
06/10/2015,HOUSING MANAGEMENT SERVICES,Morrison Facilities Services Ltd_d,RESPONSIVE REPAIRS - BUILDING,786.98,"Works - Construction, Repair & Maint.Buildings.Repair & Maintenance"
06/10/2015,HOUSING MANAGEMENT SERVICES,Morrison Facilities Services Ltd_d,RESPONSIVE REPAIRS - BUILDING,784.50,"Works - Construction, Repair & Maint.Buildings.Repair & Maintenance"
06/10/2015,HOUSING MANAGEMENT SERVICES,Morrison Facilities Services Ltd_d,RESPONSIVE REPAIRS - MECHANICAL AND ELECTRICAL,773.92,"Works - Construction, Repair & Maint.Buildings.Repair & Maintenance"
06/10/2015,HOUSING MANAGEMENT SERVICES,Morrison Facilities Services Ltd_d,RESPONSIVE REPAIRS - MECHANICAL AND ELECTRICAL,770.53,"Works - Construction, Repair & Maint.Buildings.Repair & Maintenance"
06/10/2015,HOUSING MANAGEMENT SERVICES,Morrison Facilities Services Ltd_d,RESPONSIVE REPAIRS - MECHANICAL AND ELECTRICAL,763.80,"Works - Construction, Repair & Maint.Buildings.Repair & Maintenance"
06/10/2015,"REGENERATION, PLANNING & NEIGHBOURHOODS",Thames Water Utilities Ltd_d,WATER AND SEWERAGE,763.62,Environmental Services.Water Assessment & Treatment.NA
06/10/2015,HOUSING MANAGEMENT SERVICES,Morrison Facilities Services Ltd_d,RESPONSIVE REPAIRS - MECHANICAL AND ELECTRICAL,761.92,"Works - Construction, Repair & Maint.Buildings.Repair & Maintenance"
06/10/2015,HOUSING MANAGEMENT SERVICES,Morrison Facilities Services Ltd_d,RESPONSIVE REPAIRS - BUILDING,750.60,"Works - Construction, Repair & Maint.Buildings.Repair & Maintenance"
06/10/2015,HOUSING MANAGEMENT SERVICES,Morrison Facilities Services Ltd_d,RESPONSIVE REPAIRS - BUILDING,750.60,"Works - Construction, Repair & Maint.Buildings.Repair & Maintenance"
06/10/2015,HUMAN RESOURCES AND ORGANISATIONAL DEVELOPMENT (HRA),Live Better Locations Ltd,STAFF DEVELOPMENT AND TRAINING,750.00,Human Resources.Training & Conferences.Training
06/10/2015,HUMAN RESOURCES AND ORGANISATIONAL DEVELOPMENT (HRA),Live Better Locations Ltd,STAFF DEVELOPMENT AND TRAINING,750.00,Human Resources.Training & Conferences.Training
06/10/2015,HUMAN RESOURCES AND ORGANISATIONAL DEVELOPMENT (HRA),Live Better Locations Ltd,STAFF DEVELOPMENT AND TRAINING,750.00,Human Resources.Training & Conferences.Training
06/10/2015,ADULT SOCIAL CARE,Capital Homecare (UK) Ltd,DOMICILIARY CARE - THIRD PARTY,746.84,Social Community Care Supplies & Service.Adult.Domiciliary Care
06/10/2015,ADULT SOCIAL CARE,Capital Homecare (UK) Ltd,DOMICILIARY CARE - THIRD PARTY,746.84,Social Community Care Supplies & Service.Adult.Domiciliary Care
06/10/2015,ADULT SOCIAL CARE,Capital Homecare (UK) Ltd,DOMICILIARY CARE - THIRD PARTY,746.84,Social Community Care Supplies & Service.Adult.Domiciliary Care
06/10/2015,HOUSING MANAGEMENT SERVICES,Morrison Facilities Services Ltd_d,RESPONSIVE REPAIRS - BUILDING,736.12,"Works - Construction, Repair & Maint.Buildings.Repair & Maintenance"
06/10/2015,HOUSING MANAGEMENT SERVICES,Morrison Facilities Services Ltd_d,RESPONSIVE REPAIRS - BUILDING,736.05,"Works - Construction, Repair & Maint.Buildings.Repair & Maintenance"
06/10/2015,HOUSING MANAGEMENT SERVICES,Morrison Facilities Services Ltd_d,RESPONSIVE REPAIRS - BUILDING,735.90,"Works - Construction, Repair & Maint.Buildings.Repair & Maintenance"
06/10/2015,HOUSING MANAGEMENT SERVICES,Morrison Facilities Services Ltd_d,RESPONSIVE REPAIRS - MECHANICAL AND ELECTRICAL,730.00,"Works - Construction, Repair & Maint.Buildings.Repair & Maintenance"
06/10/2015,HOUSING MANAGEMENT SERVICES,Morrison Facilities Services Ltd_d,RESPONSIVE REPAIRS - BUILDING,728.40,"Works - Construction, Repair & Maint.Buildings.Repair & Maintenance"
06/10/2015,HOUSING MANAGEMENT SERVICES,Morrison Facilities Services Ltd_d,RESPONSIVE REPAIRS - BUILDING,724.50,"Works - Construction, Repair & Maint.Buildings.Repair & Maintenance"
06/10/2015,HOUSING MANAGEMENT SERVICES,Morrison Facilities Services Ltd_d,RESPONSIVE REPAIRS - MECHANICAL AND ELECTRICAL,713.10,"Works - Construction, Repair & Maint.Buildings.Repair & Maintenance"
06/10/2015,HOUSING MANAGEMENT SERVICES,Morrison Facilities Services Ltd_d,DECORATION,706.82,"Works - Construction, Repair & Maint.Buildings.Repair & Maintenance"
06/10/2015,ADULT SOCIAL CARE,Capital Homecare (UK) Ltd,DOMICILIARY CARE - THIRD PARTY,695.33,Social Community Care Supplies & Service.Adult.Domiciliary Care
06/10/2015,ADULT SOCIAL CARE,Holistic Community Care Ltd,DOMICILIARY CARE - THIRD PARTY,693.91,Social Community Care Supplies & Service.Adult.Domiciliary Care
06/10/2015,HOUSING MANAGEMENT SERVICES,Morrison Facilities Services Ltd_d,RESPONSIVE REPAIRS - BUILDING,684.90,"Works - Construction, Repair & Maint.Buildings.Repair & Maintenance"
06/10/2015,ADULT SOCIAL CARE,Holistic Community Care Ltd,DOMICILIARY CARE - THIRD PARTY,684.88,Social Community Care Supplies & Service.Adult.Domiciliary Care
06/10/2015,ADULT SOCIAL CARE,Holistic Community Care Ltd,DOMICILIARY CARE - THIRD PARTY,684.88,Social Community Care Supplies & Service.Adult.Domiciliary Care
06/10/2015,HOUSING MANAGEMENT SERVICES,Morrison Facilities Services Ltd_d,RESPONSIVE REPAIRS - MECHANICAL AND ELECTRICAL,680.00,"Works - Construction, Repair & Maint.Buildings.Repair & Maintenance"
06/10/2015,HOUSING MANAGEMENT SERVICES,Morrison Facilities Services Ltd_d,RESPONSIVE REPAIRS - MECHANICAL AND ELECTRICAL,678.30,"Works - Construction, Repair & Maint.Buildings.Repair & Maintenance"
06/10/2015,HOUSING MANAGEMENT SERVICES,Morrison Facilities Services Ltd_d,RESPONSIVE REPAIRS - MECHANICAL AND ELECTRICAL,673.92,"Works - Construction, Repair & Maint.Buildings.Repair & Maintenance"
06/10/2015,CORPORATE ITEMS,Morrison Facilities Services Ltd_d,MISCELLANEOUS EXPENSES,668.17,"Works - Construction, Repair & Maint.Buildings.Repair & Maintenance"
06/10/2015,HOUSING MANAGEMENT SERVICES,Morrison Facilities Services Ltd_d,RESPONSIVE REPAIRS - BUILDING,663.72,"Works - Construction, Repair & Maint.Buildings.Repair & Maintenance"
06/10/2015,HOUSING MANAGEMENT SERVICES,Morrison Facilities Services Ltd_d,RESPONSIVE REPAIRS - BUILDING,656.30,"Works - Construction, Repair & Maint.Buildings.Repair & Maintenance"
06/10/2015,HOUSING MANAGEMENT SERVICES,Morrison Facilities Services Ltd_d,RESPONSIVE REPAIRS - MECHANICAL AND ELECTRICAL,650.00,"Works - Construction, Repair & Maint.Buildings.Repair & Maintenance"
06/10/2015,HOUSING MANAGEMENT SERVICES,Morrison Facilities Services Ltd_d,RESPONSIVE REPAIRS - BUILDING,644.16,"Works - Construction, Repair & Maint.Buildings.Repair & Maintenance"
06/10/2015,ADULT SOCIAL CARE,Allied Healthcare (UK) Ltd,DOMICILIARY CARE - THIRD PARTY,641.52,Social Community Care Supplies & Service.Adult.Domiciliary Care
06/10/2015,HOUSING MANAGEMENT SERVICES,Morrison Facilities Services Ltd_d,RESPONSIVE REPAIRS - BUILDING,633.63,"Works - Construction, Repair & Maint.Buildings.Repair & Maintenance"
06/10/2015,HOUSING MANAGEMENT SERVICES,Morrison Facilities Services Ltd_d,RESPONSIVE REPAIRS - BUILDING,633.63,"Works - Construction, Repair & Maint.Buildings.Repair & Maintenance"
06/10/2015,HOUSING MANAGEMENT SERVICES,Morrison Facilities Services Ltd_d,RESPONSIVE REPAIRS - BUILDING,633.63,"Works - Construction, Repair & Maint.Buildings.Repair & Maintenance"
06/10/2015,HOUSING MANAGEMENT SERVICES,Morrison Facilities Services Ltd_d,RESPONSIVE REPAIRS - BUILDING,633.63,"Works - Construction, Repair & Maint.Buildings.Repair & Maintenance"
06/10/2015,HOUSING MANAGEMENT SERVICES,Morrison Facilities Services Ltd_d,RESPONSIVE REPAIRS - BUILDING,633.63,"Works - Construction, Repair & Maint.Buildings.Repair & Maintenance"
06/10/2015,HOUSING MANAGEMENT SERVICES,Morrison Facilities Services Ltd_d,RESPONSIVE REPAIRS - BUILDING,633.63,"Works - Construction, Repair & Maint.Buildings.Repair & Maintenance"
06/10/2015,HOUSING MANAGEMENT SERVICES,Morrison Facilities Services Ltd_d,RESPONSIVE REPAIRS - BUILDING,633.30,"Works - Construction, Repair & Maint.Buildings.Repair & Maintenance"
06/10/2015,HOUSING MANAGEMENT SERVICES,Morrison Facilities Services Ltd_d,RESPONSIVE REPAIRS - BUILDING,626.74,"Works - Construction, Repair & Maint.Buildings.Repair & Maintenance"
06/10/2015,HOUSING MANAGEMENT SERVICES,Morrison Facilities Services Ltd_d,RESPONSIVE REPAIRS - BUILDING,624.75,"Works - Construction, Repair & Maint.Buildings.Repair & Maintenance"
06/10/2015,HOUSING MANAGEMENT SERVICES,Morrison Facilities Services Ltd_d,RESPONSIVE REPAIRS - BUILDING,622.75,"Works - Construction, Repair & Maint.Buildings.Repair & Maintenance"
06/10/2015,HOUSING MANAGEMENT SERVICES,Morrison Facilities Services Ltd_d,RESPONSIVE REPAIRS - BUILDING,618.64,"Works - Construction, Repair & Maint.Buildings.Repair & Maintenance"
06/10/2015,HOUSING MANAGEMENT SERVICES,Morrison Facilities Services Ltd_d,RESPONSIVE REPAIRS - BUILDING,618.35,"Works - Construction, Repair & Maint.Buildings.Repair & Maintenance"
06/10/2015,HOUSING MANAGEMENT SERVICES,Morrison Facilities Services Ltd_d,RESPONSIVE REPAIRS - BUILDING,615.24,"Works - Construction, Repair & Maint.Buildings.Repair & Maintenance"
06/10/2015,HOUSING MANAGEMENT SERVICES,Morrison Facilities Services Ltd_d,RESPONSIVE REPAIRS - BUILDING,608.50,"Works - Construction, Repair & Maint.Buildings.Repair & Maintenance"
06/10/2015,CORPORATE ITEMS,Morrison Facilities Services Ltd_d,MISCELLANEOUS EXPENSES,604.00,"Works - Construction, Repair & Maint.Buildings.Repair & Maintenance"
06/10/2015,HOUSING MANAGEMENT SERVICES,Morrison Facilities Services Ltd_d,RESPONSIVE REPAIRS - BUILDING,603.36,"Works - Construction, Repair & Maint.Buildings.Repair & Maintenance"
06/10/2015,HOUSING MANAGEMENT SERVICES,Morrison Facilities Services Ltd_d,RESPONSIVE REPAIRS - BUILDING,603.18,"Works - Construction, Repair & Maint.Buildings.Repair & Maintenance"
06/10/2015,ADULT SOCIAL CARE,Capital Homecare (UK) Ltd,DOMICILIARY CARE - THIRD PARTY,601.62,Social Community Care Supplies & Service.Adult.Domiciliary Care
06/10/2015,HOUSING MANAGEMENT SERVICES,Morrison Facilities Services Ltd_d,RESPONSIVE REPAIRS - BUILDING,596.88,"Works - Construction, Repair & Maint.Buildings.Repair & Maintenance"
06/10/2015,HOUSING MANAGEMENT SERVICES,Morrison Facilities Services Ltd_d,RESPONSIVE REPAIRS - BUILDING,588.72,"Works - Construction, Repair & Maint.Buildings.Repair & Maintenance"
06/10/2015,HOUSING MANAGEMENT SERVICES,Morrison Facilities Services Ltd_d,RESPONSIVE REPAIRS - BUILDING,588.47,"Works - Construction, Repair & Maint.Buildings.Repair & Maintenance"
06/10/2015,ADULT SOCIAL CARE,Capital Homecare (UK) Ltd,DOMICILIARY CARE - THIRD PARTY,570.60,Social Community Care Supplies & Service.Adult.Domiciliary Care
06/10/2015,HOUSING MANAGEMENT SERVICES,Morrison Facilities Services Ltd_d,RESPONSIVE REPAIRS - BUILDING,563.80,"Works - Construction, Repair & Maint.Buildings.Repair & Maintenance"
06/10/2015,HOUSING MANAGEMENT SERVICES,Deanem Collection Ltd,DEBT COLLECTION AND RECOVERY COSTS,560.00,Financial Services.Debt Collection & Recovery.NA
06/10/2015,EDUCATION & LEARNING,Askews and Holts Library Services Ltd,"BOOKS, PUBLICATIONS AND RESOURCES",556.04,Education.Library Books.NA
06/10/2015,HOUSING MANAGEMENT SERVICES,Morrison Facilities Services Ltd_d,RESPONSIVE REPAIRS - MECHANICAL AND ELECTRICAL,550.00,"Works - Construction, Repair & Maint.Buildings.Repair & Maintenance"
06/10/2015,ADULT SOCIAL CARE,Capital Homecare (UK) Ltd,DOMICILIARY CARE - THIRD PARTY,549.14,Social Community Care Supplies & Service.Adult.Domiciliary Care
06/10/2015,HOUSING MANAGEMENT SERVICES,Morrison Facilities Services Ltd_d,RESPONSIVE REPAIRS - MECHANICAL AND ELECTRICAL,546.74,"Works - Construction, Repair & Maint.Buildings.Repair & Maintenance"
06/10/2015,HOUSING MANAGEMENT SERVICES,Morrison Facilities Services Ltd_d,RESPONSIVE REPAIRS - MECHANICAL AND ELECTRICAL,536.02,"Works - Construction, Repair & Maint.Buildings.Repair & Maintenance"
06/10/2015,HOUSING MANAGEMENT SERVICES,Morrison Facilities Services Ltd_d,RESPONSIVE REPAIRS - BUILDING,533.64,"Works - Construction, Repair & Maint.Buildings.Repair & Maintenance"
06/10/2015,HOUSING MANAGEMENT SERVICES,Morrison Facilities Services Ltd_d,RESPONSIVE REPAIRS - BUILDING,531.68,"Works - Construction, Repair & Maint.Buildings.Repair & Maintenance"
06/10/2015,HOUSING MANAGEMENT SERVICES,Morrison Facilities Services Ltd_d,RESPONSIVE REPAIRS - BUILDING,531.68,"Works - Construction, Repair & Maint.Buildings.Repair & Maintenance"
06/10/2015,HOUSING MANAGEMENT SERVICES,Morrison Facilities Services Ltd_d,RESPONSIVE REPAIRS - BUILDING,531.68,"Works - Construction, Repair & Maint.Buildings.Repair & Maintenance"
06/10/2015,HOUSING MANAGEMENT SERVICES,Morrison Facilities Services Ltd_d,RESPONSIVE REPAIRS - BUILDING,531.68,"Works - Construction, Repair & Maint.Buildings.Repair & Maintenance"
06/10/2015,HOUSING MANAGEMENT SERVICES,Morrison Facilities Services Ltd_d,RESPONSIVE REPAIRS - BUILDING,531.68,"Works - Construction, Repair & Maint.Buildings.Repair & Maintenance"
06/10/2015,HOUSING MANAGEMENT SERVICES,Morrison Facilities Services Ltd_d,RESPONSIVE REPAIRS - BUILDING,530.98,"Works - Construction, Repair & Maint.Buildings.Repair & Maintenance"
06/10/2015,HOUSING MANAGEMENT SERVICES,Morrison Facilities Services Ltd_d,RESPONSIVE REPAIRS - MECHANICAL AND ELECTRICAL,530.86,"Works - Construction, Repair & Maint.Buildings.Repair & Maintenance"
06/10/2015,CORPORATE ITEMS,Morrison Facilities Services Ltd_d,MISCELLANEOUS EXPENSES,529.85,"Works - Construction, Repair & Maint.Buildings.Repair & Maintenance"
06/10/2015,HOUSING MANAGEMENT SERVICES,Morrison Facilities Services Ltd_d,RESPONSIVE REPAIRS - MECHANICAL AND ELECTRICAL,529.77,"Works - Construction, Repair & Maint.Buildings.Repair & Maintenance"
06/10/2015,HOUSING MANAGEMENT SERVICES,Morrison Facilities Services Ltd_d,RESPONSIVE REPAIRS - BUILDING,521.25,"Works - Construction, Repair & Maint.Buildings.Repair & Maintenance"
06/10/2015,HOUSING MANAGEMENT SERVICES,Morrison Facilities Services Ltd_d,RESPONSIVE REPAIRS - MECHANICAL AND ELECTRICAL,520.46,"Works - Construction, Repair & Maint.Buildings.Repair & Maintenance"
06/10/2015,HOUSING MANAGEMENT SERVICES,Morrison Facilities Services Ltd_d,RESPONSIVE REPAIRS - MECHANICAL AND ELECTRICAL,517.50,"Works - Construction, Repair & Maint.Buildings.Repair & Maintenance"
06/10/2015,HOUSING MANAGEMENT SERVICES,Morrison Facilities Services Ltd_d,RESPONSIVE REPAIRS - MECHANICAL AND ELECTRICAL,517.50,"Works - Construction, Repair & Maint.Buildings.Repair & Maintenance"
06/10/2015,HOUSING MANAGEMENT SERVICES,Morrison Facilities Services Ltd_d,RESPONSIVE REPAIRS - MECHANICAL AND ELECTRICAL,517.50,"Works - Construction, Repair & Maint.Buildings.Repair & Maintenance"
06/10/2015,HOUSING MANAGEMENT SERVICES,Morrison Facilities Services Ltd_d,RESPONSIVE REPAIRS - MECHANICAL AND ELECTRICAL,516.66,"Works - Construction, Repair & Maint.Buildings.Repair & Maintenance"
06/10/2015,HOUSING MANAGEMENT SERVICES,Morrison Facilities Services Ltd_d,RESPONSIVE REPAIRS - MECHANICAL AND ELECTRICAL,515.34,"Works - Construction, Repair & Maint.Buildings.Repair & Maintenance"
06/10/2015,HOUSING MANAGEMENT SERVICES,Morrison Facilities Services Ltd_d,RESPONSIVE REPAIRS - MECHANICAL AND ELECTRICAL,515.20,"Works - Construction, Repair & Maint.Buildings.Repair & Maintenance"
06/10/2015,HOUSING MANAGEMENT SERVICES,Morrison Facilities Services Ltd_d,RESPONSIVE REPAIRS - MECHANICAL AND ELECTRICAL,515.20,"Works - Construction, Repair & Maint.Buildings.Repair & Maintenance"
06/10/2015,HOUSING MANAGEMENT SERVICES,Morrison Facilities Services Ltd_d,RESPONSIVE REPAIRS - MECHANICAL AND ELECTRICAL,514.02,"Works - Construction, Repair & Maint.Buildings.Repair & Maintenance"
06/10/2015,CORPORATE ITEMS,Morrison Facilities Services Ltd_d,MISCELLANEOUS EXPENSES,510.00,"Works - Construction, Repair & Maint.Buildings.Repair & Maintenance"
06/10/2015,ADULT SOCIAL CARE,Carby Community Care LTD,DOMICILIARY CARE - THIRD PARTY,508.30,Social Community Care Supplies & Service.Adult.Residential Care
06/10/2015,ADULT SOCIAL CARE,Capital Homecare (UK) Ltd,DOMICILIARY CARE - THIRD PARTY,507.44,Social Community Care Supplies & Service.Adult.Domiciliary Care
06/10/2015,HOUSING MANAGEMENT SERVICES,Morrison Facilities Services Ltd_d,RESPONSIVE REPAIRS - BUILDING,502.56,"Works - Construction, Repair & Maint.Buildings.Repair & Maintenance"
06/10/2015,HOUSING MANAGEMENT SERVICES,Morrison Facilities Services Ltd_d,RESPONSIVE REPAIRS - BUILDING,500.40,"Works - Construction, Repair & Maint.Buildings.Repair & Maintenance"
06/10/2015,HOUSING MANAGEMENT SERVICES,Morrison Facilities Services Ltd_d,RESPONSIVE REPAIRS - BUILDING,500.00,"Works - Construction, Repair & Maint.Buildings.Repair & Maintenance"
06/10/2015,ADULT SOCIAL CARE,Kairos Community Trust,RESIDENTIAL CARE INCOME,(585.28),Social Community Care Supplies & Service.Adult.Alcohol & Drug Rehabilitation
06/10/2015,HOUSING MANAGEMENT SERVICES,Morrison Facilities Services Ltd_d,RESPONSIVE REPAIRS - BUILDING,(711.70),"Works - Construction, Repair & Maint.Buildings.Repair & Maintenance"
06/10/2015,HOUSING MANAGEMENT SERVICES,Morrison Facilities Services Ltd_d,RESPONSIVE REPAIRS - BUILDING,(818.98),"Works - Construction, Repair & Maint.Buildings.Repair & Maintenance"
06/10/2015,HOUSING MANAGEMENT SERVICES,Morrison Facilities Services Ltd_d,RESPONSIVE REPAIRS - BUILDING,"(3,710.39)","Works - Construction, Repair & Maint.Buildings.Repair & Maintenance"
07/10/2015,CHILDREN'S SERVICES,Ownlife Ltd,RESIDENTIAL PLACEMENTS - PRIVATE CONTRACTORS PAYMENT,"26,712.00",Social Community Care Supplies & Service.Children.NA
07/10/2015,EDUCATION & LEARNING,Cressey Oasis Education Ltd,PROFESSIONAL SERVICES - GENERAL,"16,695.13",Education.School Services.NA
07/10/2015,HOUSING MANAGEMENT SERVICES,Charles Allotey & Co,LEGAL FEES,"15,300.00",Legal Services.Advocacy.NA
07/10/2015,HOUSING MANAGEMENT SERVICES,Anthony Gold Solicitors,LEGAL FEES,"15,300.00",Legal Services.Advocacy.NA
07/10/2015,EDUCATION & LEARNING,Cressey Oasis Education Ltd,PROFESSIONAL SERVICES - GENERAL,"13,063.72",Education.School Services.NA
07/10/2015,FINANCE,British Gas,GAS,"11,244.12",Utilities.Gas.NA
07/10/2015,ADULT SOCIAL CARE,The Rathbone Centre,DOMICILIARY CARE - THIRD PARTY,"10,500.30",Social Community Care Supplies & Service.Adult.Domiciliary Care
07/10/2015,HOUSING MANAGEMENT SERVICES,Hodge Jones & Allen Solicitors,LEGAL FEES,"10,352.75",Legal Services.Advocacy.NA
07/10/2015,HOUSING MANAGEMENT SERVICES,Mears Ltd,RESPONSIVE REPAIRS - BUILDING,"8,123.00","Works - Construction, Repair & Maint.Buildings.Repair & Maintenance"
07/10/2015,HOUSING MANAGEMENT SERVICES,Openview Security Solutions Ltd,RESPONSIVE REPAIRS - MECHANICAL AND ELECTRICAL,"7,930.13",Facilities & Management Services.Security.Closed-Circuit Television
07/10/2015,HOUSING MANAGEMENT SERVICES,Openview Security Solutions Ltd,RESPONSIVE REPAIRS - MECHANICAL AND ELECTRICAL,"7,930.13",Facilities & Management Services.Security.Closed-Circuit Television
07/10/2015,BUSINESS & CUSTOMER SERVICES,Indigo Edge Ltd,CONSULTANCY FEES,"6,900.00",Consultancy.Business.NA
07/10/2015,HOUSING MANAGEMENT SERVICES,Anthony Gold Solicitors,LEGAL FEES,"6,766.68",Legal Services.Advocacy.NA
07/10/2015,HOUSING MANAGEMENT SERVICES,Clarke Barnes LLP,LEGAL FEES,"6,000.00",Legal Services.Advocacy.NA
07/10/2015,HOUSING MANAGEMENT SERVICES,Brixton Advice Centre,LEGAL FEES,"5,942.32",Social Community Care Supplies & Service.Adult.Advice & Counselling Services
07/10/2015,HOUSING MANAGEMENT SERVICES,Mears Ltd,RESPONSIVE REPAIRS - BUILDING,"4,778.10","Works - Construction, Repair & Maint.Buildings.Repair & Maintenance"
07/10/2015,"REGENERATION, PLANNING & NEIGHBOURHOODS",David Ogilvie Engineering Ltd,"PURCHASE - EQUIPMENT, FURNITURE AND MATERIALS","4,707.00",Highway Equipment & Materials.Street Furniture & Ironworks.NA
07/10/2015,CORPORATE ITEMS,Mears Ltd,MISCELLANEOUS EXPENSES,"4,635.15","Works - Construction, Repair & Maint.Buildings.Repair & Maintenance"
07/10/2015,HOUSING MANAGEMENT SERVICES,Mears Ltd,RESPONSIVE REPAIRS - MECHANICAL AND ELECTRICAL,"4,085.00","Works - Construction, Repair & Maint.Buildings.Repair & Maintenance"
07/10/2015,HOUSING MANAGEMENT SERVICES,Anthony Gold Solicitors,LEGAL FEES,"4,000.00",Legal Services.Advocacy.NA
07/10/2015,CORPORATE ITEMS,Mears Ltd,MISCELLANEOUS EXPENSES,"3,650.00","Works - Construction, Repair & Maint.Buildings.Repair & Maintenance"
07/10/2015,HOUSING MANAGEMENT SERVICES,Mears Ltd,RESPONSIVE REPAIRS - MECHANICAL AND ELECTRICAL,"3,521.25","Works - Construction, Repair & Maint.Buildings.Repair & Maintenance"
07/10/2015,HOUSING MANAGEMENT SERVICES,Mears Ltd,RESPONSIVE REPAIRS - BUILDING,"3,462.42","Works - Construction, Repair & Maint.Buildings.Repair & Maintenance"
07/10/2015,CORPORATE ITEMS,Mears Ltd,MISCELLANEOUS EXPENSES,"3,277.50","Works - Construction, Repair & Maint.Buildings.Repair & Maintenance"
07/10/2015,HOUSING MANAGEMENT SERVICES,Mears Ltd,RESPONSIVE REPAIRS - BUILDING,"3,142.72","Works - Construction, Repair & Maint.Buildings.Repair & Maintenance"
07/10/2015,HOUSING MANAGEMENT SERVICES,Mears Ltd,RESPONSIVE REPAIRS - BUILDING,"3,056.56","Works - Construction, Repair & Maint.Buildings.Repair & Maintenance"
07/10/2015,CORPORATE ITEMS,Mears Ltd,MISCELLANEOUS EXPENSES,"3,049.28","Works - Construction, Repair & Maint.Buildings.Repair & Maintenance"
07/10/2015,HOUSING MANAGEMENT SERVICES,Charles Allotey & Co,LEGAL FEES,"3,000.00",Legal Services.Advocacy.NA
07/10/2015,HOUSING MANAGEMENT SERVICES,Mears Ltd,RESPONSIVE REPAIRS - BUILDING,"2,954.25","Works - Construction, Repair & Maint.Buildings.Repair & Maintenance"
07/10/2015,HOUSING MANAGEMENT SERVICES,Mears Ltd,RESPONSIVE REPAIRS - MECHANICAL AND ELECTRICAL,"2,776.72","Works - Construction, Repair & Maint.Buildings.Repair & Maintenance"
07/10/2015,ADULT SOCIAL CARE,Bluebird Care Lambeth,DOMICILIARY CARE - THIRD PARTY,"2,688.00",Social Community Care Supplies & Service.Adult.Domiciliary Care
07/10/2015,HOUSING MANAGEMENT SERVICES,Mears Ltd,RESPONSIVE REPAIRS - BUILDING,"2,667.12","Works - Construction, Repair & Maint.Buildings.Repair & Maintenance"
07/10/2015,HOUSING MANAGEMENT SERVICES,Mears Ltd,RESPONSIVE REPAIRS - BUILDING,"2,583.60","Works - Construction, Repair & Maint.Buildings.Repair & Maintenance"
07/10/2015,HOUSING MANAGEMENT SERVICES,Mears Ltd,RESPONSIVE REPAIRS - BUILDING,"2,583.60","Works - Construction, Repair & Maint.Buildings.Repair & Maintenance"
07/10/2015,FINANCE,Logotech Systems,ICT SOFTWARE,"2,550.00",Information Communication Technology.Software.Commercial Off-The-Shelf
07/10/2015,CORPORATE ITEMS,Mears Ltd,MISCELLANEOUS EXPENSES,"2,478.00","Works - Construction, Repair & Maint.Buildings.Repair & Maintenance"
07/10/2015,ADULT SOCIAL CARE,Capital Homecare (UK) Ltd,DOMICILIARY CARE - THIRD PARTY,"2,435.28",Social Community Care Supplies & Service.Adult.Domiciliary Care
07/10/2015,HOUSING MANAGEMENT SERVICES,Mears Ltd,RESPONSIVE REPAIRS - MECHANICAL AND ELECTRICAL,"2,403.00","Works - Construction, Repair & Maint.Buildings.Repair & Maintenance"
07/10/2015,EDUCATION & LEARNING,London Grid for Learning,ICT MAINTENANCE AND SUPPORT,"2,376.00",Information Communication Technology.Services.Website Development
07/10/2015,CORPORATE ITEMS,Mears Ltd,MISCELLANEOUS EXPENSES,"2,324.94","Works - Construction, Repair & Maint.Buildings.Repair & Maintenance"
07/10/2015,ADULT SOCIAL CARE,Carewatch (Lambeth),DOMICILIARY CARE - THIRD PARTY,"2,121.08",Social Community Care Supplies & Service.Adult.Domiciliary Care
07/10/2015,CORPORATE ITEMS,Mears Ltd,MISCELLANEOUS EXPENSES,"2,055.67","Works - Construction, Repair & Maint.Buildings.Repair & Maintenance"
07/10/2015,HOUSING MANAGEMENT SERVICES,Mears Ltd,RESPONSIVE REPAIRS - BUILDING,"2,026.87","Works - Construction, Repair & Maint.Buildings.Repair & Maintenance"
07/10/2015,HOUSING MANAGEMENT SERVICES,Mears Ltd,RESPONSIVE REPAIRS - MECHANICAL AND ELECTRICAL,"1,993.60","Works - Construction, Repair & Maint.Buildings.Repair & Maintenance"
07/10/2015,HOUSING MANAGEMENT SERVICES,Mears Ltd,RESPONSIVE REPAIRS - MECHANICAL AND ELECTRICAL,"1,988.45","Works - Construction, Repair & Maint.Buildings.Repair & Maintenance"
07/10/2015,CORPORATE ITEMS,Mears Ltd,MISCELLANEOUS EXPENSES,"1,987.13","Works - Construction, Repair & Maint.Buildings.Repair & Maintenance"
07/10/2015,HOUSING MANAGEMENT SERVICES,Mears Ltd,RESPONSIVE REPAIRS - BUILDING,"1,987.13","Works - Construction, Repair & Maint.Buildings.Repair & Maintenance"
07/10/2015,ADULT SOCIAL CARE,Capital Homecare (UK) Ltd,DOMICILIARY CARE - THIRD PARTY,"1,979.60",Social Community Care Supplies & Service.Adult.Domiciliary Care
07/10/2015,HOUSING MANAGEMENT SERVICES,Mears Ltd,RESPONSIVE REPAIRS - BUILDING,"1,961.13","Works - Construction, Repair & Maint.Buildings.Repair & Maintenance"
07/10/2015,HOUSING MANAGEMENT SERVICES,Mears Ltd,RESPONSIVE REPAIRS - MECHANICAL AND ELECTRICAL,"1,949.86","Works - Construction, Repair & Maint.Buildings.Repair & Maintenance"
07/10/2015,ADULT SOCIAL CARE,Unique Personnel (Uk) Ltd,DOMICILIARY CARE - THIRD PARTY,"1,946.00",Social Community Care Supplies & Service.Disabled Children.NA
07/10/2015,HOUSING MANAGEMENT SERVICES,Mears Ltd,RESPONSIVE REPAIRS - BUILDING,"1,878.02","Works - Construction, Repair & Maint.Buildings.Repair & Maintenance"
07/10/2015,HOUSING MANAGEMENT SERVICES,Anthony Gold Solicitors,LEGAL FEES,"1,856.02",Legal Services.Advocacy.NA
07/10/2015,HOUSING MANAGEMENT SERVICES,Mears Ltd,RESPONSIVE REPAIRS - MECHANICAL AND ELECTRICAL,"1,844.13","Works - Construction, Repair & Maint.Buildings.Repair & Maintenance"
07/10/2015,CORPORATE ITEMS,Mears Ltd,MISCELLANEOUS EXPENSES,"1,841.20","Works - Construction, Repair & Maint.Buildings.Repair & Maintenance"
07/10/2015,HOUSING MANAGEMENT SERVICES,Mears Ltd,RESPONSIVE REPAIRS - MECHANICAL AND ELECTRICAL,"1,832.61","Works - Construction, Repair & Maint.Buildings.Repair & Maintenance"
07/10/2015,HOUSING MANAGEMENT SERVICES,Mears Ltd,RESPONSIVE REPAIRS - BUILDING,"1,809.00","Works - Construction, Repair & Maint.Buildings.Repair & Maintenance"
07/10/2015,HOUSING MANAGEMENT SERVICES,Mears Ltd,RESPONSIVE REPAIRS - BUILDING,"1,809.00","Works - Construction, Repair & Maint.Buildings.Repair & Maintenance"
07/10/2015,CORPORATE ITEMS,Mears Ltd,MISCELLANEOUS EXPENSES,"1,770.61","Works - Construction, Repair & Maint.Buildings.Repair & Maintenance"
07/10/2015,HOUSING MANAGEMENT SERVICES,Mears Ltd,RESPONSIVE REPAIRS - BUILDING,"1,770.27","Works - Construction, Repair & Maint.Buildings.Repair & Maintenance"
07/10/2015,HOUSING MANAGEMENT SERVICES,Mears Ltd,RESPONSIVE REPAIRS - BUILDING,"1,747.79","Works - Construction, Repair & Maint.Buildings.Repair & Maintenance"
07/10/2015,HOUSING MANAGEMENT SERVICES,Mears Ltd,RESPONSIVE REPAIRS - MECHANICAL AND ELECTRICAL,"1,694.50","Works - Construction, Repair & Maint.Buildings.Repair & Maintenance"
07/10/2015,ADULT SOCIAL CARE,Bluebird Care Lambeth,DOMICILIARY CARE - THIRD PARTY,"1,640.00",Social Community Care Supplies & Service.Adult.Domiciliary Care
07/10/2015,ADULT SOCIAL CARE,Bluebird Care Lambeth,DOMICILIARY CARE - THIRD PARTY,"1,540.00",Social Community Care Supplies & Service.Adult.Domiciliary Care
07/10/2015,HOUSING MANAGEMENT SERVICES,Mears Ltd,RESPONSIVE REPAIRS - BUILDING,"1,500.00","Works - Construction, Repair & Maint.Buildings.Repair & Maintenance"
07/10/2015,ADULT SOCIAL CARE,Stockwellcare Support Services Ltd,DOMICILIARY CARE - THIRD PARTY,"1,477.80",Healthcare.Public Health.NA
07/10/2015,HOUSING MANAGEMENT SERVICES,Mears Ltd,RESPONSIVE REPAIRS - BUILDING,"1,460.70","Works - Construction, Repair & Maint.Buildings.Repair & Maintenance"
07/10/2015,CORPORATE ITEMS,Mears Ltd,MISCELLANEOUS EXPENSES,"1,432.95","Works - Construction, Repair & Maint.Buildings.Repair & Maintenance"
07/10/2015,HOUSING MANAGEMENT SERVICES,Mears Ltd,RESPONSIVE REPAIRS - BUILDING,"1,412.10","Works - Construction, Repair & Maint.Buildings.Repair & Maintenance"
07/10/2015,HOUSING MANAGEMENT SERVICES,Mears Ltd,RESPONSIVE REPAIRS - BUILDING,"1,397.94","Works - Construction, Repair & Maint.Buildings.Repair & Maintenance"
07/10/2015,HOUSING MANAGEMENT SERVICES,Mears Ltd,RESPONSIVE REPAIRS - BUILDING,"1,397.94","Works - Construction, Repair & Maint.Buildings.Repair & Maintenance"
07/10/2015,HOUSING MANAGEMENT SERVICES,Mears Ltd,RESPONSIVE REPAIRS - BUILDING,"1,321.20","Works - Construction, Repair & Maint.Buildings.Repair & Maintenance"
07/10/2015,HOUSING MANAGEMENT SERVICES,Openview Security Solutions Ltd,RESPONSIVE REPAIRS - MECHANICAL AND ELECTRICAL,"1,260.00",Facilities & Management Services.Security.Closed-Circuit Television
07/10/2015,ADULT SOCIAL CARE,Bluebird Care Lambeth,DOMICILIARY CARE - THIRD PARTY,"1,256.00",Social Community Care Supplies & Service.Adult.Domiciliary Care
07/10/2015,HOUSING MANAGEMENT SERVICES,Mears Ltd,RESPONSIVE REPAIRS - MECHANICAL AND ELECTRICAL,"1,250.48","Works - Construction, Repair & Maint.Buildings.Repair & Maintenance"
07/10/2015,CORPORATE ITEMS,Mears Ltd,MISCELLANEOUS EXPENSES,"1,247.94","Works - Construction, Repair & Maint.Buildings.Repair & Maintenance"
07/10/2015,ADULT SOCIAL CARE,Unique Personnel (Uk) Ltd,DOMICILIARY CARE - THIRD PARTY,"1,220.74",Social Community Care Supplies & Service.Disabled Children.NA
07/10/2015,HOUSING MANAGEMENT SERVICES,Masters Legal Costs Services,LEGAL FEES,"1,217.92",Legal Services.Advocacy.NA
07/10/2015,HOUSING MANAGEMENT SERVICES,Mears Ltd,RESPONSIVE REPAIRS - BUILDING,"1,217.25","Works - Construction, Repair & Maint.Buildings.Repair & Maintenance"
07/10/2015,HOUSING MANAGEMENT SERVICES,Mears Ltd,RESPONSIVE REPAIRS - BUILDING,"1,202.90","Works - Construction, Repair & Maint.Buildings.Repair & Maintenance"
07/10/2015,HOUSING MANAGEMENT SERVICES,Mears Ltd,RESPONSIVE REPAIRS - BUILDING,"1,202.90","Works - Construction, Repair & Maint.Buildings.Repair & Maintenance"
07/10/2015,HOUSING MANAGEMENT SERVICES,Mears Ltd,RESPONSIVE REPAIRS - BUILDING,"1,163.25","Works - Construction, Repair & Maint.Buildings.Repair & Maintenance"
07/10/2015,HOUSING MANAGEMENT SERVICES,Mears Ltd,RESPONSIVE REPAIRS - MECHANICAL AND ELECTRICAL,"1,154.43","Works - Construction, Repair & Maint.Buildings.Repair & Maintenance"
07/10/2015,HOUSING MANAGEMENT SERVICES,Mears Ltd,RESPONSIVE REPAIRS - MECHANICAL AND ELECTRICAL,"1,154.43","Works - Construction, Repair & Maint.Buildings.Repair & Maintenance"
07/10/2015,HOUSING MANAGEMENT SERVICES,Mears Ltd,RESPONSIVE REPAIRS - MECHANICAL AND ELECTRICAL,"1,149.79","Works - Construction, Repair & Maint.Buildings.Repair & Maintenance"
07/10/2015,HOUSING MANAGEMENT SERVICES,Mears Ltd,RESPONSIVE REPAIRS - MECHANICAL AND ELECTRICAL,"1,147.00","Works - Construction, Repair & Maint.Buildings.Repair & Maintenance"
07/10/2015,HOUSING MANAGEMENT SERVICES,Mears Ltd,RESPONSIVE REPAIRS - BUILDING,"1,144.47","Works - Construction, Repair & Maint.Buildings.Repair & Maintenance"
07/10/2015,HOUSING MANAGEMENT SERVICES,Mears Ltd,RESPONSIVE REPAIRS - BUILDING,"1,132.32","Works - Construction, Repair & Maint.Buildings.Repair & Maintenance"
07/10/2015,HOUSING MANAGEMENT SERVICES,Mears Ltd,RESPONSIVE REPAIRS - BUILDING,"1,130.00","Works - Construction, Repair & Maint.Buildings.Repair & Maintenance"
07/10/2015,ADULT SOCIAL CARE,Capital Homecare (UK) Ltd,DOMICILIARY CARE - THIRD PARTY,"1,118.24",Social Community Care Supplies & Service.Adult.Domiciliary Care
07/10/2015,ADULT SOCIAL CARE,Capital Homecare (UK) Ltd,DOMICILIARY CARE - THIRD PARTY,"1,118.24",Social Community Care Supplies & Service.Adult.Domiciliary Care
07/10/2015,ADULT SOCIAL CARE,Capital Homecare (UK) Ltd,DOMICILIARY CARE - THIRD PARTY,"1,118.24",Social Community Care Supplies & Service.Adult.Domiciliary Care
07/10/2015,HOUSING MANAGEMENT SERVICES,Mears Ltd,RESPONSIVE REPAIRS - BUILDING,"1,106.88","Works - Construction, Repair & Maint.Buildings.Repair & Maintenance"
07/10/2015,HOUSING MANAGEMENT SERVICES,Mears Ltd,RESPONSIVE REPAIRS - BUILDING,"1,095.60","Works - Construction, Repair & Maint.Buildings.Repair & Maintenance"
07/10/2015,ADULT SOCIAL CARE,Bluebird Care Lambeth,DOMICILIARY CARE - THIRD PARTY,"1,092.00",Social Community Care Supplies & Service.Adult.Domiciliary Care
07/10/2015,ADULT SOCIAL CARE,Stockwellcare Support Services Ltd,DOMICILIARY CARE - THIRD PARTY,"1,071.96",Healthcare.Public Health.NA
07/10/2015,HOUSING MANAGEMENT SERVICES,Mears Ltd,RESPONSIVE REPAIRS - BUILDING,"1,034.00","Works - Construction, Repair & Maint.Buildings.Repair & Maintenance"
07/10/2015,HOUSING MANAGEMENT SERVICES,Mears Ltd,RESPONSIVE REPAIRS - BUILDING,"1,029.64","Works - Construction, Repair & Maint.Buildings.Repair & Maintenance"
07/10/2015,HOUSING MANAGEMENT SERVICES,Mears Ltd,RESPONSIVE REPAIRS - BUILDING,"1,013.20","Works - Construction, Repair & Maint.Buildings.Repair & Maintenance"
07/10/2015,HOUSING MANAGEMENT SERVICES,Mears Ltd,RESPONSIVE REPAIRS - BUILDING,"1,005.55","Works - Construction, Repair & Maint.Buildings.Repair & Maintenance"
07/10/2015,CHILDREN'S SERVICES,Kwango Ltd,PROFESSIONAL SERVICES - GENERAL,995.00,Education.School Services.NA
07/10/2015,HOUSING MANAGEMENT SERVICES,Mears Ltd,RESPONSIVE REPAIRS - BUILDING,990.90,"Works - Construction, Repair & Maint.Buildings.Repair & Maintenance"
07/10/2015,CORPORATE ITEMS,Mears Ltd,MISCELLANEOUS EXPENSES,990.00,"Works - Construction, Repair & Maint.Buildings.Repair & Maintenance"
07/10/2015,CORPORATE ITEMS,Mears Ltd,MISCELLANEOUS EXPENSES,988.36,"Works - Construction, Repair & Maint.Buildings.Repair & Maintenance"
07/10/2015,HOUSING MANAGEMENT SERVICES,Mears Ltd,RESPONSIVE REPAIRS - BUILDING,985.00,"Works - Construction, Repair & Maint.Buildings.Repair & Maintenance"
07/10/2015,HOUSING MANAGEMENT SERVICES,Mears Ltd,OPEN SPACES WORKS,978.51,"Works - Construction, Repair & Maint.Buildings.Repair & Maintenance"
07/10/2015,HOUSING MANAGEMENT SERVICES,Mears Ltd,RESPONSIVE REPAIRS - BUILDING,950.00,"Works - Construction, Repair & Maint.Buildings.Repair & Maintenance"
07/10/2015,HOUSING MANAGEMENT SERVICES,Mears Ltd,RESPONSIVE REPAIRS - MECHANICAL AND ELECTRICAL,950.00,"Works - Construction, Repair & Maint.Buildings.Repair & Maintenance"
07/10/2015,HOUSING MANAGEMENT SERVICES,Mears Ltd,RESPONSIVE REPAIRS - BUILDING,944.96,"Works - Construction, Repair & Maint.Buildings.Repair & Maintenance"
07/10/2015,HOUSING MANAGEMENT SERVICES,Mears Ltd,RESPONSIVE REPAIRS - BUILDING,944.96,"Works - Construction, Repair & Maint.Buildings.Repair & Maintenance"
07/10/2015,HOUSING MANAGEMENT SERVICES,Mears Ltd,RESPONSIVE REPAIRS - BUILDING,939.01,"Works - Construction, Repair & Maint.Buildings.Repair & Maintenance"
07/10/2015,HOUSING MANAGEMENT SERVICES,Mears Ltd,RESPONSIVE REPAIRS - BUILDING,937.50,"Works - Construction, Repair & Maint.Buildings.Repair & Maintenance"
07/10/2015,ADULT SOCIAL CARE,Stockwellcare Support Services Ltd,DOMICILIARY CARE - THIRD PARTY,924.64,Healthcare.Public Health.NA
07/10/2015,HOUSING MANAGEMENT SERVICES,Mears Ltd,RESPONSIVE REPAIRS - BUILDING,920.60,"Works - Construction, Repair & Maint.Buildings.Repair & Maintenance"
07/10/2015,HOUSING MANAGEMENT SERVICES,Mears Ltd,RESPONSIVE REPAIRS - BUILDING,920.60,"Works - Construction, Repair & Maint.Buildings.Repair & Maintenance"
07/10/2015,HOUSING MANAGEMENT SERVICES,Mears Ltd,RESPONSIVE REPAIRS - BUILDING,920.60,"Works - Construction, Repair & Maint.Buildings.Repair & Maintenance"
07/10/2015,HOUSING MANAGEMENT SERVICES,Mears Ltd,RESPONSIVE REPAIRS - BUILDING,920.60,"Works - Construction, Repair & Maint.Buildings.Repair & Maintenance"
07/10/2015,HOUSING MANAGEMENT SERVICES,Mears Ltd,RESPONSIVE REPAIRS - BUILDING,920.60,"Works - Construction, Repair & Maint.Buildings.Repair & Maintenance"
07/10/2015,HOUSING MANAGEMENT SERVICES,Mears Ltd,RESPONSIVE REPAIRS - MECHANICAL AND ELECTRICAL,919.52,"Works - Construction, Repair & Maint.Buildings.Repair & Maintenance"
07/10/2015,HOUSING MANAGEMENT SERVICES,Mears Ltd,RESPONSIVE REPAIRS - MECHANICAL AND ELECTRICAL,907.16,"Works - Construction, Repair & Maint.Buildings.Repair & Maintenance"
07/10/2015,HOUSING MANAGEMENT SERVICES,Mears Ltd,RESPONSIVE REPAIRS - MECHANICAL AND ELECTRICAL,907.16,"Works - Construction, Repair & Maint.Buildings.Repair & Maintenance"
07/10/2015,HOUSING MANAGEMENT SERVICES,Mears Ltd,RESPONSIVE REPAIRS - BUILDING,904.22,"Works - Construction, Repair & Maint.Buildings.Repair & Maintenance"
07/10/2015,HOUSING MANAGEMENT SERVICES,Mears Ltd,OPEN SPACES WORKS,903.24,"Works - Construction, Repair & Maint.Buildings.Repair & Maintenance"
07/10/2015,ADULT SOCIAL CARE,Bluebird Care Lambeth,DOMICILIARY CARE - THIRD PARTY,896.00,Social Community Care Supplies & Service.Adult.Domiciliary Care
07/10/2015,HOUSING MANAGEMENT SERVICES,Mears Ltd,RESPONSIVE REPAIRS - MECHANICAL AND ELECTRICAL,891.30,"Works - Construction, Repair & Maint.Buildings.Repair & Maintenance"
07/10/2015,HOUSING MANAGEMENT SERVICES,Mears Ltd,RESPONSIVE REPAIRS - MECHANICAL AND ELECTRICAL,886.30,"Works - Construction, Repair & Maint.Buildings.Repair & Maintenance"
07/10/2015,HOUSING MANAGEMENT SERVICES,Mears Ltd,RESPONSIVE REPAIRS - BUILDING,866.65,"Works - Construction, Repair & Maint.Buildings.Repair & Maintenance"
07/10/2015,HOUSING MANAGEMENT SERVICES,Mears Ltd,DECORATION,864.76,"Works - Construction, Repair & Maint.Buildings.Repair & Maintenance"
07/10/2015,ADULT SOCIAL CARE,Unique Personnel (Uk) Ltd,DOMICILIARY CARE - THIRD PARTY,861.00,Social Community Care Supplies & Service.Disabled Children.NA
07/10/2015,HOUSING MANAGEMENT SERVICES,Mears Ltd,RESPONSIVE REPAIRS - BUILDING,850.08,"Works - Construction, Repair & Maint.Buildings.Repair & Maintenance"
07/10/2015,HOUSING MANAGEMENT SERVICES,Mears Ltd,RESPONSIVE REPAIRS - BUILDING,849.66,"Works - Construction, Repair & Maint.Buildings.Repair & Maintenance"
07/10/2015,HOUSING MANAGEMENT SERVICES,Mears Ltd,OPEN SPACES WORKS,821.40,"Works - Construction, Repair & Maint.Buildings.Repair & Maintenance"
07/10/2015,HOUSING MANAGEMENT SERVICES,Mears Ltd,DECORATION,819.60,"Works - Construction, Repair & Maint.Buildings.Repair & Maintenance"
07/10/2015,HOUSING MANAGEMENT SERVICES,Mears Ltd,RESPONSIVE REPAIRS - BUILDING,818.10,"Works - Construction, Repair & Maint.Buildings.Repair & Maintenance"
07/10/2015,HOUSING MANAGEMENT SERVICES,Mears Ltd,RESPONSIVE REPAIRS - MECHANICAL AND ELECTRICAL,812.50,"Works - Construction, Repair & Maint.Buildings.Repair & Maintenance"
07/10/2015,HOUSING MANAGEMENT SERVICES,Maynard Associates Ltd,LEGAL FEES,810.30,Legal Services.Advocacy.NA
07/10/2015,HOUSING MANAGEMENT SERVICES,Mears Ltd,RESPONSIVE REPAIRS - MECHANICAL AND ELECTRICAL,804.84,"Works - Construction, Repair & Maint.Buildings.Repair & Maintenance"
07/10/2015,HOUSING MANAGEMENT SERVICES,Mears Ltd,RESPONSIVE REPAIRS - MECHANICAL AND ELECTRICAL,803.08,"Works - Construction, Repair & Maint.Buildings.Repair & Maintenance"
07/10/2015,HOUSING MANAGEMENT SERVICES,Mears Ltd,RESPONSIVE REPAIRS - MECHANICAL AND ELECTRICAL,802.90,"Works - Construction, Repair & Maint.Buildings.Repair & Maintenance"
07/10/2015,HOUSING MANAGEMENT SERVICES,Mears Ltd,RESPONSIVE REPAIRS - BUILDING,800.00,"Works - Construction, Repair & Maint.Buildings.Repair & Maintenance"
07/10/2015,HOUSING MANAGEMENT SERVICES,Mears Ltd,RESPONSIVE REPAIRS - MECHANICAL AND ELECTRICAL,798.44,"Works - Construction, Repair & Maint.Buildings.Repair & Maintenance"
07/10/2015,HOUSING MANAGEMENT SERVICES,Mears Ltd,RESPONSIVE REPAIRS - BUILDING,796.58,"Works - Construction, Repair & Maint.Buildings.Repair & Maintenance"
07/10/2015,HOUSING MANAGEMENT SERVICES,Mears Ltd,RESPONSIVE REPAIRS - BUILDING,796.58,"Works - Construction, Repair & Maint.Buildings.Repair & Maintenance"
07/10/2015,HOUSING MANAGEMENT SERVICES,Mears Ltd,RESPONSIVE REPAIRS - BUILDING,796.58,"Works - Construction, Repair & Maint.Buildings.Repair & Maintenance"
07/10/2015,HOUSING MANAGEMENT SERVICES,Mears Ltd,RESPONSIVE REPAIRS - BUILDING,796.58,"Works - Construction, Repair & Maint.Buildings.Repair & Maintenance"
07/10/2015,HOUSING MANAGEMENT SERVICES,Mears Ltd,RESPONSIVE REPAIRS - BUILDING,791.10,"Works - Construction, Repair & Maint.Buildings.Repair & Maintenance"
07/10/2015,ADULT SOCIAL CARE,Bluebird Care Lambeth,DOMICILIARY CARE - THIRD PARTY,784.00,Social Community Care Supplies & Service.Adult.Domiciliary Care
07/10/2015,ADULT SOCIAL CARE,Bluebird Care Lambeth,DOMICILIARY CARE - THIRD PARTY,784.00,Social Community Care Supplies & Service.Adult.Domiciliary Care
07/10/2015,CORPORATE ITEMS,Mears Ltd,MISCELLANEOUS EXPENSES,779.78,"Works - Construction, Repair & Maint.Buildings.Repair & Maintenance"
07/10/2015,HOUSING MANAGEMENT SERVICES,Mears Ltd,RESPONSIVE REPAIRS - BUILDING,773.08,"Works - Construction, Repair & Maint.Buildings.Repair & Maintenance"
07/10/2015,HOUSING MANAGEMENT SERVICES,Mears Ltd,RESPONSIVE REPAIRS - MECHANICAL AND ELECTRICAL,758.88,"Works - Construction, Repair & Maint.Buildings.Repair & Maintenance"
07/10/2015,ADULT SOCIAL CARE,Bluebird Care Lambeth,DOMICILIARY CARE - THIRD PARTY,756.00,Social Community Care Supplies & Service.Adult.Domiciliary Care
07/10/2015,HOUSING MANAGEMENT SERVICES,Mears Ltd,RESPONSIVE REPAIRS - BUILDING,753.44,"Works - Construction, Repair & Maint.Buildings.Repair & Maintenance"
07/10/2015,FINANCE,Jonathan Wills,LEGAL FEES,750.00,Legal Services.Advocacy.NA
07/10/2015,HOUSING MANAGEMENT SERVICES,Mathew Mcdermott,LEGAL FEES,750.00,Legal Services.Legal Opinion.NA
07/10/2015,HOUSING MANAGEMENT SERVICES,Mathew Mcdermott,LEGAL FEES,750.00,Legal Services.Legal Opinion.NA
07/10/2015,HOUSING MANAGEMENT SERVICES,Mears Ltd,RESPONSIVE REPAIRS - MECHANICAL AND ELECTRICAL,745.92,"Works - Construction, Repair & Maint.Buildings.Repair & Maintenance"
07/10/2015,HOUSING MANAGEMENT SERVICES,Masters Legal Costs Services,LEGAL FEES,739.74,Legal Services.Advocacy.NA
07/10/2015,HOUSING MANAGEMENT SERVICES,Mears Ltd,RESPONSIVE REPAIRS - BUILDING,738.67,"Works - Construction, Repair & Maint.Buildings.Repair & Maintenance"
07/10/2015,ADULT SOCIAL CARE,Stockwellcare Support Services Ltd,DOMICILIARY CARE - THIRD PARTY,736.12,Healthcare.Public Health.NA
07/10/2015,HOUSING MANAGEMENT SERVICES,Mears Ltd,RESPONSIVE REPAIRS - MECHANICAL AND ELECTRICAL,725.00,"Works - Construction, Repair & Maint.Buildings.Repair & Maintenance"
07/10/2015,HOUSING MANAGEMENT SERVICES,Mears Ltd,RESPONSIVE REPAIRS - BUILDING,716.02,"Works - Construction, Repair & Maint.Buildings.Repair & Maintenance"
07/10/2015,ADULT SOCIAL CARE,Carewatch (Lambeth),DOMICILIARY CARE - THIRD PARTY,712.36,Social Community Care Supplies & Service.Adult.Domiciliary Care
07/10/2015,HOUSING MANAGEMENT SERVICES,Mears Ltd,RESPONSIVE REPAIRS - BUILDING,709.44,"Works - Construction, Repair & Maint.Buildings.Repair & Maintenance"
07/10/2015,HOUSING MANAGEMENT SERVICES,Mears Ltd,RESPONSIVE REPAIRS - BUILDING,707.70,"Works - Construction, Repair & Maint.Buildings.Repair & Maintenance"
07/10/2015,HOUSING MANAGEMENT SERVICES,Mears Ltd,RESPONSIVE REPAIRS - BUILDING,707.70,"Works - Construction, Repair & Maint.Buildings.Repair & Maintenance"
07/10/2015,HOUSING MANAGEMENT SERVICES,Mears Ltd,RESPONSIVE REPAIRS - BUILDING,703.05,"Works - Construction, Repair & Maint.Buildings.Repair & Maintenance"
07/10/2015,HOUSING MANAGEMENT SERVICES,Mears Ltd,RESPONSIVE REPAIRS - BUILDING,701.71,"Works - Construction, Repair & Maint.Buildings.Repair & Maintenance"
07/10/2015,HOUSING MANAGEMENT SERVICES,Mears Ltd,RESPONSIVE REPAIRS - BUILDING,691.32,"Works - Construction, Repair & Maint.Buildings.Repair & Maintenance"
07/10/2015,ADULT SOCIAL CARE,Bluebird Care Lambeth,DOMICILIARY CARE - THIRD PARTY,689.00,Social Community Care Supplies & Service.Adult.Domiciliary Care
07/10/2015,HOUSING MANAGEMENT SERVICES,Mears Ltd,RESPONSIVE REPAIRS - BUILDING,687.95,"Works - Construction, Repair & Maint.Buildings.Repair & Maintenance"
07/10/2015,ADULT SOCIAL CARE,Bluebird Care Lambeth,DOMICILIARY CARE - THIRD PARTY,672.00,Social Community Care Supplies & Service.Adult.Domiciliary Care
07/10/2015,HOUSING MANAGEMENT SERVICES,Mears Ltd,RESPONSIVE REPAIRS - BUILDING,667.60,"Works - Construction, Repair & Maint.Buildings.Repair & Maintenance"
07/10/2015,HOUSING MANAGEMENT SERVICES,Mears Ltd,RESPONSIVE REPAIRS - BUILDING,667.60,"Works - Construction, Repair & Maint.Buildings.Repair & Maintenance"
07/10/2015,HOUSING MANAGEMENT SERVICES,Mears Ltd,RESPONSIVE REPAIRS - BUILDING,667.60,"Works - Construction, Repair & Maint.Buildings.Repair & Maintenance"
07/10/2015,HOUSING MANAGEMENT SERVICES,Mears Ltd,DECORATION,665.20,"Works - Construction, Repair & Maint.Buildings.Repair & Maintenance"
07/10/2015,HOUSING MANAGEMENT SERVICES,Mears Ltd,RESPONSIVE REPAIRS - BUILDING,662.74,"Works - Construction, Repair & Maint.Buildings.Repair & Maintenance"
07/10/2015,HOUSING MANAGEMENT SERVICES,Mears Ltd,RESPONSIVE REPAIRS - BUILDING,655.96,"Works - Construction, Repair & Maint.Buildings.Repair & Maintenance"
07/10/2015,HOUSING MANAGEMENT SERVICES,Mears Ltd,RESPONSIVE REPAIRS - BUILDING,653.71,"Works - Construction, Repair & Maint.Buildings.Repair & Maintenance"
07/10/2015,HOUSING MANAGEMENT SERVICES,Mears Ltd,RESPONSIVE REPAIRS - BUILDING,653.71,"Works - Construction, Repair & Maint.Buildings.Repair & Maintenance"
07/10/2015,HOUSING MANAGEMENT SERVICES,Mears Ltd,RESPONSIVE REPAIRS - BUILDING,653.71,"Works - Construction, Repair & Maint.Buildings.Repair & Maintenance"
07/10/2015,HOUSING MANAGEMENT SERVICES,D. Sully and Son Ltd,LEGAL FEES,650.00,Legal Services.Advocacy.NA
07/10/2015,HOUSING MANAGEMENT SERVICES,Mears Ltd,RESPONSIVE REPAIRS - MECHANICAL AND ELECTRICAL,647.40,"Works - Construction, Repair & Maint.Buildings.Repair & Maintenance"
07/10/2015,HOUSING MANAGEMENT SERVICES,Mears Ltd,RESPONSIVE REPAIRS - BUILDING,645.90,"Works - Construction, Repair & Maint.Buildings.Repair & Maintenance"
07/10/2015,HOUSING MANAGEMENT SERVICES,Mears Ltd,RESPONSIVE REPAIRS - BUILDING,645.90,"Works - Construction, Repair & Maint.Buildings.Repair & Maintenance"
07/10/2015,HOUSING MANAGEMENT SERVICES,Mears Ltd,RESPONSIVE REPAIRS - BUILDING,645.90,"Works - Construction, Repair & Maint.Buildings.Repair & Maintenance"
07/10/2015,HOUSING MANAGEMENT SERVICES,Mears Ltd,RESPONSIVE REPAIRS - BUILDING,645.90,"Works - Construction, Repair & Maint.Buildings.Repair & Maintenance"
07/10/2015,ADULT SOCIAL CARE,Unique Personnel (Uk) Ltd,DOMICILIARY CARE - THIRD PARTY,643.25,Social Community Care Supplies & Service.Disabled Children.NA
07/10/2015,CORPORATE ITEMS,Mears Ltd,MISCELLANEOUS EXPENSES,638.47,"Works - Construction, Repair & Maint.Buildings.Repair & Maintenance"
07/10/2015,HOUSING MANAGEMENT SERVICES,Mears Ltd,RESPONSIVE REPAIRS - BUILDING,637.56,"Works - Construction, Repair & Maint.Buildings.Repair & Maintenance"
07/10/2015,HOUSING MANAGEMENT SERVICES,Mears Ltd,RESPONSIVE REPAIRS - BUILDING,637.08,"Works - Construction, Repair & Maint.Buildings.Repair & Maintenance"
07/10/2015,HOUSING MANAGEMENT SERVICES,Openview Security Solutions Ltd,RESPONSIVE REPAIRS - MECHANICAL AND ELECTRICAL,626.59,Facilities & Management Services.Security.Closed-Circuit Television
07/10/2015,ADULT SOCIAL CARE,DACS Care & Repair,BUILDING ALTERATIONS AND MATERIALS,626.00,Building Construction Materials.Bathrooms.NA
07/10/2015,HOUSING MANAGEMENT SERVICES,Mears Ltd,RESPONSIVE REPAIRS - MECHANICAL AND ELECTRICAL,618.54,"Works - Construction, Repair & Maint.Buildings.Repair & Maintenance"
07/10/2015,ADULT SOCIAL CARE,Stockwellcare Support Services Ltd,DOMICILIARY CARE - THIRD PARTY,617.24,Healthcare.Public Health.NA
07/10/2015,HOUSING MANAGEMENT SERVICES,Mears Ltd,RESPONSIVE REPAIRS - BUILDING,613.73,"Works - Construction, Repair & Maint.Buildings.Repair & Maintenance"
07/10/2015,HOUSING MANAGEMENT SERVICES,Mears Ltd,RESPONSIVE REPAIRS - BUILDING,605.00,"Works - Construction, Repair & Maint.Buildings.Repair & Maintenance"
07/10/2015,ADULT SOCIAL CARE,Stockwellcare Support Services Ltd,DOMICILIARY CARE - THIRD PARTY,603.74,Healthcare.Public Health.NA
07/10/2015,HOUSING MANAGEMENT SERVICES,Iris Ferber,LEGAL FEES,600.00,Legal Services.Legal Opinion.NA
07/10/2015,HOUSING MANAGEMENT SERVICES,Desmond Kilcoyne,LEGAL FEES,600.00,Legal Services.Legal Opinion.NA
07/10/2015,HOUSING MANAGEMENT SERVICES,Desmond Kilcoyne,LEGAL FEES,600.00,Legal Services.Legal Opinion.NA
07/10/2015,HOUSING MANAGEMENT SERVICES,Mathew Mcdermott,LEGAL FEES,600.00,Legal Services.Legal Opinion.NA
07/10/2015,HOUSING MANAGEMENT SERVICES,Mears Ltd,RESPONSIVE REPAIRS - BUILDING,596.16,"Works - Construction, Repair & Maint.Buildings.Repair & Maintenance"
07/10/2015,HOUSING MANAGEMENT SERVICES,Mears Ltd,RESPONSIVE REPAIRS - MECHANICAL AND ELECTRICAL,593.52,"Works - Construction, Repair & Maint.Buildings.Repair & Maintenance"
07/10/2015,ADULT SOCIAL CARE,Capital Homecare (UK) Ltd,DOMICILIARY CARE - THIRD PARTY,593.52,Social Community Care Supplies & Service.Adult.Domiciliary Care
07/10/2015,HOUSING MANAGEMENT SERVICES,Mears Ltd,RESPONSIVE REPAIRS - BUILDING,584.28,"Works - Construction, Repair & Maint.Buildings.Repair & Maintenance"
07/10/2015,HOUSING MANAGEMENT SERVICES,Mears Ltd,RESPONSIVE REPAIRS - MECHANICAL AND ELECTRICAL,576.00,"Works - Construction, Repair & Maint.Buildings.Repair & Maintenance"
07/10/2015,HOUSING MANAGEMENT SERVICES,Mears Ltd,RESPONSIVE REPAIRS - BUILDING,573.48,"Works - Construction, Repair & Maint.Buildings.Repair & Maintenance"
07/10/2015,HOUSING MANAGEMENT SERVICES,Mears Ltd,RESPONSIVE REPAIRS - BUILDING,561.48,"Works - Construction, Repair & Maint.Buildings.Repair & Maintenance"
07/10/2015,HOUSING MANAGEMENT SERVICES,Masters Legal Costs Services,LEGAL FEES,560.81,Legal Services.Advocacy.NA
07/10/2015,ADULT SOCIAL CARE,Bluebird Care Lambeth,DOMICILIARY CARE - THIRD PARTY,560.00,Social Community Care Supplies & Service.Adult.Domiciliary Care
07/10/2015,HOUSING MANAGEMENT SERVICES,Mears Ltd,RESPONSIVE REPAIRS - BUILDING,559.80,"Works - Construction, Repair & Maint.Buildings.Repair & Maintenance"
07/10/2015,HOUSING MANAGEMENT SERVICES,Mears Ltd,RESPONSIVE REPAIRS - MECHANICAL AND ELECTRICAL,555.11,"Works - Construction, Repair & Maint.Buildings.Repair & Maintenance"
07/10/2015,CORPORATE ITEMS,Mears Ltd,MISCELLANEOUS EXPENSES,553.67,"Works - Construction, Repair & Maint.Buildings.Repair & Maintenance"
07/10/2015,ADULT SOCIAL CARE,Stockwellcare Support Services Ltd,DOMICILIARY CARE - THIRD PARTY,550.21,Healthcare.Public Health.NA
07/10/2015,CORPORATE ITEMS,Mears Ltd,MISCELLANEOUS EXPENSES,546.22,"Works - Construction, Repair & Maint.Buildings.Repair & Maintenance"
07/10/2015,HOUSING MANAGEMENT SERVICES,Legal Services-Urgent Payments,LEGAL FEES,545.00,Legal Services.Advocacy.NA
07/10/2015,HOUSING MANAGEMENT SERVICES,Legal Services-Urgent Payments,LEGAL FEES,545.00,Legal Services.Advocacy.NA
07/10/2015,HOUSING MANAGEMENT SERVICES,Mears Ltd,OPEN SPACES WORKS,541.55,"Works - Construction, Repair & Maint.Buildings.Repair & Maintenance"
07/10/2015,HOUSING MANAGEMENT SERVICES,Mears Ltd,RESPONSIVE REPAIRS - BUILDING,534.40,"Works - Construction, Repair & Maint.Buildings.Repair & Maintenance"
07/10/2015,ADULT SOCIAL CARE,Unique Personnel (Uk) Ltd,DOMICILIARY CARE - THIRD PARTY,531.25,Social Community Care Supplies & Service.Disabled Children.NA
07/10/2015,ADULT SOCIAL CARE,Capital Homecare (UK) Ltd,DOMICILIARY CARE - THIRD PARTY,529.84,Social Community Care Supplies & Service.Adult.Domiciliary Care
07/10/2015,HOUSING MANAGEMENT SERVICES,Mears Ltd,WATER AND SEWERAGE,528.22,"Works - Construction, Repair & Maint.Buildings.Repair & Maintenance"
07/10/2015,HOUSING MANAGEMENT SERVICES,Mears Ltd,RESPONSIVE REPAIRS - BUILDING,527.40,"Works - Construction, Repair & Maint.Buildings.Repair & Maintenance"
07/10/2015,HOUSING MANAGEMENT SERVICES,Mears Ltd,OPEN SPACES WORKS,526.89,"Works - Construction, Repair & Maint.Buildings.Repair & Maintenance"
07/10/2015,HOUSING MANAGEMENT SERVICES,Mears Ltd,RESPONSIVE REPAIRS - BUILDING,523.20,"Works - Construction, Repair & Maint.Buildings.Repair & Maintenance"
07/10/2015,HOUSING MANAGEMENT SERVICES,Mears Ltd,RESPONSIVE REPAIRS - MECHANICAL AND ELECTRICAL,501.80,"Works - Construction, Repair & Maint.Buildings.Repair & Maintenance"
07/10/2015,HOUSING MANAGEMENT SERVICES,Mears Ltd,RESPONSIVE REPAIRS - MECHANICAL AND ELECTRICAL,501.80,"Works - Construction, Repair & Maint.Buildings.Repair & Maintenance"
07/10/2015,HOUSING MANAGEMENT SERVICES,Mears Ltd,RESPONSIVE REPAIRS - MECHANICAL AND ELECTRICAL,501.80,"Works - Construction, Repair & Maint.Buildings.Repair & Maintenance"
07/10/2015,HOUSING MANAGEMENT SERVICES,Mears Ltd,RESPONSIVE REPAIRS - MECHANICAL AND ELECTRICAL,501.80,"Works - Construction, Repair & Maint.Buildings.Repair & Maintenance"
07/10/2015,HOUSING MANAGEMENT SERVICES,Mears Ltd,RESPONSIVE REPAIRS - MECHANICAL AND ELECTRICAL,501.80,"Works - Construction, Repair & Maint.Buildings.Repair & Maintenance"
07/10/2015,STRATEGY & COMMISSIONING - HOUSING & COMMUNITIES (HRA),Naomi Hawkes,LEGAL FEES,500.00,Legal Services.Legal Opinion.NA
08/10/2015,BUSINESS & CUSTOMER SERVICES,Cofely Workplace Ltd,FACILITIES MANAGEMENT,"209,256.21","Works - Construction, Repair & Maint.Buildings.Repair & Maintenance"
08/10/2015,BUSINESS & CUSTOMER SERVICES,Cofely Workplace Ltd,SECURITY SERVICES (EXCLUDING PREMISES),"115,733.84",Facilities & Management Services.Security.NA
08/10/2015,BUSINESS & CUSTOMER SERVICES,Cofely Workplace Ltd,CLEANING SERVICES,"92,458.09",Cleaning & Janitorial.Cleaning Service.Internal
08/10/2015,BUSINESS & CUSTOMER SERVICES,Cofely Workplace Ltd,SECURITY SERVICES (EXCLUDING PREMISES),"90,915.76",Facilities & Management Services.Security.NA
08/10/2015,BUSINESS & CUSTOMER SERVICES,Cofely Workplace Ltd,FACILITIES MANAGEMENT,"76,951.57","Works - Construction, Repair & Maint.Buildings.Repair & Maintenance"
08/10/2015,CHILDREN'S SERVICES,Whippersnappers CIC,PRIVATE CONTRACTORS PAYMENT - OTHER,"44,302.00",Social Community Care Supplies & Service.Children.NA
08/10/2015,FINANCE,Corona Energy,GAS,"41,038.22",Utilities.Gas.NA
08/10/2015,BUSINESS & CUSTOMER SERVICES,Cofely Workplace Ltd,FACILITIES MANAGEMENT,"32,728.63","Works - Construction, Repair & Maint.Buildings.Repair & Maintenance"
08/10/2015,ADULT SOCIAL CARE,Apetito Ltd,MEALS ON WHEELS - PRIVATE CONTRACTORS PAYMENT,"27,309.26",Catering.Social Care.NA
08/10/2015,ADULT SOCIAL CARE,Apetito Ltd,MEALS ON WHEELS - PRIVATE CONTRACTORS PAYMENT,"27,293.03",Catering.Social Care.NA
08/10/2015,EDUCATION & LEARNING,Kelly Executive,CLIENT TRANSPORT,"15,176.00",Public Transport.Taxi Services.NA
08/10/2015,EDUCATION & LEARNING,Kelly Executive,CLIENT TRANSPORT,"15,098.00",Public Transport.Taxi Services.NA
08/10/2015,BUSINESS & CUSTOMER SERVICES,Cofely Workplace Ltd,SECURITY SERVICES (EXCLUDING PREMISES),"14,393.45",Financial Services.Cash Collection.NA
08/10/2015,EDUCATION & LEARNING,Kelly Executive,CLIENT TRANSPORT,"14,046.00",Public Transport.Taxi Services.NA
08/10/2015,"REGENERATION, PLANNING & NEIGHBOURHOODS",Furnace Managed Services Ltd,BEREAVEMENT SERVICES EQUIPMENT,"12,093.00",Cemetery & Crematorium.Equipment.NA
08/10/2015,BUSINESS & CUSTOMER SERVICES,Cofely Workplace Ltd,CLEANING SERVICES,"11,624.44",Cleaning & Janitorial.Cleaning Service.Internal
08/10/2015,"REGENERATION, PLANNING & NEIGHBOURHOODS",Brand Amplifier,CONSULTANCY FEES,"5,670.00",Consultancy.Management.NA
08/10/2015,EDUCATION & LEARNING,Kelly Executive,CLIENT TRANSPORT,"5,470.00",Public Transport.Taxi Services.NA
08/10/2015,HOUSING NEEDS,Mr J K S Patel,PAYMENT TO PRIVATE SECTOR LANDLORDS (PSL),"5,151.46","Social Community Care Supplies & Service.Adult.Temporary Accommodation, Short Stay"
08/10/2015,MAJOR CAPITAL PROGRAMMES,Unique Office Solutions Ltd,"PURCHASE - EQUIPMENT, FURNITURE AND MATERIALS","4,952.92",Furniture & Soft Furnishings.Office Furniture.NA
08/10/2015,POLICY & COMMUNICATIONS,Paul Simpson,CONSULTANCY FEES,"4,730.00",Consultancy.Business.NA
08/10/2015,"REGENERATION, PLANNING & NEIGHBOURHOODS",Herne Hill Forum,CONSULTANCY FEES,"3,900.00",Consultancy.Business.NA
08/10/2015,"REGENERATION, PLANNING & NEIGHBOURHOODS",Viridor Waste Management Ltd,REFUSE COLLECTION,"3,724.57",Environmental Services.Waste Management.Waste Collection
08/10/2015,STRATEGY & COMMISSIONING - HOUSING & COMMUNITIES (HRA),British Gas,ELECTRICITY,"2,995.55",Utilities.Gas.NA
08/10/2015,HOUSING MANAGEMENT SERVICES,Echelon Consultancy Ltd,CONSULTANCY FEES,"2,880.00",Consultancy.Procurement.NA
08/10/2015,HOUSING MANAGEMENT SERVICES,Echelon Consultancy Ltd,CONSULTANCY FEES,"2,880.00",Consultancy.Procurement.NA
08/10/2015,FINANCE,Adair Auto Services Ltd,VEHICLE REPAIRS AND MAINTENANCE,"2,833.52",Vehicle Management.Maintenance.NA
08/10/2015,CAPITAL CC,Gardiner & Theobald LLP,PROFESSIONAL SERVICES - GENERAL,"2,625.00",Consultancy.Property.NA
08/10/2015,CAPITAL CC,Gardiner & Theobald LLP,PROFESSIONAL SERVICES - GENERAL,"2,625.00",Consultancy.Property.NA
08/10/2015,ADULT SOCIAL CARE,Marston Group Ltd,CATERING AND VENDING SUPPLIES,"2,350.50",Catering.Food & Beverages.NA
08/10/2015,ADULT SOCIAL CARE,Holistic Community Care Ltd,DOMICILIARY CARE - THIRD PARTY,"2,133.45",Social Community Care Supplies & Service.Adult.Domiciliary Care
08/10/2015,HOUSING MANAGEMENT SERVICES,British Gas,ELECTRICITY,"2,079.10",Utilities.Gas.NA
08/10/2015,ADULT SOCIAL CARE,Unique Personnel (Uk) Ltd,DOMICILIARY CARE - THIRD PARTY,"1,946.00",Social Community Care Supplies & Service.Disabled Children.NA
08/10/2015,ADULT SOCIAL CARE,Holistic Community Care Ltd,DOMICILIARY CARE - THIRD PARTY,"1,551.60",Social Community Care Supplies & Service.Adult.Domiciliary Care
08/10/2015,ADULT SOCIAL CARE,Holistic Community Care Ltd,DOMICILIARY CARE - THIRD PARTY,"1,508.50",Social Community Care Supplies & Service.Adult.Domiciliary Care
08/10/2015,BUSINESS & CUSTOMER SERVICES,Cofely Workplace Ltd,SECURITY SERVICES (EXCLUDING PREMISES),"1,350.00",Financial Services.Cash Collection.NA
08/10/2015,ADULT SOCIAL CARE,Red Alert Ltd,PRIVATE CONTRACTORS PAYMENT - OTHER,"1,250.00",Social Community Care Supplies & Service.Adult.Residential Care
08/10/2015,"REGENERATION, PLANNING & NEIGHBOURHOODS",Furnace Managed Services Ltd,BEREAVEMENT SERVICES EQUIPMENT,"1,110.88",Cemetery & Crematorium.Equipment.NA
08/10/2015,FINANCE,Adair Auto Services Ltd,VEHICLE REPAIRS AND MAINTENANCE,"1,079.88",Vehicle Management.Maintenance.NA
08/10/2015,ADULT SOCIAL CARE,Holistic Community Care Ltd,DOMICILIARY CARE - THIRD PARTY,"1,034.40",Social Community Care Supplies & Service.Adult.Domiciliary Care
08/10/2015,ADULT SOCIAL CARE,Holistic Community Care Ltd,DOMICILIARY CARE - THIRD PARTY,"1,025.78",Social Community Care Supplies & Service.Adult.Domiciliary Care
08/10/2015,ADULT SOCIAL CARE,Holistic Community Care Ltd,DOMICILIARY CARE - THIRD PARTY,982.68,Social Community Care Supplies & Service.Adult.Domiciliary Care
08/10/2015,ADULT SOCIAL CARE,Holistic Community Care Ltd,DOMICILIARY CARE - THIRD PARTY,982.68,Social Community Care Supplies & Service.Adult.Domiciliary Care
08/10/2015,ADULT SOCIAL CARE,Holistic Community Care Ltd,DOMICILIARY CARE - THIRD PARTY,965.44,Social Community Care Supplies & Service.Adult.Domiciliary Care
08/10/2015,ADULT SOCIAL CARE,Holistic Community Care Ltd,DOMICILIARY CARE - THIRD PARTY,913.72,Social Community Care Supplies & Service.Adult.Domiciliary Care
08/10/2015,ADULT SOCIAL CARE,Stockwellcare Support Services Ltd,DOMICILIARY CARE - THIRD PARTY,901.34,Healthcare.Public Health.NA
08/10/2015,ADULT SOCIAL CARE,Holistic Community Care Ltd,DOMICILIARY CARE - THIRD PARTY,896.48,Social Community Care Supplies & Service.Adult.Domiciliary Care
08/10/2015,ADULT SOCIAL CARE,Stockwellcare Support Services Ltd,DOMICILIARY CARE - THIRD PARTY,890.21,Healthcare.Public Health.NA
08/10/2015,ADULT SOCIAL CARE,Holistic Community Care Ltd,DOMICILIARY CARE - THIRD PARTY,853.38,Social Community Care Supplies & Service.Adult.Domiciliary Care
08/10/2015,ADULT SOCIAL CARE,Holistic Community Care Ltd,DOMICILIARY CARE - THIRD PARTY,844.76,Social Community Care Supplies & Service.Adult.Domiciliary Care
08/10/2015,CHILDREN'S SERVICES,Joan Williams,SUBSISTENCE,844.47,Human Resources.Travel & Subsistence.NA
08/10/2015,ADULT SOCIAL CARE,Stockwellcare Support Services Ltd,DOMICILIARY CARE - THIRD PARTY,821.06,Healthcare.Public Health.NA
08/10/2015,ADULT SOCIAL CARE,Stockwellcare Support Services Ltd,DOMICILIARY CARE - THIRD PARTY,821.06,Healthcare.Public Health.NA
08/10/2015,ADULT SOCIAL CARE,Red Alert Ltd,PRIVATE CONTRACTORS PAYMENT - OTHER,809.35,Social Community Care Supplies & Service.Adult.Residential Care
08/10/2015,CORPORATE AFFAIRS,Michael O'Reilly,LEGAL FEES,789.00,Legal Services.General Support.NA
08/10/2015,ADULT SOCIAL CARE,Unique Personnel (Uk) Ltd,DOMICILIARY CARE - THIRD PARTY,784.00,Social Community Care Supplies & Service.Disabled Children.NA
08/10/2015,ADULT SOCIAL CARE,Capital Homecare (UK) Ltd,DOMICILIARY CARE - THIRD PARTY,774.83,Social Community Care Supplies & Service.Adult.Domiciliary Care
08/10/2015,ADULT SOCIAL CARE,Capital Homecare (UK) Ltd,DOMICILIARY CARE - THIRD PARTY,771.34,Social Community Care Supplies & Service.Adult.Domiciliary Care
08/10/2015,ADULT SOCIAL CARE,Capital Homecare (UK) Ltd,DOMICILIARY CARE - THIRD PARTY,771.34,Social Community Care Supplies & Service.Adult.Domiciliary Care
08/10/2015,ADULT SOCIAL CARE,Capital Homecare (UK) Ltd,DOMICILIARY CARE - THIRD PARTY,771.34,Social Community Care Supplies & Service.Adult.Domiciliary Care
08/10/2015,ADULT SOCIAL CARE,Capital Homecare (UK) Ltd,DOMICILIARY CARE - THIRD PARTY,771.34,Social Community Care Supplies & Service.Adult.Domiciliary Care
08/10/2015,ADULT SOCIAL CARE,Capital Homecare (UK) Ltd,DOMICILIARY CARE - THIRD PARTY,771.34,Social Community Care Supplies & Service.Adult.Domiciliary Care
08/10/2015,ADULT SOCIAL CARE,Longreach,DAYCARE - PRIVATE CONTRACTORS PAYMENT,750.00,Social Community Care Supplies & Service.Adult.Alcohol & Drug Rehabilitation
08/10/2015,ADULT SOCIAL CARE,Stockwellcare Support Services Ltd,DOMICILIARY CARE - THIRD PARTY,740.78,Healthcare.Public Health.NA
08/10/2015,"STRATEGY & COMMISSIONING - CHILDREN, DISABILITIES & PUBLIC HEALTH",Safe & Sound,STAFF DEVELOPMENT AND TRAINING,735.00,Human Resources.Training & Conferences.Training
08/10/2015,ADULT SOCIAL CARE,Capital Homecare (UK) Ltd,DOMICILIARY CARE - THIRD PARTY,723.31,Social Community Care Supplies & Service.Adult.Domiciliary Care
08/10/2015,ADULT SOCIAL CARE,Holistic Community Care Ltd,DOMICILIARY CARE - THIRD PARTY,711.15,Social Community Care Supplies & Service.Adult.Domiciliary Care
08/10/2015,CORPORATE AFFAIRS,Mandy Plummer,ARTS AND LEISURE COSTS,680.00,Arts & Leisure Services.Outsourced Service.NA
08/10/2015,ADULT SOCIAL CARE,Unique Personnel (Uk) Ltd,DOMICILIARY CARE - THIRD PARTY,666.50,Social Community Care Supplies & Service.Disabled Children.NA
08/10/2015,ADULT SOCIAL CARE,Unique Personnel (Uk) Ltd,DOMICILIARY CARE - THIRD PARTY,639.00,Social Community Care Supplies & Service.Disabled Children.NA
08/10/2015,ADULT SOCIAL CARE,Holistic Community Care Ltd,DOMICILIARY CARE - THIRD PARTY,637.88,Social Community Care Supplies & Service.Adult.Domiciliary Care
08/10/2015,ADULT SOCIAL CARE,Holistic Community Care Ltd,DOMICILIARY CARE - THIRD PARTY,629.26,Social Community Care Supplies & Service.Adult.Domiciliary Care
08/10/2015,ADULT SOCIAL CARE,Holistic Community Care Ltd,DOMICILIARY CARE - THIRD PARTY,629.26,Social Community Care Supplies & Service.Adult.Domiciliary Care
08/10/2015,ADULT SOCIAL CARE,Unique Personnel (Uk) Ltd,DOMICILIARY CARE - THIRD PARTY,624.75,Social Community Care Supplies & Service.Disabled Children.NA
08/10/2015,ADULT SOCIAL CARE,Holistic Community Care Ltd,DOMICILIARY CARE - THIRD PARTY,620.64,Social Community Care Supplies & Service.Adult.Domiciliary Care
08/10/2015,ADULT SOCIAL CARE,Holistic Community Care Ltd,DOMICILIARY CARE - THIRD PARTY,612.02,Social Community Care Supplies & Service.Adult.Domiciliary Care
08/10/2015,ADULT SOCIAL CARE,Holistic Community Care Ltd,DOMICILIARY CARE - THIRD PARTY,581.85,Social Community Care Supplies & Service.Adult.Domiciliary Care
08/10/2015,ADULT SOCIAL CARE,Holistic Community Care Ltd,DOMICILIARY CARE - THIRD PARTY,521.51,Social Community Care Supplies & Service.Adult.Domiciliary Care
08/10/2015,ADULT SOCIAL CARE,Holistic Community Care Ltd,DOMICILIARY CARE - THIRD PARTY,517.20,Social Community Care Supplies & Service.Adult.Domiciliary Care
08/10/2015,CHILDREN'S SERVICES,Back Care Solutions Ltd,HEALTH AND SAFETY WORKS,514.01,Health & Safety.Products.NA
08/10/2015,HOUSING MANAGEMENT SERVICES,Echelon Consultancy Ltd,CONSULTANCY FEES,512.00,Consultancy.Procurement.NA
08/10/2015,BUSINESS & CUSTOMER SERVICES,Cofely Workplace Ltd,FACILITIES MANAGEMENT,"(6,504.81)","Works - Construction, Repair & Maint.Buildings.Repair & Maintenance"
08/10/2015,ADULT SOCIAL CARE,Apetito Ltd,ADULT PAID MEALS INCOME,"(7,800.00)",Catering.Social Care.NA
08/10/2015,ADULT SOCIAL CARE,Apetito Ltd,ADULT PAID MEALS INCOME,"(7,854.00)",Catering.Social Care.NA
08/10/2015,CAPITAL CC,Igloo Regeneration Limited,"MAINTENANCE - EQUIPMENT, FURNITURE AND MATERIALS","(103,267.00)","Works - Construction, Repair & Maint.Consultancy.NA"
09/10/2015,"STRATEGY & COMMISSIONING - CHILDREN, DISABILITIES & PUBLIC HEALTH",Oasis Childrens Venture,PRIVATE CONTRACTORS PAYMENT - OTHER,"47,426.00",Social Community Care Supplies & Service.Children.Childcare Services
09/10/2015,CORPORATE AFFAIRS,PricewaterhouseCoopers LLP,AUDIT FEES,"30,000.00",Financial Services.Audit.NA
09/10/2015,CORPORATE AFFAIRS,PricewaterhouseCoopers LLP,AUDIT FEES,"30,000.00",Financial Services.Audit.NA
09/10/2015,STRATEGY & COMMISSIONING - HOUSING & COMMUNITIES,Streatham Common Community Operations Ltd_d,FACILITIES MANAGEMENT,"25,000.00",Facilities & Management Services.Property Management.NA
09/10/2015,EDUCATION & LEARNING,Healthcare & Transport Services,CLIENT TRANSPORT,"9,736.80",Public Transport.Taxi Services.NA
09/10/2015,EDUCATION & LEARNING,Healthcare & Transport Services,CLIENT TRANSPORT,"8,692.70",Public Transport.Taxi Services.NA
09/10/2015,EDUCATION & LEARNING,Healthcare & Transport Services,CLIENT TRANSPORT,"7,163.20",Public Transport.Taxi Services.NA
09/10/2015,"REGENERATION, PLANNING & NEIGHBOURHOODS",Quarterbridge Project Management Ltd,CONSULTANCY FEES,"6,446.20",Consultancy.Strategic Planning.NA
09/10/2015,CAPITAL CC,DACS Care & Repair,GRANTS AND CONTRIBUTIONS,"4,386.50",Financial Services.Grants.NA
09/10/2015,"STRATEGY & COMMISSIONING - CHILDREN, DISABILITIES & PUBLIC HEALTH",Dr Santamaria_d,PAYMENT TO HEALTH AUTHORITIES,"2,360.48",Healthcare.Public Health.NA
09/10/2015,ADULT SOCIAL CARE,Sevacare (UK) Ltd,DOMICILIARY CARE - THIRD PARTY,"2,266.92",Social Community Care Supplies & Service.Adult.Residential Care
09/10/2015,HOUSING MANAGEMENT SERVICES,MMP Consultancy Ltd,STAFF RECRUITMENT COSTS,"1,925.00",Human Resources.Recruitment & Assessment.NA
09/10/2015,HOUSING MANAGEMENT SERVICES,MMP Consultancy Ltd,STAFF RECRUITMENT COSTS,"1,925.00",Human Resources.Recruitment & Assessment.NA
09/10/2015,HOUSING MANAGEMENT SERVICES,MMP Consultancy Ltd,STAFF RECRUITMENT COSTS,"1,925.00",Human Resources.Recruitment & Assessment.NA
09/10/2015,HOUSING MANAGEMENT SERVICES,MMP Consultancy Ltd,STAFF RECRUITMENT COSTS,"1,925.00",Human Resources.Recruitment & Assessment.NA
09/10/2015,HOUSING MANAGEMENT SERVICES,MMP Consultancy Ltd,STAFF RECRUITMENT COSTS,"1,925.00",Human Resources.Recruitment & Assessment.NA
09/10/2015,HOUSING MANAGEMENT SERVICES,MMP Consultancy Ltd,STAFF RECRUITMENT COSTS,"1,925.00",Human Resources.Recruitment & Assessment.NA
09/10/2015,HOUSING MANAGEMENT SERVICES,MMP Consultancy Ltd,STAFF RECRUITMENT COSTS,"1,925.00",Human Resources.Recruitment & Assessment.NA
09/10/2015,"REGENERATION, PLANNING & NEIGHBOURHOODS",Sita UK Ltd,WASTE DISPOSAL COSTS,"1,743.00",Environmental Services.Waste Management.Waste Disposal
09/10/2015,"STRATEGY & COMMISSIONING - CHILDREN, DISABILITIES & PUBLIC HEALTH",Dr Santamaria_d,PAYMENT TO HEALTH AUTHORITIES,"1,728.59",Healthcare.Public Health.NA
09/10/2015,HOUSING MANAGEMENT SERVICES,MMP Consultancy Ltd,STAFF RECRUITMENT COSTS,"1,668.40",Human Resources.Recruitment & Assessment.NA
09/10/2015,HOUSING MANAGEMENT SERVICES,MMP Consultancy Ltd,STAFF RECRUITMENT COSTS,"1,668.40",Human Resources.Recruitment & Assessment.NA
09/10/2015,HOUSING MANAGEMENT SERVICES,MMP Consultancy Ltd,STAFF RECRUITMENT COSTS,"1,634.00",Human Resources.Recruitment & Assessment.NA
09/10/2015,HOUSING MANAGEMENT SERVICES,MMP Consultancy Ltd,STAFF RECRUITMENT COSTS,"1,599.60",Human Resources.Recruitment & Assessment.NA
09/10/2015,"REGENERATION, PLANNING & NEIGHBOURHOODS",Sita UK Ltd,WASTE DISPOSAL COSTS,"1,576.40",Environmental Services.Waste Management.Waste Disposal
09/10/2015,HOUSING MANAGEMENT SERVICES,MMP Consultancy Ltd,STAFF RECRUITMENT COSTS,"1,570.50",Human Resources.Recruitment & Assessment.NA
09/10/2015,HOUSING MANAGEMENT SERVICES,MMP Consultancy Ltd,STAFF RECRUITMENT COSTS,"1,565.20",Human Resources.Recruitment & Assessment.NA
09/10/2015,HOUSING MANAGEMENT SERVICES,MMP Consultancy Ltd,STAFF RECRUITMENT COSTS,"1,548.00",Human Resources.Recruitment & Assessment.NA
09/10/2015,HOUSING MANAGEMENT SERVICES,MMP Consultancy Ltd,STAFF RECRUITMENT COSTS,"1,548.00",Human Resources.Recruitment & Assessment.NA
09/10/2015,HOUSING MANAGEMENT SERVICES,MMP Consultancy Ltd,STAFF RECRUITMENT COSTS,"1,530.80",Human Resources.Recruitment & Assessment.NA
09/10/2015,CORPORATE AFFAIRS,PricewaterhouseCoopers LLP,AUDIT FEES,"1,500.00",Financial Services.Audit.NA
09/10/2015,HOUSING MANAGEMENT SERVICES,MMP Consultancy Ltd,STAFF RECRUITMENT COSTS,"1,435.00",Human Resources.Recruitment & Assessment.NA
09/10/2015,HOUSING MANAGEMENT SERVICES,MMP Consultancy Ltd,STAFF RECRUITMENT COSTS,"1,427.60",Human Resources.Recruitment & Assessment.NA
09/10/2015,HOUSING MANAGEMENT SERVICES,Bryan & Armstrong Ltd,STAFF RECRUITMENT COSTS,"1,425.00",Human Resources.Recruitment & Assessment.NA
09/10/2015,HOUSING MANAGEMENT SERVICES,Bryan & Armstrong Ltd,STAFF RECRUITMENT COSTS,"1,425.00",Human Resources.Recruitment & Assessment.NA
09/10/2015,HOUSING MANAGEMENT SERVICES,Bryan & Armstrong Ltd,STAFF RECRUITMENT COSTS,"1,425.00",Human Resources.Recruitment & Assessment.NA
09/10/2015,HOUSING MANAGEMENT SERVICES,Bryan & Armstrong Ltd,STAFF RECRUITMENT COSTS,"1,425.00",Human Resources.Recruitment & Assessment.NA
09/10/2015,HOUSING MANAGEMENT SERVICES,Bryan & Armstrong Ltd,STAFF RECRUITMENT COSTS,"1,425.00",Human Resources.Recruitment & Assessment.NA
09/10/2015,HOUSING MANAGEMENT SERVICES,Bryan & Armstrong Ltd,STAFF RECRUITMENT COSTS,"1,425.00",Human Resources.Recruitment & Assessment.NA
09/10/2015,HOUSING MANAGEMENT SERVICES,MMP Consultancy Ltd,STAFF RECRUITMENT COSTS,"1,414.50",Human Resources.Recruitment & Assessment.NA
09/10/2015,HOUSING MANAGEMENT SERVICES,MMP Consultancy Ltd,STAFF RECRUITMENT COSTS,"1,414.50",Human Resources.Recruitment & Assessment.NA
09/10/2015,HOUSING MANAGEMENT SERVICES,MMP Consultancy Ltd,STAFF RECRUITMENT COSTS,"1,404.25",Human Resources.Recruitment & Assessment.NA
09/10/2015,HOUSING MANAGEMENT SERVICES,MMP Consultancy Ltd,STAFF RECRUITMENT COSTS,"1,376.00",Human Resources.Recruitment & Assessment.NA
09/10/2015,HOUSING MANAGEMENT SERVICES,MMP Consultancy Ltd,STAFF RECRUITMENT COSTS,"1,376.00",Human Resources.Recruitment & Assessment.NA
09/10/2015,HOUSING MANAGEMENT SERVICES,MMP Consultancy Ltd,STAFF RECRUITMENT COSTS,"1,363.25",Human Resources.Recruitment & Assessment.NA
09/10/2015,HOUSING MANAGEMENT SERVICES,MMP Consultancy Ltd,STAFF RECRUITMENT COSTS,"1,349.00",Human Resources.Recruitment & Assessment.NA
09/10/2015,HOUSING MANAGEMENT SERVICES,MMP Consultancy Ltd,STAFF RECRUITMENT COSTS,"1,312.50",Human Resources.Recruitment & Assessment.NA
09/10/2015,HOUSING MANAGEMENT SERVICES,MMP Consultancy Ltd,STAFF RECRUITMENT COSTS,"1,312.50",Human Resources.Recruitment & Assessment.NA
09/10/2015,HOUSING MANAGEMENT SERVICES,MMP Consultancy Ltd,STAFF RECRUITMENT COSTS,"1,312.50",Human Resources.Recruitment & Assessment.NA
09/10/2015,HOUSING MANAGEMENT SERVICES,MMP Consultancy Ltd,STAFF RECRUITMENT COSTS,"1,307.20",Human Resources.Recruitment & Assessment.NA
09/10/2015,HOUSING MANAGEMENT SERVICES,MMP Consultancy Ltd,STAFF RECRUITMENT COSTS,"1,290.00",Human Resources.Recruitment & Assessment.NA
09/10/2015,HOUSING MANAGEMENT SERVICES,MMP Consultancy Ltd,STAFF RECRUITMENT COSTS,"1,290.00",Human Resources.Recruitment & Assessment.NA
09/10/2015,HOUSING MANAGEMENT SERVICES,MMP Consultancy Ltd,STAFF RECRUITMENT COSTS,"1,238.40",Human Resources.Recruitment & Assessment.NA
09/10/2015,HOUSING MANAGEMENT SERVICES,MMP Consultancy Ltd,STAFF RECRUITMENT COSTS,"1,231.00",Human Resources.Recruitment & Assessment.NA
09/10/2015,HOUSING MANAGEMENT SERVICES,MMP Consultancy Ltd,STAFF RECRUITMENT COSTS,"1,224.25",Human Resources.Recruitment & Assessment.NA
09/10/2015,"REGENERATION, PLANNING & NEIGHBOURHOODS",Sita UK Ltd,WASTE DISPOSAL COSTS,"1,223.60",Environmental Services.Waste Management.Waste Disposal
09/10/2015,EDUCATION & LEARNING,Healthcare & Transport Services,CLIENT TRANSPORT,"1,223.20",Public Transport.Taxi Services.NA
09/10/2015,HOUSING MANAGEMENT SERVICES,MMP Consultancy Ltd,STAFF RECRUITMENT COSTS,"1,219.75",Human Resources.Recruitment & Assessment.NA
09/10/2015,HOUSING MANAGEMENT SERVICES,MMP Consultancy Ltd,STAFF RECRUITMENT COSTS,"1,100.80",Human Resources.Recruitment & Assessment.NA
09/10/2015,HOUSING MANAGEMENT SERVICES,MMP Consultancy Ltd,STAFF RECRUITMENT COSTS,"1,096.75",Human Resources.Recruitment & Assessment.NA
09/10/2015,"REGENERATION, PLANNING & NEIGHBOURHOODS",Sita UK Ltd,WASTE DISPOSAL COSTS,"1,029.00",Environmental Services.Waste Management.Waste Disposal
09/10/2015,HOUSING MANAGEMENT SERVICES,Creative Connection Consultants,STAFF DEVELOPMENT AND TRAINING,"1,000.00",Human Resources.Training & Conferences.Training
09/10/2015,CHILDREN'S SERVICES,Hands Free Computing Ltd,ICT SOFTWARE,980.00,Information Communication Technology.Software.Commercial Off-The-Shelf
09/10/2015,ADULT SOCIAL CARE,Sevacare (UK) Ltd,DOMICILIARY CARE - THIRD PARTY,950.40,Social Community Care Supplies & Service.Adult.Residential Care
09/10/2015,HOUSING MANAGEMENT SERVICES,MMP Consultancy Ltd,STAFF RECRUITMENT COSTS,943.00,Human Resources.Recruitment & Assessment.NA
09/10/2015,HOUSING MANAGEMENT SERVICES,MMP Consultancy Ltd,STAFF RECRUITMENT COSTS,798.00,Human Resources.Recruitment & Assessment.NA
09/10/2015,HOUSING MANAGEMENT SERVICES,MMP Consultancy Ltd,STAFF RECRUITMENT COSTS,787.50,Human Resources.Recruitment & Assessment.NA
09/10/2015,HOUSING MANAGEMENT SERVICES,MMP Consultancy Ltd,STAFF RECRUITMENT COSTS,787.50,Human Resources.Recruitment & Assessment.NA
09/10/2015,HOUSING MANAGEMENT SERVICES,MMP Consultancy Ltd,STAFF RECRUITMENT COSTS,787.50,Human Resources.Recruitment & Assessment.NA
09/10/2015,HOUSING MANAGEMENT SERVICES,MMP Consultancy Ltd,STAFF RECRUITMENT COSTS,787.50,Human Resources.Recruitment & Assessment.NA
09/10/2015,HOUSING MANAGEMENT SERVICES,MMP Consultancy Ltd,STAFF RECRUITMENT COSTS,787.50,Human Resources.Recruitment & Assessment.NA
09/10/2015,HOUSING MANAGEMENT SERVICES,MMP Consultancy Ltd,STAFF RECRUITMENT COSTS,787.50,Human Resources.Recruitment & Assessment.NA
09/10/2015,"REGENERATION, PLANNING & NEIGHBOURHOODS",Sita UK Ltd,WASTE DISPOSAL COSTS,777.00,Environmental Services.Waste Management.Waste Disposal
09/10/2015,HOUSING MANAGEMENT SERVICES,MMP Consultancy Ltd,STAFF RECRUITMENT COSTS,777.00,Human Resources.Recruitment & Assessment.NA
09/10/2015,HOUSING MANAGEMENT SERVICES,MMP Consultancy Ltd,STAFF RECRUITMENT COSTS,777.00,Human Resources.Recruitment & Assessment.NA
09/10/2015,HOUSING MANAGEMENT SERVICES,MMP Consultancy Ltd,STAFF RECRUITMENT COSTS,770.00,Human Resources.Recruitment & Assessment.NA
09/10/2015,HOUSING MANAGEMENT SERVICES,MMP Consultancy Ltd,STAFF RECRUITMENT COSTS,770.00,Human Resources.Recruitment & Assessment.NA
09/10/2015,ADULT SOCIAL CARE,Sevacare (UK) Ltd,DOMICILIARY CARE - THIRD PARTY,757.44,Social Community Care Supplies & Service.Adult.Residential Care
09/10/2015,HOUSING MANAGEMENT SERVICES,MMP Consultancy Ltd,STAFF RECRUITMENT COSTS,735.00,Human Resources.Recruitment & Assessment.NA
09/10/2015,HOUSING MANAGEMENT SERVICES,MMP Consultancy Ltd,STAFF RECRUITMENT COSTS,735.00,Human Resources.Recruitment & Assessment.NA
09/10/2015,HOUSING MANAGEMENT SERVICES,MMP Consultancy Ltd,STAFF RECRUITMENT COSTS,735.00,Human Resources.Recruitment & Assessment.NA
09/10/2015,HOUSING MANAGEMENT SERVICES,MMP Consultancy Ltd,STAFF RECRUITMENT COSTS,735.00,Human Resources.Recruitment & Assessment.NA
09/10/2015,HOUSING MANAGEMENT SERVICES,MMP Consultancy Ltd,STAFF RECRUITMENT COSTS,735.00,Human Resources.Recruitment & Assessment.NA
09/10/2015,EDUCATION & LEARNING,Sw Energy Ltd,GAS,713.57,Utilities.Gas.NA
09/10/2015,HOUSING MANAGEMENT SERVICES,MMP Consultancy Ltd,STAFF RECRUITMENT COSTS,682.50,Human Resources.Recruitment & Assessment.NA
09/10/2015,ADULT SOCIAL CARE,DACS Care & Repair,BUILDING ALTERATIONS AND MATERIALS,630.00,Building Construction Materials.Bathrooms.NA
09/10/2015,HOUSING MANAGEMENT SERVICES,MMP Consultancy Ltd,STAFF RECRUITMENT COSTS,630.00,Human Resources.Recruitment & Assessment.NA
09/10/2015,HOUSING MANAGEMENT SERVICES,MMP Consultancy Ltd,STAFF RECRUITMENT COSTS,630.00,Human Resources.Recruitment & Assessment.NA
09/10/2015,HOUSING MANAGEMENT SERVICES,MMP Consultancy Ltd,STAFF RECRUITMENT COSTS,588.00,Human Resources.Recruitment & Assessment.NA
09/10/2015,"REGENERATION, PLANNING & NEIGHBOURHOODS",Sita UK Ltd,WASTE DISPOSAL COSTS,"(5,629.40)",Environmental Services.Waste Management.Waste Disposal
12/10/2015,"STRATEGY & COMMISSIONING - CHILDREN, DISABILITIES & PUBLIC HEALTH",South London & Maudsley (nhs) Trust,PRIVATE CONTRACTORS PAYMENT - OTHER,"2,128,416.53",Social Community Care Supplies & Service.Adult.NA
12/10/2015,CAPITAL CC,Breyer Group Plc_d,"MAINTENANCE - EQUIPMENT, FURNITURE AND MATERIALS","333,616.74","Works - Construction, Repair & Maint.Buildings.Construction"
12/10/2015,CAPITAL CC,Veolia Es Southwark Ltd,"MAINTENANCE - EQUIPMENT, FURNITURE AND MATERIALS","235,165.74","Works - Construction, Repair & Maint.Buildings.Construction"
12/10/2015,STRATEGY & COMMISSIONING - NEIGHBOURHOODS,South Bank Employers Group,CONSULTANCY FEES,"176,090.00",Consultancy.Strategic Planning.NA
12/10/2015,STRATEGY & COMMISSIONING - NEIGHBOURHOODS,South Bank Employers Group,CONSULTANCY FEES,"168,826.00",Consultancy.Strategic Planning.NA
12/10/2015,STRATEGY & COMMISSIONING - NEIGHBOURHOODS,South Bank Employers Group,CONSULTANCY FEES,"163,000.00",Consultancy.Strategic Planning.NA
12/10/2015,STRATEGY & COMMISSIONING - NEIGHBOURHOODS,South Bank Employers Group,CONSULTANCY FEES,"129,236.00",Consultancy.Strategic Planning.NA
12/10/2015,CHILDREN'S SERVICES,Youth Justice Board for England and Wales,RESIDENTIAL PLACEMENTS - PRIVATE CONTRACTORS PAYMENT,"58,646.00",Social Community Care Supplies & Service.Adult.Residential Homes for Older People
12/10/2015,CHILDREN'S SERVICES,Youth Justice Board for England and Wales,RESIDENTIAL PLACEMENTS - PRIVATE CONTRACTORS PAYMENT,"45,666.00",Social Community Care Supplies & Service.Adult.Residential Homes for Older People
12/10/2015,CAPITAL CC,Veolia Es Southwark Ltd,"MAINTENANCE - EQUIPMENT, FURNITURE AND MATERIALS","43,494.63","Works - Construction, Repair & Maint.Buildings.Construction"
12/10/2015,CHILDREN'S SERVICES,Merryvale Children's Home,RESIDENTIAL PLACEMENTS - PRIVATE CONTRACTORS PAYMENT,"35,500.00",Social Community Care Supplies & Service.Children.Residential Care
12/10/2015,CHILDREN'S SERVICES,Youth Justice Board for England and Wales,RESIDENTIAL PLACEMENTS - PRIVATE CONTRACTORS PAYMENT,"28,851.00",Social Community Care Supplies & Service.Adult.Residential Homes for Older People
12/10/2015,EDUCATION & LEARNING,Barnardo Services Ltd,PROFESSIONAL SERVICES - GENERAL,"28,034.00",Education.Educational Placements.NA
12/10/2015,CHILDREN'S SERVICES,Bryn Melyn Care Ltd,RESIDENTIAL PLACEMENTS - PRIVATE CONTRACTORS PAYMENT,"27,885.72",Social Community Care Supplies & Service.Adult.Residential Homes for Older People
12/10/2015,EDUCATION & LEARNING,Cressey Oasis Education Ltd,PROFESSIONAL SERVICES - GENERAL,"16,924.79",Education.School Services.NA
12/10/2015,EDUCATION & LEARNING,Kelly Executive,CLIENT TRANSPORT,"15,054.00",Public Transport.Taxi Services.NA
12/10/2015,EDUCATION & LEARNING,Hillcrest Autism Services Ltd,PROFESSIONAL SERVICES - GENERAL,"14,076.00",Education.Educational Placements.NA
12/10/2015,CHILDREN'S SERVICES,Youth Justice Board for England and Wales,RESIDENTIAL PLACEMENTS - PRIVATE CONTRACTORS PAYMENT,"13,629.00",Social Community Care Supplies & Service.Adult.Residential Homes for Older People
12/10/2015,EDUCATION & LEARNING,Cressey Oasis Education Ltd,PROFESSIONAL SERVICES - GENERAL,"13,063.72",Education.School Services.NA
12/10/2015,CHILDREN'S SERVICES,Care 2 Share 1 Ltd,RESIDENTIAL PLACEMENTS - PRIVATE CONTRACTORS PAYMENT,"9,000.00",Social Community Care Supplies & Service.Adult.Residential Care
12/10/2015,CHILDREN'S SERVICES,Youth Justice Board for England and Wales,RESIDENTIAL PLACEMENTS - PRIVATE CONTRACTORS PAYMENT,"8,850.00",Social Community Care Supplies & Service.Adult.Residential Homes for Older People
12/10/2015,CHILDREN'S SERVICES,Youth Justice Board for England and Wales,RESIDENTIAL PLACEMENTS - PRIVATE CONTRACTORS PAYMENT,"6,958.00",Social Community Care Supplies & Service.Adult.Residential Homes for Older People
12/10/2015,EDUCATION & LEARNING,Barnardo Services Ltd,PROFESSIONAL SERVICES - GENERAL,"6,754.20",Education.Educational Placements.NA
12/10/2015,CHILDREN'S SERVICES,3C's Creating Care Choices Ltd,RESIDENTIAL PLACEMENTS - PRIVATE CONTRACTORS PAYMENT,"6,314.13",Social Community Care Supplies & Service.Children.Residential Care
12/10/2015,EDUCATION & LEARNING,Michael J Davies,PROFESSIONAL SERVICES - GENERAL,"4,500.00",Education.Adult & Further Education Services.NA
12/10/2015,EDUCATION & LEARNING,Hillcrest Autism Services Ltd,PROFESSIONAL SERVICES - GENERAL,"4,066.41",Education.Educational Placements.NA
12/10/2015,FINANCE,BNP Paribas Real Estate,FACILITIES MANAGEMENT,"4,000.00",Facilities & Management Services.Property Management.NA
12/10/2015,HOUSING MANAGEMENT SERVICES,QK & Associates Ltd,CONSULTANCY FEES,"3,798.48",Consultancy.Management.Efficiency
12/10/2015,HOUSING MANAGEMENT SERVICES,QK & Associates Ltd,CONSULTANCY FEES,"3,198.72",Consultancy.Management.Efficiency
12/10/2015,"REGENERATION, PLANNING & NEIGHBOURHOODS",Parkeon Ltd,"PURCHASE - EQUIPMENT, FURNITURE AND MATERIALS","2,502.10",Street & Traffic Management.Parking.Equipment
12/10/2015,ADULT SOCIAL CARE,Amber Care (East Anglia) Ltd,DAYCARE - PRIVATE CONTRACTORS PAYMENT,"2,475.22",Social Community Care Supplies & Service.Adult.Day Care
12/10/2015,ADULT SOCIAL CARE,Sevacare (UK) Ltd,DOMICILIARY CARE - THIRD PARTY,"2,211.30",Social Community Care Supplies & Service.Adult.Residential Care
12/10/2015,HOUSING MANAGEMENT SERVICES,QK & Associates Ltd,CONSULTANCY FEES,"2,199.12",Consultancy.Management.Efficiency
12/10/2015,"REGENERATION, PLANNING & NEIGHBOURHOODS",The Electric Pedals Experience Ltd_d,ARTS AND LEISURE COSTS,"1,810.25",Arts & Leisure Services.Outsourced Service.NA
12/10/2015,"REGENERATION, PLANNING & NEIGHBOURHOODS",Thames Water Utilities Ltd_d,WATER AND SEWERAGE,"1,799.11",Environmental Services.Water Assessment & Treatment.NA
12/10/2015,CHILDREN'S SERVICES,Tilbury Taxis Plc,CLIENT TRANSPORT,"1,760.00",Public Transport.Taxi Services.NA
12/10/2015,ADULT SOCIAL CARE,Thames Homecare Ltd,DOMICILIARY CARE - THIRD PARTY,"1,720.80",Social Community Care Supplies & Service.Adult.Domiciliary Care
12/10/2015,ADULT SOCIAL CARE,Thames Homecare Ltd,DOMICILIARY CARE - THIRD PARTY,"1,673.00",Social Community Care Supplies & Service.Adult.Domiciliary Care
12/10/2015,ADULT SOCIAL CARE,Thames Homecare Ltd,DOMICILIARY CARE - THIRD PARTY,"1,673.00",Social Community Care Supplies & Service.Adult.Domiciliary Care
12/10/2015,ADULT SOCIAL CARE,Unique Personnel (Uk) Ltd,DOMICILIARY CARE - THIRD PARTY,"1,666.25",Social Community Care Supplies & Service.Disabled Children.NA
12/10/2015,CAPITAL CC,Veolia Es Southwark Ltd,"MAINTENANCE - EQUIPMENT, FURNITURE AND MATERIALS","1,660.00","Works - Construction, Repair & Maint.Buildings.Construction"
12/10/2015,ADULT SOCIAL CARE,Thames Homecare Ltd,DOMICILIARY CARE - THIRD PARTY,"1,505.70",Social Community Care Supplies & Service.Adult.Domiciliary Care
12/10/2015,ADULT SOCIAL CARE,Thames Homecare Ltd,DOMICILIARY CARE - THIRD PARTY,"1,422.05",Social Community Care Supplies & Service.Adult.Domiciliary Care
12/10/2015,ADULT SOCIAL CARE,Thames Homecare Ltd,DOMICILIARY CARE - THIRD PARTY,"1,236.83",Social Community Care Supplies & Service.Adult.Domiciliary Care
12/10/2015,ADULT SOCIAL CARE,Surrey and Borders Partnership NHS Foundation Trust,DAYCARE - PRIVATE CONTRACTORS PAYMENT,"1,098.94",Social Community Care Supplies & Service.Adult.Day Care
12/10/2015,ADULT SOCIAL CARE,Surrey and Borders Partnership NHS Foundation Trust,DAYCARE - PRIVATE CONTRACTORS PAYMENT,"1,051.16",Social Community Care Supplies & Service.Adult.Day Care
12/10/2015,ADULT SOCIAL CARE,Surrey and Borders Partnership NHS Foundation Trust,DAYCARE - PRIVATE CONTRACTORS PAYMENT,"1,051.16",Social Community Care Supplies & Service.Adult.Day Care
12/10/2015,ADULT SOCIAL CARE,Surrey and Borders Partnership NHS Foundation Trust,DAYCARE - PRIVATE CONTRACTORS PAYMENT,"1,035.31",Social Community Care Supplies & Service.Adult.Day Care
12/10/2015,ADULT SOCIAL CARE,Sevacare (UK) Ltd,DOMICILIARY CARE - THIRD PARTY,997.92,Social Community Care Supplies & Service.Adult.Residential Care
12/10/2015,ADULT SOCIAL CARE,Surrey and Borders Partnership NHS Foundation Trust,DAYCARE - PRIVATE CONTRACTORS PAYMENT,980.82,Social Community Care Supplies & Service.Adult.Day Care
12/10/2015,ADULT SOCIAL CARE,Surrey and Borders Partnership NHS Foundation Trust,DAYCARE - PRIVATE CONTRACTORS PAYMENT,926.33,Social Community Care Supplies & Service.Adult.Day Care
12/10/2015,ADULT SOCIAL CARE,Surrey and Borders Partnership NHS Foundation Trust,DAYCARE - PRIVATE CONTRACTORS PAYMENT,926.33,Social Community Care Supplies & Service.Adult.Day Care
12/10/2015,ADULT SOCIAL CARE,Sevacare (UK) Ltd,DOMICILIARY CARE - THIRD PARTY,907.20,Social Community Care Supplies & Service.Adult.Residential Care
12/10/2015,CHILDREN'S SERVICES,Tilbury Taxis Plc,CLIENT TRANSPORT,880.00,Public Transport.Taxi Services.NA
12/10/2015,ADULT SOCIAL CARE,Surrey and Borders Partnership NHS Foundation Trust,DAYCARE - PRIVATE CONTRACTORS PAYMENT,871.84,Social Community Care Supplies & Service.Adult.Day Care
12/10/2015,ADULT SOCIAL CARE,Unique Personnel (Uk) Ltd,DOMICILIARY CARE - THIRD PARTY,868.00,Social Community Care Supplies & Service.Disabled Children.NA
12/10/2015,ADULT SOCIAL CARE,Royal Association for Deaf People,DOMICILIARY CARE - THIRD PARTY,862.50,Social Community Care Supplies & Service.Adult.Domiciliary Care
12/10/2015,EDUCATION & LEARNING,Rita Chakraborty,PROFESSIONAL SERVICES - GENERAL,859.46,Education.Adult & Further Education Services.NA
12/10/2015,ADULT SOCIAL CARE,Unique Personnel (Uk) Ltd,DOMICILIARY CARE - THIRD PARTY,842.50,Social Community Care Supplies & Service.Disabled Children.NA
12/10/2015,ADULT SOCIAL CARE,Share Community Ltd,DAYCARE - PRIVATE CONTRACTORS PAYMENT,823.76,Social Community Care Supplies & Service.Adult.Day Care
12/10/2015,ADULT SOCIAL CARE,Surrey & Borders Partnership Nhs Foundation Trust,DAYCARE - PRIVATE CONTRACTORS PAYMENT,819.00,Social Community Care Supplies & Service.Adult.Day Care
12/10/2015,ADULT SOCIAL CARE,Unique Personnel (Uk) Ltd,DOMICILIARY CARE - THIRD PARTY,812.00,Social Community Care Supplies & Service.Disabled Children.NA
12/10/2015,ADULT SOCIAL CARE,Share Community Ltd,DAYCARE - PRIVATE CONTRACTORS PAYMENT,809.20,Social Community Care Supplies & Service.Adult.Day Care
12/10/2015,ADULT SOCIAL CARE,Unique Personnel (Uk) Ltd,DOMICILIARY CARE - THIRD PARTY,802.00,Social Community Care Supplies & Service.Disabled Children.NA
12/10/2015,POLICY & COMMUNICATIONS (HRA),Southwark Newspaper Ltd,"ADVERTISING, PUBLICITY AND MARKETING",800.00,Facilities & Management Services.Advertising.Statutory
12/10/2015,ADULT SOCIAL CARE,Unique Personnel (Uk) Ltd,DOMICILIARY CARE - THIRD PARTY,760.00,Social Community Care Supplies & Service.Disabled Children.NA
12/10/2015,ADULT SOCIAL CARE,Capital Homecare (UK) Ltd,DOMICILIARY CARE - THIRD PARTY,746.84,Social Community Care Supplies & Service.Adult.Domiciliary Care
12/10/2015,ADULT SOCIAL CARE,Thames Homecare Ltd,DOMICILIARY CARE - THIRD PARTY,717.00,Social Community Care Supplies & Service.Adult.Domiciliary Care
12/10/2015,ADULT SOCIAL CARE,Share Community Ltd,DAYCARE - PRIVATE CONTRACTORS PAYMENT,706.08,Social Community Care Supplies & Service.Adult.Day Care
12/10/2015,ADULT SOCIAL CARE,Share Community Ltd,DAYCARE - PRIVATE CONTRACTORS PAYMENT,693.60,Social Community Care Supplies & Service.Adult.Day Care
12/10/2015,ADULT SOCIAL CARE,Royal Association for Deaf People,DOMICILIARY CARE - THIRD PARTY,690.00,Social Community Care Supplies & Service.Adult.Domiciliary Care
12/10/2015,CHILDREN'S SERVICES,Tilbury Taxis Plc,CLIENT TRANSPORT,660.00,Public Transport.Taxi Services.NA
12/10/2015,ADULT SOCIAL CARE,Unique Personnel (Uk) Ltd,DOMICILIARY CARE - THIRD PARTY,629.50,Social Community Care Supplies & Service.Disabled Children.NA
12/10/2015,ADULT SOCIAL CARE,Unique Personnel (Uk) Ltd,DOMICILIARY CARE - THIRD PARTY,604.50,Social Community Care Supplies & Service.Disabled Children.NA
12/10/2015,ADULT SOCIAL CARE,Unique Personnel (Uk) Ltd,DOMICILIARY CARE - THIRD PARTY,593.00,Social Community Care Supplies & Service.Disabled Children.NA
12/10/2015,ADULT SOCIAL CARE,Unique Personnel (Uk) Ltd,DOMICILIARY CARE - THIRD PARTY,543.75,Social Community Care Supplies & Service.Disabled Children.NA
12/10/2015,ADULT SOCIAL CARE,Unique Personnel (Uk) Ltd,DOMICILIARY CARE - THIRD PARTY,539.00,Social Community Care Supplies & Service.Disabled Children.NA
12/10/2015,ADULT SOCIAL CARE,Unique Personnel (Uk) Ltd,DOMICILIARY CARE - THIRD PARTY,539.00,Social Community Care Supplies & Service.Disabled Children.NA
12/10/2015,ADULT SOCIAL CARE,Capital Homecare (UK) Ltd,DOMICILIARY CARE - THIRD PARTY,507.44,Social Community Care Supplies & Service.Adult.Domiciliary Care
12/10/2015,ADULT SOCIAL CARE,Capital Homecare (UK) Ltd,DOMICILIARY CARE - THIRD PARTY,507.44,Social Community Care Supplies & Service.Adult.Domiciliary Care
12/10/2015,POLICY & COMMUNICATIONS (HRA),Southwark Newspaper Ltd,"ADVERTISING, PUBLICITY AND MARKETING",500.00,Facilities & Management Services.Advertising.Statutory
13/10/2015,"STRATEGY & COMMISSIONING - CHILDREN, DISABILITIES & PUBLIC HEALTH",Healthwatch Lambeth,CONSULTANCY FEES,"265,115.00",Consultancy.Procurement.NA
13/10/2015,CHILDREN'S SERVICES,Maxwell Gillott Solicitors,LEGAL FEES,"92,500.00",Legal Services.Advocacy.NA
13/10/2015,"STRATEGY & COMMISSIONING - CHILDREN, DISABILITIES & PUBLIC HEALTH",Single Homeless Project,FLOATING SUPPORT SERVICES - PRIVATE CONTRACTORS PAYMENT,"72,876.72",Social Community Care Supplies & Service.Adult.Homeless Support
13/10/2015,"STRATEGY & COMMISSIONING - CHILDREN, DISABILITIES & PUBLIC HEALTH",Thames Reach,PRIVATE CONTRACTORS PAYMENT - OTHER,"49,384.28",Social Community Care Supplies & Service.Adult.Homeless Support
13/10/2015,"STRATEGY & COMMISSIONING - CHILDREN, DISABILITIES & PUBLIC HEALTH",Broadway,STREET POPULATION SERVICES - PRIVATE CONTRACTORS PAYMENT,"46,764.36",Social Community Care Supplies & Service.Adult.Homeless Support
13/10/2015,"STRATEGY & COMMISSIONING - CHILDREN, DISABILITIES & PUBLIC HEALTH",Refuge,FLOATING SUPPORT SERVICES - PRIVATE CONTRACTORS PAYMENT,"36,261.56",Social Community Care Supplies & Service.Adult.Residential Care
13/10/2015,"STRATEGY & COMMISSIONING - CHILDREN, DISABILITIES & PUBLIC HEALTH",Thames Reach,PRIVATE CONTRACTORS PAYMENT - OTHER,"35,726.92",Social Community Care Supplies & Service.Adult.Homeless Support
13/10/2015,"STRATEGY & COMMISSIONING - CHILDREN, DISABILITIES & PUBLIC HEALTH",Look Ahead Housing & Care Ltd,PRIVATE CONTRACTORS PAYMENT - OTHER,"35,155.08",Social Community Care Supplies & Service.Adult.Advice & Counselling Services
13/10/2015,"STRATEGY & COMMISSIONING - CHILDREN, DISABILITIES & PUBLIC HEALTH",Crime Reduction Initiatives,STREET POPULATION SERVICES - PRIVATE CONTRACTORS PAYMENT,"35,106.32",Healthcare.Public Health.NA
13/10/2015,"STRATEGY & COMMISSIONING - CHILDREN, DISABILITIES & PUBLIC HEALTH",Southside Partnership,PRIVATE CONTRACTORS PAYMENT - OTHER,"34,000.00",Social Community Care Supplies & Service.Adult.Mental Health Services
13/10/2015,"STRATEGY & COMMISSIONING - CHILDREN, DISABILITIES & PUBLIC HEALTH",Family Mosaic,PRIVATE CONTRACTORS PAYMENT - OTHER,"33,479.96",Social Community Care Supplies & Service.Adult.Mental Health Services
13/10/2015,"STRATEGY & COMMISSIONING - CHILDREN, DISABILITIES & PUBLIC HEALTH",Riverside ECHG,PRIVATE CONTRACTORS PAYMENT - OTHER,"31,114.24",Social Community Care Supplies & Service.Adult.NA
13/10/2015,"STRATEGY & COMMISSIONING - CHILDREN, DISABILITIES & PUBLIC HEALTH",Broadway,PRIVATE CONTRACTORS PAYMENT - OTHER,"30,659.84",Social Community Care Supplies & Service.Adult.Homeless Support
13/10/2015,"STRATEGY & COMMISSIONING - CHILDREN, DISABILITIES & PUBLIC HEALTH",Look Ahead Housing & Care Ltd,PRIVATE CONTRACTORS PAYMENT - OTHER,"30,376.76",Social Community Care Supplies & Service.Adult.Advice & Counselling Services
13/10/2015,HOUSING MANAGEMENT SERVICES,Mears Ltd,RESPONSIVE REPAIRS - MECHANICAL AND ELECTRICAL,"24,782.00","Works - Construction, Repair & Maint.Buildings.Repair & Maintenance"
13/10/2015,ADULT SOCIAL CARE,Allied Healthcare (UK) Ltd,DOMICILIARY CARE - THIRD PARTY,"23,444.67",Social Community Care Supplies & Service.Adult.Domiciliary Care
13/10/2015,"STRATEGY & COMMISSIONING - CHILDREN, DISABILITIES & PUBLIC HEALTH",Lambeth Mencap_d,FLOATING SUPPORT SERVICES - PRIVATE CONTRACTORS PAYMENT,"21,201.76",Social Community Care Supplies & Service.Adult.Domiciliary Care
13/10/2015,"STRATEGY & COMMISSIONING - CHILDREN, DISABILITIES & PUBLIC HEALTH",Saint Mungo Association,PRIVATE CONTRACTORS PAYMENT - OTHER,"21,186.88","Social Community Care Supplies & Service.Adult.Temporary Accommodation, Hostels"
13/10/2015,"STRATEGY & COMMISSIONING - CHILDREN, DISABILITIES & PUBLIC HEALTH",Look Ahead Housing & Care Ltd,FLOATING SUPPORT SERVICES - PRIVATE CONTRACTORS PAYMENT,"19,444.64",Social Community Care Supplies & Service.Adult.Advice & Counselling Services
13/10/2015,"STRATEGY & COMMISSIONING - CHILDREN, DISABILITIES & PUBLIC HEALTH",Thames Reach,PRIVATE CONTRACTORS PAYMENT - OTHER,"19,352.20",Social Community Care Supplies & Service.Adult.Homeless Support
13/10/2015,ADULT SOCIAL CARE,Sanctuary Care Ltd,DOMICILIARY CARE - THIRD PARTY,"17,621.51",Social Community Care Supplies & Service.Adult.Residential Care
13/10/2015,"STRATEGY & COMMISSIONING - CHILDREN, DISABILITIES & PUBLIC HEALTH",NACRO,PRIVATE CONTRACTORS PAYMENT - OTHER,"16,462.48",Social Community Care Supplies & Service.Adult.NA
13/10/2015,"STRATEGY & COMMISSIONING - CHILDREN, DISABILITIES & PUBLIC HEALTH",Saint Mungo Association,PRIVATE CONTRACTORS PAYMENT - OTHER,"16,380.00","Social Community Care Supplies & Service.Adult.Temporary Accommodation, Hostels"
13/10/2015,"STRATEGY & COMMISSIONING - CHILDREN, DISABILITIES & PUBLIC HEALTH",Thames Reach,PRIVATE CONTRACTORS PAYMENT - OTHER,"15,939.40",Social Community Care Supplies & Service.Adult.Homeless Support
13/10/2015,HOUSING MANAGEMENT SERVICES,Anthony Gold Solicitors,LEGAL FEES,"15,000.00",Legal Services.Advocacy.NA
13/10/2015,"STRATEGY & COMMISSIONING - CHILDREN, DISABILITIES & PUBLIC HEALTH",Solace Women's Aid,PRIVATE CONTRACTORS PAYMENT - OTHER,"14,127.36",Social Community Care Supplies & Service.Adult.Advice & Counselling Services
13/10/2015,"STRATEGY & COMMISSIONING - CHILDREN, DISABILITIES & PUBLIC HEALTH",Sanctuary Carr-Gomm,PRIVATE CONTRACTORS PAYMENT - OTHER,"13,650.00","Social Community Care Supplies & Service.Adult.Temporary Accommodation, Long Stay"
13/10/2015,CAPITAL CC,Met GeoEnviromental Ltd,SURVEYS,"13,190.00","Works - Construction, Repair & Maint.Open Spaces.Surveys"
13/10/2015,"STRATEGY & COMMISSIONING - CHILDREN, DISABILITIES & PUBLIC HEALTH",Thames Reach,STREET POPULATION SERVICES - PRIVATE CONTRACTORS PAYMENT,"13,009.40",Social Community Care Supplies & Service.Adult.Homeless Support
13/10/2015,"STRATEGY & COMMISSIONING - CHILDREN, DISABILITIES & PUBLIC HEALTH",Age UK Lambeth,FLOATING SUPPORT SERVICES - PRIVATE CONTRACTORS PAYMENT,"13,006.53",Social Community Care Supplies & Service.Adult.NA
13/10/2015,"STRATEGY & COMMISSIONING - CHILDREN, DISABILITIES & PUBLIC HEALTH",Thames Reach,STREET POPULATION SERVICES - PRIVATE CONTRACTORS PAYMENT,"12,257.80",Social Community Care Supplies & Service.Adult.Homeless Support
13/10/2015,"STRATEGY & COMMISSIONING - CHILDREN, DISABILITIES & PUBLIC HEALTH",St Martin of Tours Housing Association,PRIVATE CONTRACTORS PAYMENT - OTHER,"12,237.08",Social Community Care Supplies & Service.Adult.Homeless Support
13/10/2015,HOUSING MANAGEMENT SERVICES,Plastic Omnium Urban Systems Ltd t/a Sulo MGB,WASTE DISPOSAL COSTS,"11,850.00",Environmental Services.Waste Management.Consumables
13/10/2015,"STRATEGY & COMMISSIONING - CHILDREN, DISABILITIES & PUBLIC HEALTH",Saint Mungo Association,STREET POPULATION SERVICES - PRIVATE CONTRACTORS PAYMENT,"9,292.48","Social Community Care Supplies & Service.Adult.Temporary Accommodation, Hostels"
13/10/2015,"STRATEGY & COMMISSIONING - CHILDREN, DISABILITIES & PUBLIC HEALTH",Thames Reach,STREET POPULATION SERVICES - PRIVATE CONTRACTORS PAYMENT,"8,456.92",Social Community Care Supplies & Service.Adult.Homeless Support
13/10/2015,"STRATEGY & COMMISSIONING - CHILDREN, DISABILITIES & PUBLIC HEALTH",Foundation66,PRIVATE CONTRACTORS PAYMENT - OTHER,"8,131.28",Healthcare.Public Health.NA
13/10/2015,ADULT SOCIAL CARE,KWAS Ltd,RESIDENTIAL PLACEMENTS - PRIVATE CONTRACTORS PAYMENT,"8,008.16","Social Community Care Supplies & Service.Adult.Temporary Accommodation, Long Stay"
13/10/2015,ADULT SOCIAL CARE,KWAS Ltd,RESIDENTIAL PLACEMENTS - PRIVATE CONTRACTORS PAYMENT,"8,008.16","Social Community Care Supplies & Service.Adult.Temporary Accommodation, Long Stay"
13/10/2015,"STRATEGY & COMMISSIONING - CHILDREN, DISABILITIES & PUBLIC HEALTH",Goldknight Trading Ltd,PRIVATE CONTRACTORS PAYMENT - OTHER,"7,583.88",Social Community Care Supplies & Service.Adult.Mental Health Services
13/10/2015,ADULT SOCIAL CARE,Allied Healthcare (UK) Ltd,DOMICILIARY CARE - THIRD PARTY,"7,562.45",Social Community Care Supplies & Service.Adult.Domiciliary Care
13/10/2015,ADULT SOCIAL CARE,Care Monitoring 2000 Limited,PAYMENT TO HEALTH AUTHORITIES,"7,531.64",Healthcare.Services.NA
13/10/2015,"STRATEGY & COMMISSIONING - CHILDREN, DISABILITIES & PUBLIC HEALTH",Refuge,PRIVATE CONTRACTORS PAYMENT - OTHER,"6,803.28",Social Community Care Supplies & Service.Adult.Residential Care
13/10/2015,"STRATEGY & COMMISSIONING - CHILDREN, DISABILITIES & PUBLIC HEALTH",Thames Reach,STREET POPULATION SERVICES - PRIVATE CONTRACTORS PAYMENT,"6,450.72",Social Community Care Supplies & Service.Adult.Homeless Support
13/10/2015,ADULT SOCIAL CARE,Sanctuary Care Ltd,DOMICILIARY CARE - THIRD PARTY,"6,439.53",Social Community Care Supplies & Service.Adult.Residential Care
13/10/2015,"STRATEGY & COMMISSIONING - CHILDREN, DISABILITIES & PUBLIC HEALTH",Southside Partnership,PRIVATE CONTRACTORS PAYMENT - OTHER,"6,191.32",Social Community Care Supplies & Service.Adult.Mental Health Services
13/10/2015,"STRATEGY & COMMISSIONING - CHILDREN, DISABILITIES & PUBLIC HEALTH",NACRO,PRIVATE CONTRACTORS PAYMENT - OTHER,"5,784.12",Social Community Care Supplies & Service.Adult.NA
13/10/2015,HOUSING MANAGEMENT SERVICES,Anthony Gold Solicitors,LEGAL FEES,"5,500.00",Legal Services.Advocacy.NA
13/10/2015,HOUSING MANAGEMENT SERVICES,Anthony Gold Solicitors,LEGAL FEES,"5,000.00",Legal Services.Advocacy.NA
13/10/2015,"STRATEGY & COMMISSIONING - CHILDREN, DISABILITIES & PUBLIC HEALTH",Kairos Community Trust,PRIVATE CONTRACTORS PAYMENT - OTHER,"4,879.28",Social Community Care Supplies & Service.Adult.Alcohol & Drug Rehabilitation
13/10/2015,"STRATEGY & COMMISSIONING - CHILDREN, DISABILITIES & PUBLIC HEALTH",Centrepoint Soho Ltd,PRIVATE CONTRACTORS PAYMENT - OTHER,"4,761.41",Social Community Care Supplies & Service.Adult.Homeless Support
13/10/2015,"STRATEGY & COMMISSIONING - CHILDREN, DISABILITIES & PUBLIC HEALTH",Saint Mungo Association,PRIVATE CONTRACTORS PAYMENT - OTHER,"4,739.16","Social Community Care Supplies & Service.Adult.Temporary Accommodation, Hostels"
13/10/2015,CHILDREN'S SERVICES,Coral Community Assessments Ltd,LEGAL FEES,"4,508.80",Social Community Care Supplies & Service.Adult.NA
13/10/2015,CAPITAL CC,DACS Care & Repair,GRANTS AND CONTRIBUTIONS,"4,343.50",Financial Services.Grants.NA
13/10/2015,CAPITAL CC,DACS Care & Repair,GRANTS AND CONTRIBUTIONS,"4,205.50",Financial Services.Grants.NA
13/10/2015,ADULT SOCIAL CARE,Allied Healthcare (UK) Ltd,DOMICILIARY CARE - THIRD PARTY,"3,650.61",Social Community Care Supplies & Service.Adult.Domiciliary Care
13/10/2015,"STRATEGY & COMMISSIONING - CHILDREN, DISABILITIES & PUBLIC HEALTH",The Rathbone Centre,FLOATING SUPPORT SERVICES - PRIVATE CONTRACTORS PAYMENT,"3,567.16",Social Community Care Supplies & Service.Adult.Domiciliary Care
13/10/2015,CHILDREN'S SERVICES,R@W Logistics Ltd,RENTS PAYABLE,"3,485.92","Social Community Care Supplies & Service.Adult.Temporary Accommodation, Short Stay"
13/10/2015,"STRATEGY & COMMISSIONING - CHILDREN, DISABILITIES & PUBLIC HEALTH",Family Mosaic,FLOATING SUPPORT SERVICES - PRIVATE CONTRACTORS PAYMENT,"3,198.00",Social Community Care Supplies & Service.Adult.Mental Health Services
13/10/2015,HOUSING MANAGEMENT SERVICES,Mears Ltd,RESPONSIVE REPAIRS - MECHANICAL AND ELECTRICAL,"3,097.75","Works - Construction, Repair & Maint.Buildings.Repair & Maintenance"
13/10/2015,ADULT SOCIAL CARE,Carewatch (Lambeth),DOMICILIARY CARE - THIRD PARTY,"3,088.70",Social Community Care Supplies & Service.Adult.Domiciliary Care
13/10/2015,"STRATEGY & COMMISSIONING - CHILDREN, DISABILITIES & PUBLIC HEALTH",Vietnamese Mental Health Services,PRIVATE CONTRACTORS PAYMENT - OTHER,"3,068.48",Social Community Care Supplies & Service.Adult.Black & Minority Ethnic Services
13/10/2015,"STRATEGY & COMMISSIONING - CHILDREN, DISABILITIES & PUBLIC HEALTH",Keyring Living Support Network,FLOATING SUPPORT SERVICES - PRIVATE CONTRACTORS PAYMENT,"3,061.04",Social Community Care Supplies & Service.Adult.Domiciliary Care
13/10/2015,"STRATEGY & COMMISSIONING - CHILDREN, DISABILITIES & PUBLIC HEALTH",Thames Reach,PRIVATE CONTRACTORS PAYMENT - OTHER,"3,014.20",Social Community Care Supplies & Service.Adult.Homeless Support
13/10/2015,"STRATEGY & COMMISSIONING - CHILDREN, DISABILITIES & PUBLIC HEALTH",Thames Reach,PRIVATE CONTRACTORS PAYMENT - OTHER,"3,014.20",Social Community Care Supplies & Service.Adult.Homeless Support
13/10/2015,HOUSING MANAGEMENT SERVICES,Mears Ltd,RESPONSIVE REPAIRS - BUILDING,"2,913.84","Works - Construction, Repair & Maint.Buildings.Repair & Maintenance"
13/10/2015,ADULT SOCIAL CARE,Carewatch (Lambeth),DOMICILIARY CARE - THIRD PARTY,"2,910.28",Social Community Care Supplies & Service.Adult.Domiciliary Care
13/10/2015,HOUSING MANAGEMENT SERVICES,Mears Ltd,RESPONSIVE REPAIRS - BUILDING,"2,892.60","Works - Construction, Repair & Maint.Buildings.Repair & Maintenance"
13/10/2015,HOUSING NEEDS,Galaxy Lettings Ltd,BED & BREAKFAST - PRIVATE CONTRACTORS PAYMENT,"2,850.00",Housing Management.Housing Association Services.NA
13/10/2015,HOUSING MANAGEMENT SERVICES,Mears Ltd,RESPONSIVE REPAIRS - BUILDING,"2,805.00","Works - Construction, Repair & Maint.Buildings.Repair & Maintenance"
13/10/2015,"STRATEGY & COMMISSIONING - CHILDREN, DISABILITIES & PUBLIC HEALTH",Keyring Living Support Network,FLOATING SUPPORT SERVICES - PRIVATE CONTRACTORS PAYMENT,"2,779.12",Social Community Care Supplies & Service.Adult.Domiciliary Care
13/10/2015,"STRATEGY & COMMISSIONING - CHILDREN, DISABILITIES & PUBLIC HEALTH",Keyring Living Support Network,FLOATING SUPPORT SERVICES - PRIVATE CONTRACTORS PAYMENT,"2,779.12",Social Community Care Supplies & Service.Adult.Domiciliary Care
13/10/2015,HOUSING NEEDS,D Singh Properties Ltd TA DS Properties,BED & BREAKFAST - PRIVATE CONTRACTORS PAYMENT,"2,700.00",Housing Management.Letting Agents.NA
13/10/2015,HOUSING NEEDS,D Singh Properties Ltd TA DS Properties,BED & BREAKFAST - PRIVATE CONTRACTORS PAYMENT,"2,610.00",Housing Management.Letting Agents.NA
13/10/2015,"STRATEGY & COMMISSIONING - CHILDREN, DISABILITIES & PUBLIC HEALTH",Southside Partnership,PRIVATE CONTRACTORS PAYMENT - OTHER,"2,571.76",Social Community Care Supplies & Service.Adult.Mental Health Services
13/10/2015,"STRATEGY & COMMISSIONING - CHILDREN, DISABILITIES & PUBLIC HEALTH",Southside Partnership,PRIVATE CONTRACTORS PAYMENT - OTHER,"2,567.62",Social Community Care Supplies & Service.Adult.Mental Health Services
13/10/2015,"STRATEGY & COMMISSIONING - CHILDREN, DISABILITIES & PUBLIC HEALTH",Ekaya Housing Association Ltd,PRIVATE CONTRACTORS PAYMENT - OTHER,"2,543.40","Social Community Care Supplies & Service.Adult.Temporary Accommodation, Long Stay"
13/10/2015,HOUSING NEEDS,D Singh Properties Ltd TA DS Properties,BED & BREAKFAST - PRIVATE CONTRACTORS PAYMENT,"2,520.00",Housing Management.Letting Agents.NA
13/10/2015,HOUSING NEEDS,D Singh Properties Ltd TA DS Properties,BED & BREAKFAST - PRIVATE CONTRACTORS PAYMENT,"2,520.00",Housing Management.Letting Agents.NA
13/10/2015,HOUSING NEEDS,Bizylet Property Management Ltd,BED & BREAKFAST - PRIVATE CONTRACTORS PAYMENT,"2,520.00",Housing Management.Letting Agents.NA
13/10/2015,"STRATEGY & COMMISSIONING - CHILDREN, DISABILITIES & PUBLIC HEALTH",Hope Worldwide,PRIVATE CONTRACTORS PAYMENT - OTHER,"2,513.80",Social Community Care Supplies & Service.Adult.Alcohol & Drug Rehabilitation
13/10/2015,HOUSING NEEDS,London Borough of Camden_d,PRIVATE CONTRACTORS PAYMENT - OTHER,"2,500.00",Social Community Care Supplies & Service.Adult.Residential Care
13/10/2015,HOUSING MANAGEMENT SERVICES,Mears Ltd,RESPONSIVE REPAIRS - BUILDING,"2,477.31","Works - Construction, Repair & Maint.Buildings.Repair & Maintenance"
13/10/2015,HOUSING MANAGEMENT SERVICES,Mears Ltd,DECORATION,"2,441.46","Works - Construction, Repair & Maint.Buildings.Repair & Maintenance"
13/10/2015,"STRATEGY & COMMISSIONING - CHILDREN, DISABILITIES & PUBLIC HEALTH",Evolve Housing & Support,PRIVATE CONTRACTORS PAYMENT - OTHER,"2,424.12",Social Community Care Supplies & Service.Adult.Sheltered Accommodation
13/10/2015,HOUSING NEEDS,D Singh Properties Ltd TA DS Properties,BED & BREAKFAST - PRIVATE CONTRACTORS PAYMENT,"2,400.00",Housing Management.Letting Agents.NA
13/10/2015,HOUSING NEEDS,D Singh Properties Ltd TA DS Properties,BED & BREAKFAST - PRIVATE CONTRACTORS PAYMENT,"2,400.00",Housing Management.Letting Agents.NA
13/10/2015,HOUSING NEEDS,D Singh Properties Ltd TA DS Properties,BED & BREAKFAST - PRIVATE CONTRACTORS PAYMENT,"2,340.00",Housing Management.Letting Agents.NA
13/10/2015,HOUSING MANAGEMENT SERVICES,Naomi Hawkes,LEGAL FEES,"2,300.00",Legal Services.Legal Opinion.NA
13/10/2015,HOUSING NEEDS,Willow Estate Agents,BED & BREAKFAST - PRIVATE CONTRACTORS PAYMENT,"2,280.00",Housing Management.Letting Agents.NA
13/10/2015,HOUSING NEEDS,Denhan International,BED & BREAKFAST - PRIVATE CONTRACTORS PAYMENT,"2,250.00",Housing Management.Letting Agents.NA
13/10/2015,HOUSING NEEDS,Denhan International,BED & BREAKFAST - PRIVATE CONTRACTORS PAYMENT,"2,250.00",Housing Management.Letting Agents.NA
13/10/2015,HOUSING NEEDS,Denhan International,BED & BREAKFAST - PRIVATE CONTRACTORS PAYMENT,"2,250.00",Housing Management.Letting Agents.NA
13/10/2015,HOUSING NEEDS,Denhan International,BED & BREAKFAST - PRIVATE CONTRACTORS PAYMENT,"2,250.00",Housing Management.Letting Agents.NA
13/10/2015,HOUSING NEEDS,LPB Housing,BED & BREAKFAST - PRIVATE CONTRACTORS PAYMENT,"2,250.00",Housing Management.Letting Agents.NA
13/10/2015,HOUSING NEEDS,Everhill Management Ltd,BED & BREAKFAST - PRIVATE CONTRACTORS PAYMENT,"2,250.00",Housing Management.Letting Agents.NA
13/10/2015,HOUSING NEEDS,Midos Estates Ltd,BED & BREAKFAST - PRIVATE CONTRACTORS PAYMENT,"2,250.00",Housing Management.Letting Agents.NA
13/10/2015,HOUSING NEEDS,Midos Estates Ltd,BED & BREAKFAST - PRIVATE CONTRACTORS PAYMENT,"2,250.00",Housing Management.Letting Agents.NA
13/10/2015,HOUSING NEEDS,Midos Estates Ltd,BED & BREAKFAST - PRIVATE CONTRACTORS PAYMENT,"2,250.00",Housing Management.Letting Agents.NA
13/10/2015,HOUSING NEEDS,Midos Estates Ltd,BED & BREAKFAST - PRIVATE CONTRACTORS PAYMENT,"2,250.00",Housing Management.Letting Agents.NA
13/10/2015,HOUSING NEEDS,Midos Estates Ltd,BED & BREAKFAST - PRIVATE CONTRACTORS PAYMENT,"2,250.00",Housing Management.Letting Agents.NA
13/10/2015,HOUSING NEEDS,Midos Estates Ltd,BED & BREAKFAST - PRIVATE CONTRACTORS PAYMENT,"2,250.00",Housing Management.Letting Agents.NA
13/10/2015,HOUSING NEEDS,Midos Estates Ltd,BED & BREAKFAST - PRIVATE CONTRACTORS PAYMENT,"2,250.00",Housing Management.Letting Agents.NA
13/10/2015,HOUSING NEEDS,Midos Estates Ltd,BED & BREAKFAST - PRIVATE CONTRACTORS PAYMENT,"2,250.00",Housing Management.Letting Agents.NA
13/10/2015,HOUSING NEEDS,Midos Estates Ltd,BED & BREAKFAST - PRIVATE CONTRACTORS PAYMENT,"2,250.00",Housing Management.Letting Agents.NA
13/10/2015,HOUSING NEEDS,Midos Estates Ltd,BED & BREAKFAST - PRIVATE CONTRACTORS PAYMENT,"2,250.00",Housing Management.Letting Agents.NA
13/10/2015,HOUSING NEEDS,Midos Estates Ltd,BED & BREAKFAST - PRIVATE CONTRACTORS PAYMENT,"2,250.00",Housing Management.Letting Agents.NA
13/10/2015,HOUSING NEEDS,Midos Estates Ltd,BED & BREAKFAST - PRIVATE CONTRACTORS PAYMENT,"2,250.00",Housing Management.Letting Agents.NA
13/10/2015,HOUSING NEEDS,Midos Estates Ltd,BED & BREAKFAST - PRIVATE CONTRACTORS PAYMENT,"2,250.00",Housing Management.Letting Agents.NA
13/10/2015,HOUSING NEEDS,Midos Estates Ltd,BED & BREAKFAST - PRIVATE CONTRACTORS PAYMENT,"2,250.00",Housing Management.Letting Agents.NA
13/10/2015,HOUSING NEEDS,Midos Estates Ltd,BED & BREAKFAST - PRIVATE CONTRACTORS PAYMENT,"2,250.00",Housing Management.Letting Agents.NA
13/10/2015,HOUSING NEEDS,Midos Estates Ltd,BED & BREAKFAST - PRIVATE CONTRACTORS PAYMENT,"2,250.00",Housing Management.Letting Agents.NA
13/10/2015,HOUSING NEEDS,Midos Estates Ltd,BED & BREAKFAST - PRIVATE CONTRACTORS PAYMENT,"2,250.00",Housing Management.Letting Agents.NA
13/10/2015,HOUSING NEEDS,Galaxy Lettings Ltd,BED & BREAKFAST - PRIVATE CONTRACTORS PAYMENT,"2,250.00",Housing Management.Housing Association Services.NA
13/10/2015,HOUSING NEEDS,Galaxy Lettings Ltd,BED & BREAKFAST - PRIVATE CONTRACTORS PAYMENT,"2,250.00",Housing Management.Housing Association Services.NA
13/10/2015,HOUSING NEEDS,Galaxy Lettings Ltd,BED & BREAKFAST - PRIVATE CONTRACTORS PAYMENT,"2,250.00",Housing Management.Housing Association Services.NA
13/10/2015,HOUSING NEEDS,Galaxy Lettings Ltd,BED & BREAKFAST - PRIVATE CONTRACTORS PAYMENT,"2,250.00",Housing Management.Housing Association Services.NA
13/10/2015,HOUSING NEEDS,Hytyme Ltd,BED & BREAKFAST - PRIVATE CONTRACTORS PAYMENT,"2,250.00",Housing Management.Letting Agents.NA
13/10/2015,HOUSING NEEDS,Hytyme Ltd,BED & BREAKFAST - PRIVATE CONTRACTORS PAYMENT,"2,250.00",Housing Management.Letting Agents.NA
13/10/2015,HOUSING NEEDS,Hytyme Ltd,BED & BREAKFAST - PRIVATE CONTRACTORS PAYMENT,"2,250.00",Housing Management.Letting Agents.NA
13/10/2015,HOUSING NEEDS,Hytyme Ltd,BED & BREAKFAST - PRIVATE CONTRACTORS PAYMENT,"2,250.00",Housing Management.Letting Agents.NA
13/10/2015,HOUSING NEEDS,Hytyme Ltd,BED & BREAKFAST - PRIVATE CONTRACTORS PAYMENT,"2,250.00",Housing Management.Letting Agents.NA
13/10/2015,HOUSING NEEDS,Hytyme Ltd,BED & BREAKFAST - PRIVATE CONTRACTORS PAYMENT,"2,250.00",Housing Management.Letting Agents.NA
13/10/2015,HOUSING NEEDS,Hytyme Ltd,BED & BREAKFAST - PRIVATE CONTRACTORS PAYMENT,"2,250.00",Housing Management.Letting Agents.NA
13/10/2015,HOUSING NEEDS,Hytyme Ltd,BED & BREAKFAST - PRIVATE CONTRACTORS PAYMENT,"2,250.00",Housing Management.Letting Agents.NA
13/10/2015,HOUSING NEEDS,UK Room (London) Ltd,BED & BREAKFAST - PRIVATE CONTRACTORS PAYMENT,"2,250.00",Housing Management.Letting Agents.NA
13/10/2015,HOUSING NEEDS,D Singh Properties Ltd TA DS Properties,BED & BREAKFAST - PRIVATE CONTRACTORS PAYMENT,"2,250.00",Housing Management.Letting Agents.NA
13/10/2015,HOUSING NEEDS,D Singh Properties Ltd TA DS Properties,BED & BREAKFAST - PRIVATE CONTRACTORS PAYMENT,"2,250.00",Housing Management.Letting Agents.NA
13/10/2015,HOUSING NEEDS,D Singh Properties Ltd TA DS Properties,BED & BREAKFAST - PRIVATE CONTRACTORS PAYMENT,"2,250.00",Housing Management.Letting Agents.NA
13/10/2015,HOUSING NEEDS,D Singh Properties Ltd TA DS Properties,BED & BREAKFAST - PRIVATE CONTRACTORS PAYMENT,"2,250.00",Housing Management.Letting Agents.NA
13/10/2015,HOUSING NEEDS,D Singh Properties Ltd TA DS Properties,BED & BREAKFAST - PRIVATE CONTRACTORS PAYMENT,"2,250.00",Housing Management.Letting Agents.NA
13/10/2015,HOUSING NEEDS,Euro Hotels Ltd,BED & BREAKFAST - PRIVATE CONTRACTORS PAYMENT,"2,250.00",Housing Management.Letting Agents.NA
13/10/2015,ADULT SOCIAL CARE,Sanctuary Care Ltd,DOMICILIARY CARE - THIRD PARTY,"2,225.02",Social Community Care Supplies & Service.Adult.Residential Care
13/10/2015,HOUSING NEEDS,D Singh Properties Ltd TA DS Properties,BED & BREAKFAST - PRIVATE CONTRACTORS PAYMENT,"2,220.00",Housing Management.Letting Agents.NA
13/10/2015,HOUSING NEEDS,D Singh Properties Ltd TA DS Properties,BED & BREAKFAST - PRIVATE CONTRACTORS PAYMENT,"2,220.00",Housing Management.Letting Agents.NA
13/10/2015,"STRATEGY & COMMISSIONING - CHILDREN, DISABILITIES & PUBLIC HEALTH",Southside Partnership,PRIVATE CONTRACTORS PAYMENT - OTHER,"2,218.36",Social Community Care Supplies & Service.Adult.Mental Health Services
13/10/2015,HOUSING MANAGEMENT SERVICES,Table Talent Ltd,ARTS AND LEISURE COSTS,"2,205.00",Arts & Leisure Services.Sport & Fitness.NA
13/10/2015,HOUSING MANAGEMENT SERVICES,Mears Ltd,RESPONSIVE REPAIRS - BUILDING,"2,198.02","Works - Construction, Repair & Maint.Buildings.Repair & Maintenance"
13/10/2015,HOUSING MANAGEMENT SERVICES,Mears Ltd,RESPONSIVE REPAIRS - BUILDING,"2,184.60","Works - Construction, Repair & Maint.Buildings.Repair & Maintenance"
13/10/2015,HOUSING MANAGEMENT SERVICES,Mears Ltd,RESPONSIVE REPAIRS - BUILDING,"2,174.10","Works - Construction, Repair & Maint.Buildings.Repair & Maintenance"
13/10/2015,HOUSING NEEDS,Denhan International,BED & BREAKFAST - PRIVATE CONTRACTORS PAYMENT,"2,100.00",Housing Management.Letting Agents.NA
13/10/2015,HOUSING NEEDS,LPB Housing,BED & BREAKFAST - PRIVATE CONTRACTORS PAYMENT,"2,100.00",Housing Management.Letting Agents.NA
13/10/2015,HOUSING NEEDS,LPB Housing,BED & BREAKFAST - PRIVATE CONTRACTORS PAYMENT,"2,100.00",Housing Management.Letting Agents.NA
13/10/2015,HOUSING NEEDS,Midos Estates Ltd,BED & BREAKFAST - PRIVATE CONTRACTORS PAYMENT,"2,100.00",Housing Management.Letting Agents.NA
13/10/2015,HOUSING NEEDS,Hytyme Ltd,BED & BREAKFAST - PRIVATE CONTRACTORS PAYMENT,"2,100.00",Housing Management.Letting Agents.NA
13/10/2015,HOUSING NEEDS,Hytyme Ltd,BED & BREAKFAST - PRIVATE CONTRACTORS PAYMENT,"2,100.00",Housing Management.Letting Agents.NA
13/10/2015,HOUSING NEEDS,Hytyme Ltd,BED & BREAKFAST - PRIVATE CONTRACTORS PAYMENT,"2,100.00",Housing Management.Letting Agents.NA
13/10/2015,HOUSING NEEDS,Hytyme Ltd,BED & BREAKFAST - PRIVATE CONTRACTORS PAYMENT,"2,100.00",Housing Management.Letting Agents.NA
13/10/2015,HOUSING NEEDS,Hytyme Ltd,BED & BREAKFAST - PRIVATE CONTRACTORS PAYMENT,"2,100.00",Housing Management.Letting Agents.NA
13/10/2015,HOUSING NEEDS,Hytyme Ltd,BED & BREAKFAST - PRIVATE CONTRACTORS PAYMENT,"2,100.00",Housing Management.Letting Agents.NA
13/10/2015,HOUSING NEEDS,Hytyme Ltd,BED & BREAKFAST - PRIVATE CONTRACTORS PAYMENT,"2,100.00",Housing Management.Letting Agents.NA
13/10/2015,HOUSING NEEDS,UK Room (London) Ltd,BED & BREAKFAST - PRIVATE CONTRACTORS PAYMENT,"2,100.00",Housing Management.Letting Agents.NA
13/10/2015,HOUSING NEEDS,D Singh Properties Ltd TA DS Properties,BED & BREAKFAST - PRIVATE CONTRACTORS PAYMENT,"2,100.00",Housing Management.Letting Agents.NA
13/10/2015,HOUSING NEEDS,D Singh Properties Ltd TA DS Properties,BED & BREAKFAST - PRIVATE CONTRACTORS PAYMENT,"2,100.00",Housing Management.Letting Agents.NA
13/10/2015,HOUSING NEEDS,Bizylet Property Management Ltd,BED & BREAKFAST - PRIVATE CONTRACTORS PAYMENT,"2,100.00",Housing Management.Letting Agents.NA
13/10/2015,HOUSING NEEDS,Bizylet Property Management Ltd,BED & BREAKFAST - PRIVATE CONTRACTORS PAYMENT,"2,100.00",Housing Management.Letting Agents.NA
13/10/2015,HOUSING NEEDS,Euro Hotels Ltd,BED & BREAKFAST - PRIVATE CONTRACTORS PAYMENT,"2,100.00",Housing Management.Letting Agents.NA
13/10/2015,HOUSING NEEDS,Euro Hotels Ltd,BED & BREAKFAST - PRIVATE CONTRACTORS PAYMENT,"2,100.00",Housing Management.Letting Agents.NA
13/10/2015,HOUSING MANAGEMENT SERVICES,Eden Brown Ltd,STAFF RECRUITMENT COSTS,"2,065.00",Human Resources.Recruitment & Assessment.NA
13/10/2015,HOUSING MANAGEMENT SERVICES,Eden Brown Ltd,STAFF RECRUITMENT COSTS,"2,065.00",Human Resources.Recruitment & Assessment.NA
13/10/2015,HOUSING MANAGEMENT SERVICES,Eden Brown Ltd,STAFF RECRUITMENT COSTS,"2,065.00",Human Resources.Recruitment & Assessment.NA
13/10/2015,HOUSING MANAGEMENT SERVICES,Eden Brown Ltd,STAFF RECRUITMENT COSTS,"2,065.00",Human Resources.Recruitment & Assessment.NA
13/10/2015,CHILDREN'S SERVICES,Dr Tom McClintock,LEGAL FEES,"2,052.00",Legal Services.Advocacy.NA
13/10/2015,HOUSING NEEDS,UK Room (London) Ltd,BED & BREAKFAST - PRIVATE CONTRACTORS PAYMENT,"2,040.00",Housing Management.Letting Agents.NA
13/10/2015,HOUSING NEEDS,D Singh Properties Ltd TA DS Properties,BED & BREAKFAST - PRIVATE CONTRACTORS PAYMENT,"2,040.00",Housing Management.Letting Agents.NA
13/10/2015,HOUSING NEEDS,D Singh Properties Ltd TA DS Properties,BED & BREAKFAST - PRIVATE CONTRACTORS PAYMENT,"2,040.00",Housing Management.Letting Agents.NA
13/10/2015,HOUSING NEEDS,D Singh Properties Ltd TA DS Properties,BED & BREAKFAST - PRIVATE CONTRACTORS PAYMENT,"2,040.00",Housing Management.Letting Agents.NA
13/10/2015,HOUSING MANAGEMENT SERVICES,Mears Ltd,RESPONSIVE REPAIRS - BUILDING,"2,021.10","Works - Construction, Repair & Maint.Buildings.Repair & Maintenance"
13/10/2015,HOUSING NEEDS,D Singh Properties Ltd TA DS Properties,BED & BREAKFAST - PRIVATE CONTRACTORS PAYMENT,"2,015.00",Housing Management.Letting Agents.NA
13/10/2015,HOUSING MANAGEMENT SERVICES,Mears Ltd,RESPONSIVE REPAIRS - BUILDING,"2,010.72","Works - Construction, Repair & Maint.Buildings.Repair & Maintenance"
13/10/2015,HOUSING NEEDS,Midos Estates Ltd,BED & BREAKFAST - PRIVATE CONTRACTORS PAYMENT,"2,010.00",Housing Management.Letting Agents.NA
13/10/2015,HOUSING NEEDS,D Singh Properties Ltd TA DS Properties,BED & BREAKFAST - PRIVATE CONTRACTORS PAYMENT,"2,010.00",Housing Management.Letting Agents.NA
13/10/2015,HOUSING NEEDS,Willow Estate Agents,BED & BREAKFAST - PRIVATE CONTRACTORS PAYMENT,"2,010.00",Housing Management.Letting Agents.NA
13/10/2015,ADULT SOCIAL CARE,Sanctuary Care Ltd,DOMICILIARY CARE - THIRD PARTY,"2,006.88",Social Community Care Supplies & Service.Adult.Residential Care
13/10/2015,HOUSING MANAGEMENT SERVICES,Mears Ltd,RESPONSIVE REPAIRS - BUILDING,"1,985.06","Works - Construction, Repair & Maint.Buildings.Repair & Maintenance"
13/10/2015,HOUSING NEEDS,Galaxy Lettings Ltd,BED & BREAKFAST - PRIVATE CONTRACTORS PAYMENT,"1,980.00",Housing Management.Housing Association Services.NA
13/10/2015,HOUSING NEEDS,Bizylet Property Management Ltd,BED & BREAKFAST - PRIVATE CONTRACTORS PAYMENT,"1,980.00",Housing Management.Letting Agents.NA
13/10/2015,"STRATEGY & COMMISSIONING - CHILDREN, DISABILITIES & PUBLIC HEALTH",Saint Mungo Association,PRIVATE CONTRACTORS PAYMENT - OTHER,"1,951.44","Social Community Care Supplies & Service.Adult.Temporary Accommodation, Hostels"
13/10/2015,HOUSING NEEDS,Midos Estates Ltd,BED & BREAKFAST - PRIVATE CONTRACTORS PAYMENT,"1,950.00",Housing Management.Letting Agents.NA
13/10/2015,HOUSING NEEDS,AA Care Homes Ltd,BED & BREAKFAST - PRIVATE CONTRACTORS PAYMENT,"1,950.00",Housing Management.Letting Agents.NA
13/10/2015,HOUSING NEEDS,AA Care Homes Ltd,BED & BREAKFAST - PRIVATE CONTRACTORS PAYMENT,"1,950.00",Housing Management.Letting Agents.NA
13/10/2015,HOUSING NEEDS,AA Care Homes Ltd,BED & BREAKFAST - PRIVATE CONTRACTORS PAYMENT,"1,950.00",Housing Management.Letting Agents.NA
13/10/2015,HOUSING NEEDS,AA Care Homes Ltd,BED & BREAKFAST - PRIVATE CONTRACTORS PAYMENT,"1,950.00",Housing Management.Letting Agents.NA
13/10/2015,HOUSING NEEDS,D Singh Properties Ltd TA DS Properties,BED & BREAKFAST - PRIVATE CONTRACTORS PAYMENT,"1,950.00",Housing Management.Letting Agents.NA
13/10/2015,HOUSING NEEDS,D Singh Properties Ltd TA DS Properties,BED & BREAKFAST - PRIVATE CONTRACTORS PAYMENT,"1,950.00",Housing Management.Letting Agents.NA
13/10/2015,HOUSING NEEDS,D Singh Properties Ltd TA DS Properties,BED & BREAKFAST - PRIVATE CONTRACTORS PAYMENT,"1,950.00",Housing Management.Letting Agents.NA
13/10/2015,HOUSING NEEDS,D Singh Properties Ltd TA DS Properties,BED & BREAKFAST - PRIVATE CONTRACTORS PAYMENT,"1,950.00",Housing Management.Letting Agents.NA
13/10/2015,HOUSING NEEDS,D Singh Properties Ltd TA DS Properties,BED & BREAKFAST - PRIVATE CONTRACTORS PAYMENT,"1,950.00",Housing Management.Letting Agents.NA
13/10/2015,HOUSING NEEDS,D Singh Properties Ltd TA DS Properties,BED & BREAKFAST - PRIVATE CONTRACTORS PAYMENT,"1,950.00",Housing Management.Letting Agents.NA
13/10/2015,HOUSING NEEDS,D Singh Properties Ltd TA DS Properties,BED & BREAKFAST - PRIVATE CONTRACTORS PAYMENT,"1,950.00",Housing Management.Letting Agents.NA
13/10/2015,HOUSING NEEDS,D Singh Properties Ltd TA DS Properties,BED & BREAKFAST - PRIVATE CONTRACTORS PAYMENT,"1,950.00",Housing Management.Letting Agents.NA
13/10/2015,HOUSING NEEDS,D Singh Properties Ltd TA DS Properties,BED & BREAKFAST - PRIVATE CONTRACTORS PAYMENT,"1,950.00",Housing Management.Letting Agents.NA
13/10/2015,HOUSING NEEDS,D Singh Properties Ltd TA DS Properties,BED & BREAKFAST - PRIVATE CONTRACTORS PAYMENT,"1,950.00",Housing Management.Letting Agents.NA
13/10/2015,HOUSING NEEDS,D Singh Properties Ltd TA DS Properties,BED & BREAKFAST - PRIVATE CONTRACTORS PAYMENT,"1,950.00",Housing Management.Letting Agents.NA
13/10/2015,HOUSING NEEDS,Bizylet Property Management Ltd,BED & BREAKFAST - PRIVATE CONTRACTORS PAYMENT,"1,950.00",Housing Management.Letting Agents.NA
13/10/2015,HOUSING NEEDS,Bizylet Property Management Ltd,BED & BREAKFAST - PRIVATE CONTRACTORS PAYMENT,"1,950.00",Housing Management.Letting Agents.NA
13/10/2015,HOUSING NEEDS,Bizylet Property Management Ltd,BED & BREAKFAST - PRIVATE CONTRACTORS PAYMENT,"1,950.00",Housing Management.Letting Agents.NA
13/10/2015,HOUSING NEEDS,Bizylet Property Management Ltd,BED & BREAKFAST - PRIVATE CONTRACTORS PAYMENT,"1,950.00",Housing Management.Letting Agents.NA
13/10/2015,HOUSING NEEDS,Willow Estate Agents,BED & BREAKFAST - PRIVATE CONTRACTORS PAYMENT,"1,950.00",Housing Management.Letting Agents.NA
13/10/2015,HOUSING NEEDS,Euro Hotels Ltd,BED & BREAKFAST - PRIVATE CONTRACTORS PAYMENT,"1,950.00",Housing Management.Letting Agents.NA
13/10/2015,HOUSING NEEDS,Euro Hotels Ltd,BED & BREAKFAST - PRIVATE CONTRACTORS PAYMENT,"1,950.00",Housing Management.Letting Agents.NA
13/10/2015,HOUSING NEEDS,Euro Hotels Ltd,BED & BREAKFAST - PRIVATE CONTRACTORS PAYMENT,"1,950.00",Housing Management.Letting Agents.NA
13/10/2015,HOUSING NEEDS,Euro Hotels Ltd,BED & BREAKFAST - PRIVATE CONTRACTORS PAYMENT,"1,950.00",Housing Management.Letting Agents.NA
13/10/2015,HOUSING NEEDS,D Singh Properties Ltd TA DS Properties,BED & BREAKFAST - PRIVATE CONTRACTORS PAYMENT,"1,922.00",Housing Management.Letting Agents.NA
13/10/2015,HOUSING NEEDS,D Singh Properties Ltd TA DS Properties,BED & BREAKFAST - PRIVATE CONTRACTORS PAYMENT,"1,920.00",Housing Management.Letting Agents.NA
13/10/2015,HOUSING NEEDS,D Singh Properties Ltd TA DS Properties,BED & BREAKFAST - PRIVATE CONTRACTORS PAYMENT,"1,920.00",Housing Management.Letting Agents.NA
13/10/2015,HOUSING MANAGEMENT SERVICES,Apollo Rec,STAFF RECRUITMENT COSTS,"1,910.15",Human Resources.Recruitment & Assessment.NA
13/10/2015,HOUSING MANAGEMENT SERVICES,Mears Ltd,RESPONSIVE REPAIRS - BUILDING,"1,900.00","Works - Construction, Repair & Maint.Buildings.Repair & Maintenance"
13/10/2015,HOUSING NEEDS,Midos Estates Ltd,BED & BREAKFAST - PRIVATE CONTRACTORS PAYMENT,"1,860.00",Housing Management.Letting Agents.NA
13/10/2015,HOUSING NEEDS,Galaxy Lettings Ltd,BED & BREAKFAST - PRIVATE CONTRACTORS PAYMENT,"1,860.00",Housing Management.Housing Association Services.NA
13/10/2015,HOUSING NEEDS,Galaxy Lettings Ltd,BED & BREAKFAST - PRIVATE CONTRACTORS PAYMENT,"1,860.00",Housing Management.Housing Association Services.NA
13/10/2015,HOUSING NEEDS,Galaxy Lettings Ltd,BED & BREAKFAST - PRIVATE CONTRACTORS PAYMENT,"1,860.00",Housing Management.Housing Association Services.NA
13/10/2015,HOUSING NEEDS,D Singh Properties Ltd TA DS Properties,BED & BREAKFAST - PRIVATE CONTRACTORS PAYMENT,"1,860.00",Housing Management.Letting Agents.NA
13/10/2015,HOUSING NEEDS,D Singh Properties Ltd TA DS Properties,BED & BREAKFAST - PRIVATE CONTRACTORS PAYMENT,"1,860.00",Housing Management.Letting Agents.NA
13/10/2015,"STRATEGY & COMMISSIONING - CHILDREN, DISABILITIES & PUBLIC HEALTH",Keyring Living Support Network,FLOATING SUPPORT SERVICES - PRIVATE CONTRACTORS PAYMENT,"1,852.44",Social Community Care Supplies & Service.Adult.Domiciliary Care
13/10/2015,HOUSING MANAGEMENT SERVICES,Mears Ltd,RESPONSIVE REPAIRS - BUILDING,"1,820.50","Works - Construction, Repair & Maint.Buildings.Repair & Maintenance"
13/10/2015,HUMAN RESOURCES AND ORGANISATIONAL DEVELOPMENT (HRA),Penna Plc,"ADVERTISING, PUBLICITY AND MARKETING","1,800.84",Facilities & Management Services.Advertising.Promotional & Recruitment
13/10/2015,HOUSING NEEDS,LPB Housing,BED & BREAKFAST - PRIVATE CONTRACTORS PAYMENT,"1,800.00",Housing Management.Letting Agents.NA
13/10/2015,HOUSING NEEDS,LPB Housing,BED & BREAKFAST - PRIVATE CONTRACTORS PAYMENT,"1,800.00",Housing Management.Letting Agents.NA
13/10/2015,HOUSING NEEDS,LPB Housing,BED & BREAKFAST - PRIVATE CONTRACTORS PAYMENT,"1,800.00",Housing Management.Letting Agents.NA
13/10/2015,HOUSING NEEDS,LPB Housing,BED & BREAKFAST - PRIVATE CONTRACTORS PAYMENT,"1,800.00",Housing Management.Letting Agents.NA
13/10/2015,HOUSING NEEDS,Midos Estates Ltd,BED & BREAKFAST - PRIVATE CONTRACTORS PAYMENT,"1,800.00",Housing Management.Letting Agents.NA
13/10/2015,HOUSING NEEDS,AA Care Homes Ltd,BED & BREAKFAST - PRIVATE CONTRACTORS PAYMENT,"1,800.00",Housing Management.Letting Agents.NA
13/10/2015,HOUSING NEEDS,AA Care Homes Ltd,BED & BREAKFAST - PRIVATE CONTRACTORS PAYMENT,"1,800.00",Housing Management.Letting Agents.NA
13/10/2015,HOUSING NEEDS,AA Care Homes Ltd,BED & BREAKFAST - PRIVATE CONTRACTORS PAYMENT,"1,800.00",Housing Management.Letting Agents.NA
13/10/2015,HOUSING NEEDS,D Singh Properties Ltd TA DS Properties,BED & BREAKFAST - PRIVATE CONTRACTORS PAYMENT,"1,800.00",Housing Management.Letting Agents.NA
13/10/2015,HOUSING NEEDS,D Singh Properties Ltd TA DS Properties,BED & BREAKFAST - PRIVATE CONTRACTORS PAYMENT,"1,800.00",Housing Management.Letting Agents.NA
13/10/2015,HOUSING NEEDS,D Singh Properties Ltd TA DS Properties,BED & BREAKFAST - PRIVATE CONTRACTORS PAYMENT,"1,800.00",Housing Management.Letting Agents.NA
13/10/2015,HOUSING NEEDS,Euro Hotels Ltd,BED & BREAKFAST - PRIVATE CONTRACTORS PAYMENT,"1,800.00",Housing Management.Letting Agents.NA
13/10/2015,CORPORATE ITEMS,Mears Ltd,MISCELLANEOUS EXPENSES,"1,753.00","Works - Construction, Repair & Maint.Buildings.Repair & Maintenance"
13/10/2015,HOUSING NEEDS,D Singh Properties Ltd TA DS Properties,BED & BREAKFAST - PRIVATE CONTRACTORS PAYMENT,"1,740.00",Housing Management.Letting Agents.NA
13/10/2015,HOUSING NEEDS,D Singh Properties Ltd TA DS Properties,BED & BREAKFAST - PRIVATE CONTRACTORS PAYMENT,"1,740.00",Housing Management.Letting Agents.NA
13/10/2015,HOUSING NEEDS,D Singh Properties Ltd TA DS Properties,BED & BREAKFAST - PRIVATE CONTRACTORS PAYMENT,"1,740.00",Housing Management.Letting Agents.NA
13/10/2015,HOUSING NEEDS,D Singh Properties Ltd TA DS Properties,BED & BREAKFAST - PRIVATE CONTRACTORS PAYMENT,"1,740.00",Housing Management.Letting Agents.NA
13/10/2015,HOUSING NEEDS,D Singh Properties Ltd TA DS Properties,BED & BREAKFAST - PRIVATE CONTRACTORS PAYMENT,"1,740.00",Housing Management.Letting Agents.NA
13/10/2015,HOUSING NEEDS,D Singh Properties Ltd TA DS Properties,BED & BREAKFAST - PRIVATE CONTRACTORS PAYMENT,"1,740.00",Housing Management.Letting Agents.NA
13/10/2015,HOUSING NEEDS,D Singh Properties Ltd TA DS Properties,BED & BREAKFAST - PRIVATE CONTRACTORS PAYMENT,"1,740.00",Housing Management.Letting Agents.NA
13/10/2015,HOUSING NEEDS,D Singh Properties Ltd TA DS Properties,BED & BREAKFAST - PRIVATE CONTRACTORS PAYMENT,"1,740.00",Housing Management.Letting Agents.NA
13/10/2015,HOUSING MANAGEMENT SERVICES,Mears Ltd,RESPONSIVE REPAIRS - MECHANICAL AND ELECTRICAL,"1,730.00","Works - Construction, Repair & Maint.Buildings.Repair & Maintenance"
13/10/2015,HOUSING NEEDS,Midos Estates Ltd,BED & BREAKFAST - PRIVATE CONTRACTORS PAYMENT,"1,725.00",Housing Management.Letting Agents.NA
13/10/2015,HOUSING NEEDS,Midos Estates Ltd,BED & BREAKFAST - PRIVATE CONTRACTORS PAYMENT,"1,725.00",Housing Management.Letting Agents.NA
13/10/2015,HOUSING NEEDS,D Singh Properties Ltd TA DS Properties,BED & BREAKFAST - PRIVATE CONTRACTORS PAYMENT,"1,725.00",Housing Management.Letting Agents.NA
13/10/2015,HOUSING NEEDS,Bizylet Property Management Ltd,BED & BREAKFAST - PRIVATE CONTRACTORS PAYMENT,"1,725.00",Housing Management.Letting Agents.NA
13/10/2015,HOUSING NEEDS,Denhan International,BED & BREAKFAST - PRIVATE CONTRACTORS PAYMENT,"1,710.00",Housing Management.Letting Agents.NA
13/10/2015,HOUSING NEEDS,Midos Estates Ltd,BED & BREAKFAST - PRIVATE CONTRACTORS PAYMENT,"1,710.00",Housing Management.Letting Agents.NA
13/10/2015,HOUSING NEEDS,ITA Lettings Ltd,BED & BREAKFAST - PRIVATE CONTRACTORS PAYMENT,"1,710.00",Housing Management.Letting Agents.NA
13/10/2015,HOUSING NEEDS,ITA Lettings Ltd,BED & BREAKFAST - PRIVATE CONTRACTORS PAYMENT,"1,710.00",Housing Management.Letting Agents.NA
13/10/2015,HOUSING NEEDS,AA Care Homes Ltd,BED & BREAKFAST - PRIVATE CONTRACTORS PAYMENT,"1,710.00",Housing Management.Letting Agents.NA
13/10/2015,HOUSING NEEDS,D Singh Properties Ltd TA DS Properties,BED & BREAKFAST - PRIVATE CONTRACTORS PAYMENT,"1,710.00",Housing Management.Letting Agents.NA
13/10/2015,HOUSING NEEDS,D Singh Properties Ltd TA DS Properties,BED & BREAKFAST - PRIVATE CONTRACTORS PAYMENT,"1,710.00",Housing Management.Letting Agents.NA
13/10/2015,HOUSING NEEDS,Bizylet Property Management Ltd,BED & BREAKFAST - PRIVATE CONTRACTORS PAYMENT,"1,710.00",Housing Management.Letting Agents.NA
13/10/2015,HOUSING MANAGEMENT SERVICES,Mears Ltd,RESPONSIVE REPAIRS - BUILDING,"1,709.57","Works - Construction, Repair & Maint.Buildings.Repair & Maintenance"
13/10/2015,HOUSING NEEDS,D Singh Properties Ltd TA DS Properties,BED & BREAKFAST - PRIVATE CONTRACTORS PAYMENT,"1,682.00",Housing Management.Letting Agents.NA
13/10/2015,HOUSING MANAGEMENT SERVICES,Mears Ltd,RESPONSIVE REPAIRS - MECHANICAL AND ELECTRICAL,"1,677.60","Works - Construction, Repair & Maint.Buildings.Repair & Maintenance"
13/10/2015,HOUSING NEEDS,Midos Estates Ltd,BED & BREAKFAST - PRIVATE CONTRACTORS PAYMENT,"1,650.00",Housing Management.Letting Agents.NA
13/10/2015,HOUSING NEEDS,Midos Estates Ltd,BED & BREAKFAST - PRIVATE CONTRACTORS PAYMENT,"1,650.00",Housing Management.Letting Agents.NA
13/10/2015,HOUSING NEEDS,Midos Estates Ltd,BED & BREAKFAST - PRIVATE CONTRACTORS PAYMENT,"1,650.00",Housing Management.Letting Agents.NA
13/10/2015,HOUSING NEEDS,Midos Estates Ltd,BED & BREAKFAST - PRIVATE CONTRACTORS PAYMENT,"1,650.00",Housing Management.Letting Agents.NA
13/10/2015,HOUSING NEEDS,Midos Estates Ltd,BED & BREAKFAST - PRIVATE CONTRACTORS PAYMENT,"1,650.00",Housing Management.Letting Agents.NA
13/10/2015,HOUSING NEEDS,ITA Lettings Ltd,BED & BREAKFAST - PRIVATE CONTRACTORS PAYMENT,"1,650.00",Housing Management.Letting Agents.NA
13/10/2015,HOUSING NEEDS,AA Care Homes Ltd,BED & BREAKFAST - PRIVATE CONTRACTORS PAYMENT,"1,650.00",Housing Management.Letting Agents.NA
13/10/2015,HOUSING NEEDS,AA Care Homes Ltd,BED & BREAKFAST - PRIVATE CONTRACTORS PAYMENT,"1,650.00",Housing Management.Letting Agents.NA
13/10/2015,HOUSING NEEDS,AA Care Homes Ltd,BED & BREAKFAST - PRIVATE CONTRACTORS PAYMENT,"1,650.00",Housing Management.Letting Agents.NA
13/10/2015,HOUSING NEEDS,AA Care Homes Ltd,BED & BREAKFAST - PRIVATE CONTRACTORS PAYMENT,"1,650.00",Housing Management.Letting Agents.NA
13/10/2015,HOUSING NEEDS,AA Care Homes Ltd,BED & BREAKFAST - PRIVATE CONTRACTORS PAYMENT,"1,650.00",Housing Management.Letting Agents.NA
13/10/2015,HOUSING NEEDS,AA Care Homes Ltd,BED & BREAKFAST - PRIVATE CONTRACTORS PAYMENT,"1,650.00",Housing Management.Letting Agents.NA
13/10/2015,HOUSING NEEDS,AA Care Homes Ltd,BED & BREAKFAST - PRIVATE CONTRACTORS PAYMENT,"1,650.00",Housing Management.Letting Agents.NA
13/10/2015,HOUSING NEEDS,AA Care Homes Ltd,BED & BREAKFAST - PRIVATE CONTRACTORS PAYMENT,"1,650.00",Housing Management.Letting Agents.NA
13/10/2015,HOUSING NEEDS,AA Care Homes Ltd,BED & BREAKFAST - PRIVATE CONTRACTORS PAYMENT,"1,650.00",Housing Management.Letting Agents.NA
13/10/2015,HOUSING NEEDS,UK Room (London) Ltd,BED & BREAKFAST - PRIVATE CONTRACTORS PAYMENT,"1,650.00",Housing Management.Letting Agents.NA
13/10/2015,HOUSING NEEDS,UK Room (London) Ltd,BED & BREAKFAST - PRIVATE CONTRACTORS PAYMENT,"1,650.00",Housing Management.Letting Agents.NA
13/10/2015,HOUSING NEEDS,D Singh Properties Ltd TA DS Properties,BED & BREAKFAST - PRIVATE CONTRACTORS PAYMENT,"1,650.00",Housing Management.Letting Agents.NA
13/10/2015,HOUSING NEEDS,D Singh Properties Ltd TA DS Properties,BED & BREAKFAST - PRIVATE CONTRACTORS PAYMENT,"1,650.00",Housing Management.Letting Agents.NA
13/10/2015,HOUSING NEEDS,D Singh Properties Ltd TA DS Properties,BED & BREAKFAST - PRIVATE CONTRACTORS PAYMENT,"1,650.00",Housing Management.Letting Agents.NA
13/10/2015,HOUSING NEEDS,Denhan International,BED & BREAKFAST - PRIVATE CONTRACTORS PAYMENT,"1,620.00",Housing Management.Letting Agents.NA
13/10/2015,HOUSING NEEDS,Denhan International,BED & BREAKFAST - PRIVATE CONTRACTORS PAYMENT,"1,620.00",Housing Management.Letting Agents.NA
13/10/2015,HOUSING NEEDS,Denhan International,BED & BREAKFAST - PRIVATE CONTRACTORS PAYMENT,"1,620.00",Housing Management.Letting Agents.NA
13/10/2015,HOUSING NEEDS,Midos Estates Ltd,BED & BREAKFAST - PRIVATE CONTRACTORS PAYMENT,"1,620.00",Housing Management.Letting Agents.NA
13/10/2015,HOUSING NEEDS,Midos Estates Ltd,BED & BREAKFAST - PRIVATE CONTRACTORS PAYMENT,"1,620.00",Housing Management.Letting Agents.NA
13/10/2015,HOUSING NEEDS,Midos Estates Ltd,BED & BREAKFAST - PRIVATE CONTRACTORS PAYMENT,"1,620.00",Housing Management.Letting Agents.NA
13/10/2015,HOUSING NEEDS,Midos Estates Ltd,BED & BREAKFAST - PRIVATE CONTRACTORS PAYMENT,"1,620.00",Housing Management.Letting Agents.NA
13/10/2015,HOUSING NEEDS,Midos Estates Ltd,BED & BREAKFAST - PRIVATE CONTRACTORS PAYMENT,"1,620.00",Housing Management.Letting Agents.NA
13/10/2015,HOUSING NEEDS,Midos Estates Ltd,BED & BREAKFAST - PRIVATE CONTRACTORS PAYMENT,"1,620.00",Housing Management.Letting Agents.NA
13/10/2015,HOUSING NEEDS,Midos Estates Ltd,BED & BREAKFAST - PRIVATE CONTRACTORS PAYMENT,"1,620.00",Housing Management.Letting Agents.NA
13/10/2015,HOUSING NEEDS,Midos Estates Ltd,BED & BREAKFAST - PRIVATE CONTRACTORS PAYMENT,"1,620.00",Housing Management.Letting Agents.NA
13/10/2015,HOUSING NEEDS,Midos Estates Ltd,BED & BREAKFAST - PRIVATE CONTRACTORS PAYMENT,"1,620.00",Housing Management.Letting Agents.NA
13/10/2015,HOUSING NEEDS,Midos Estates Ltd,BED & BREAKFAST - PRIVATE CONTRACTORS PAYMENT,"1,620.00",Housing Management.Letting Agents.NA
13/10/2015,HOUSING NEEDS,Midos Estates Ltd,BED & BREAKFAST - PRIVATE CONTRACTORS PAYMENT,"1,620.00",Housing Management.Letting Agents.NA
13/10/2015,HOUSING NEEDS,Midos Estates Ltd,BED & BREAKFAST - PRIVATE CONTRACTORS PAYMENT,"1,620.00",Housing Management.Letting Agents.NA
13/10/2015,HOUSING NEEDS,Midos Estates Ltd,BED & BREAKFAST - PRIVATE CONTRACTORS PAYMENT,"1,620.00",Housing Management.Letting Agents.NA
13/10/2015,HOUSING NEEDS,Midos Estates Ltd,BED & BREAKFAST - PRIVATE CONTRACTORS PAYMENT,"1,620.00",Housing Management.Letting Agents.NA
13/10/2015,HOUSING NEEDS,Midos Estates Ltd,BED & BREAKFAST - PRIVATE CONTRACTORS PAYMENT,"1,620.00",Housing Management.Letting Agents.NA
13/10/2015,HOUSING NEEDS,Midos Estates Ltd,BED & BREAKFAST - PRIVATE CONTRACTORS PAYMENT,"1,620.00",Housing Management.Letting Agents.NA
13/10/2015,HOUSING NEEDS,Midos Estates Ltd,BED & BREAKFAST - PRIVATE CONTRACTORS PAYMENT,"1,620.00",Housing Management.Letting Agents.NA
13/10/2015,HOUSING NEEDS,Midos Estates Ltd,BED & BREAKFAST - PRIVATE CONTRACTORS PAYMENT,"1,620.00",Housing Management.Letting Agents.NA
13/10/2015,HOUSING NEEDS,Midos Estates Ltd,BED & BREAKFAST - PRIVATE CONTRACTORS PAYMENT,"1,620.00",Housing Management.Letting Agents.NA
13/10/2015,HOUSING NEEDS,Midos Estates Ltd,BED & BREAKFAST - PRIVATE CONTRACTORS PAYMENT,"1,620.00",Housing Management.Letting Agents.NA
13/10/2015,HOUSING NEEDS,Midos Estates Ltd,BED & BREAKFAST - PRIVATE CONTRACTORS PAYMENT,"1,620.00",Housing Management.Letting Agents.NA
13/10/2015,HOUSING NEEDS,Midos Estates Ltd,BED & BREAKFAST - PRIVATE CONTRACTORS PAYMENT,"1,620.00",Housing Management.Letting Agents.NA
13/10/2015,HOUSING NEEDS,Midos Estates Ltd,BED & BREAKFAST - PRIVATE CONTRACTORS PAYMENT,"1,620.00",Housing Management.Letting Agents.NA
13/10/2015,HOUSING NEEDS,Midos Estates Ltd,BED & BREAKFAST - PRIVATE CONTRACTORS PAYMENT,"1,620.00",Housing Management.Letting Agents.NA
13/10/2015,HOUSING NEEDS,Midos Estates Ltd,BED & BREAKFAST - PRIVATE CONTRACTORS PAYMENT,"1,620.00",Housing Management.Letting Agents.NA
13/10/2015,HOUSING NEEDS,Midos Estates Ltd,BED & BREAKFAST - PRIVATE CONTRACTORS PAYMENT,"1,620.00",Housing Management.Letting Agents.NA
13/10/2015,HOUSING NEEDS,Midos Estates Ltd,BED & BREAKFAST - PRIVATE CONTRACTORS PAYMENT,"1,620.00",Housing Management.Letting Agents.NA
13/10/2015,HOUSING NEEDS,Midos Estates Ltd,BED & BREAKFAST - PRIVATE CONTRACTORS PAYMENT,"1,620.00",Housing Management.Letting Agents.NA
13/10/2015,HOUSING NEEDS,Midos Estates Ltd,BED & BREAKFAST - PRIVATE CONTRACTORS PAYMENT,"1,620.00",Housing Management.Letting Agents.NA
13/10/2015,HOUSING NEEDS,Midos Estates Ltd,BED & BREAKFAST - PRIVATE CONTRACTORS PAYMENT,"1,620.00",Housing Management.Letting Agents.NA
13/10/2015,HOUSING NEEDS,Midos Estates Ltd,BED & BREAKFAST - PRIVATE CONTRACTORS PAYMENT,"1,620.00",Housing Management.Letting Agents.NA
13/10/2015,HOUSING NEEDS,Midos Estates Ltd,BED & BREAKFAST - PRIVATE CONTRACTORS PAYMENT,"1,620.00",Housing Management.Letting Agents.NA
13/10/2015,HOUSING NEEDS,Midos Estates Ltd,BED & BREAKFAST - PRIVATE CONTRACTORS PAYMENT,"1,620.00",Housing Management.Letting Agents.NA
13/10/2015,HOUSING NEEDS,Midos Estates Ltd,BED & BREAKFAST - PRIVATE CONTRACTORS PAYMENT,"1,620.00",Housing Management.Letting Agents.NA
13/10/2015,HOUSING NEEDS,Galaxy Lettings Ltd,BED & BREAKFAST - PRIVATE CONTRACTORS PAYMENT,"1,620.00",Housing Management.Housing Association Services.NA
13/10/2015,HOUSING NEEDS,Galaxy Lettings Ltd,BED & BREAKFAST - PRIVATE CONTRACTORS PAYMENT,"1,620.00",Housing Management.Housing Association Services.NA
13/10/2015,HOUSING NEEDS,Galaxy Lettings Ltd,BED & BREAKFAST - PRIVATE CONTRACTORS PAYMENT,"1,620.00",Housing Management.Housing Association Services.NA
13/10/2015,HOUSING NEEDS,Galaxy Lettings Ltd,BED & BREAKFAST - PRIVATE CONTRACTORS PAYMENT,"1,620.00",Housing Management.Housing Association Services.NA
13/10/2015,HOUSING NEEDS,Galaxy Lettings Ltd,BED & BREAKFAST - PRIVATE CONTRACTORS PAYMENT,"1,620.00",Housing Management.Housing Association Services.NA
13/10/2015,HOUSING NEEDS,Galaxy Lettings Ltd,BED & BREAKFAST - PRIVATE CONTRACTORS PAYMENT,"1,620.00",Housing Management.Housing Association Services.NA
13/10/2015,HOUSING NEEDS,Galaxy Lettings Ltd,BED & BREAKFAST - PRIVATE CONTRACTORS PAYMENT,"1,620.00",Housing Management.Housing Association Services.NA
13/10/2015,HOUSING NEEDS,Galaxy Lettings Ltd,BED & BREAKFAST - PRIVATE CONTRACTORS PAYMENT,"1,620.00",Housing Management.Housing Association Services.NA
13/10/2015,HOUSING NEEDS,Galaxy Lettings Ltd,BED & BREAKFAST - PRIVATE CONTRACTORS PAYMENT,"1,620.00",Housing Management.Housing Association Services.NA
13/10/2015,HOUSING NEEDS,Galaxy Lettings Ltd,BED & BREAKFAST - PRIVATE CONTRACTORS PAYMENT,"1,620.00",Housing Management.Housing Association Services.NA
13/10/2015,HOUSING NEEDS,UK Room (London) Ltd,BED & BREAKFAST - PRIVATE CONTRACTORS PAYMENT,"1,620.00",Housing Management.Letting Agents.NA
13/10/2015,HOUSING NEEDS,Bizylet Property Management Ltd,BED & BREAKFAST - PRIVATE CONTRACTORS PAYMENT,"1,620.00",Housing Management.Letting Agents.NA
13/10/2015,HOUSING NEEDS,Bizylet Property Management Ltd,BED & BREAKFAST - PRIVATE CONTRACTORS PAYMENT,"1,620.00",Housing Management.Letting Agents.NA
13/10/2015,HOUSING NEEDS,Midos Estates Ltd,BED & BREAKFAST - PRIVATE CONTRACTORS PAYMENT,"1,605.00",Housing Management.Letting Agents.NA
13/10/2015,HOUSING NEEDS,Galaxy Lettings Ltd,BED & BREAKFAST - PRIVATE CONTRACTORS PAYMENT,"1,605.00",Housing Management.Housing Association Services.NA
13/10/2015,HOUSING NEEDS,Galaxy Lettings Ltd,BED & BREAKFAST - PRIVATE CONTRACTORS PAYMENT,"1,605.00",Housing Management.Housing Association Services.NA
13/10/2015,HOUSING NEEDS,Galaxy Lettings Ltd,BED & BREAKFAST - PRIVATE CONTRACTORS PAYMENT,"1,605.00",Housing Management.Housing Association Services.NA
13/10/2015,HOUSING NEEDS,Galaxy Lettings Ltd,BED & BREAKFAST - PRIVATE CONTRACTORS PAYMENT,"1,605.00",Housing Management.Housing Association Services.NA
13/10/2015,HOUSING NEEDS,UK Room (London) Ltd,BED & BREAKFAST - PRIVATE CONTRACTORS PAYMENT,"1,605.00",Housing Management.Letting Agents.NA
13/10/2015,HOUSING NEEDS,D Singh Properties Ltd TA DS Properties,BED & BREAKFAST - PRIVATE CONTRACTORS PAYMENT,"1,605.00",Housing Management.Letting Agents.NA
13/10/2015,HOUSING NEEDS,D Singh Properties Ltd TA DS Properties,BED & BREAKFAST - PRIVATE CONTRACTORS PAYMENT,"1,605.00",Housing Management.Letting Agents.NA
13/10/2015,HOUSING NEEDS,D Singh Properties Ltd TA DS Properties,BED & BREAKFAST - PRIVATE CONTRACTORS PAYMENT,"1,605.00",Housing Management.Letting Agents.NA
13/10/2015,HOUSING NEEDS,D Singh Properties Ltd TA DS Properties,BED & BREAKFAST - PRIVATE CONTRACTORS PAYMENT,"1,605.00",Housing Management.Letting Agents.NA
13/10/2015,HOUSING NEEDS,D Singh Properties Ltd TA DS Properties,BED & BREAKFAST - PRIVATE CONTRACTORS PAYMENT,"1,605.00",Housing Management.Letting Agents.NA
13/10/2015,HOUSING NEEDS,Bizylet Property Management Ltd,BED & BREAKFAST - PRIVATE CONTRACTORS PAYMENT,"1,605.00",Housing Management.Letting Agents.NA
13/10/2015,HOUSING NEEDS,Willow Estate Agents,BED & BREAKFAST - PRIVATE CONTRACTORS PAYMENT,"1,605.00",Housing Management.Letting Agents.NA
13/10/2015,HOUSING NEEDS,Midos Estates Ltd,BED & BREAKFAST - PRIVATE CONTRACTORS PAYMENT,"1,595.00",Housing Management.Letting Agents.NA
13/10/2015,HOUSING MANAGEMENT SERVICES,Eden Brown Ltd,STAFF RECRUITMENT COSTS,"1,593.00",Human Resources.Recruitment & Assessment.NA
13/10/2015,HOUSING MANAGEMENT SERVICES,Eden Brown Ltd,STAFF RECRUITMENT COSTS,"1,593.00",Human Resources.Recruitment & Assessment.NA
13/10/2015,HOUSING NEEDS,Midos Estates Ltd,BED & BREAKFAST - PRIVATE CONTRACTORS PAYMENT,"1,590.00",Housing Management.Letting Agents.NA
13/10/2015,HOUSING NEEDS,D Singh Properties Ltd TA DS Properties,BED & BREAKFAST - PRIVATE CONTRACTORS PAYMENT,"1,590.00",Housing Management.Letting Agents.NA
13/10/2015,ADULT SOCIAL CARE,Carewatch (Lambeth),DOMICILIARY CARE - THIRD PARTY,"1,583.41",Social Community Care Supplies & Service.Adult.Domiciliary Care
13/10/2015,HOUSING NEEDS,Hytyme Ltd,BED & BREAKFAST - PRIVATE CONTRACTORS PAYMENT,"1,575.00",Housing Management.Letting Agents.NA
13/10/2015,HOUSING NEEDS,Midos Estates Ltd,BED & BREAKFAST - PRIVATE CONTRACTORS PAYMENT,"1,566.00",Housing Management.Letting Agents.NA
13/10/2015,HOUSING NEEDS,D Singh Properties Ltd TA DS Properties,BED & BREAKFAST - PRIVATE CONTRACTORS PAYMENT,"1,560.00",Housing Management.Letting Agents.NA
13/10/2015,HOUSING NEEDS,Willow Estate Agents,BED & BREAKFAST - PRIVATE CONTRACTORS PAYMENT,"1,560.00",Housing Management.Letting Agents.NA
13/10/2015,HOUSING NEEDS,Willow Estate Agents,BED & BREAKFAST - PRIVATE CONTRACTORS PAYMENT,"1,560.00",Housing Management.Letting Agents.NA
13/10/2015,ADULT SOCIAL CARE,Carewatch (Lambeth),DOMICILIARY CARE - THIRD PARTY,"1,551.17",Social Community Care Supplies & Service.Adult.Domiciliary Care
13/10/2015,"STRATEGY & COMMISSIONING - CHILDREN, DISABILITIES & PUBLIC HEALTH",170 Community Project,FLOATING SUPPORT SERVICES - PRIVATE CONTRACTORS PAYMENT,"1,534.24",Social Community Care Supplies & Service.Adult.Advice & Counselling Services
13/10/2015,"STRATEGY & COMMISSIONING - CHILDREN, DISABILITIES & PUBLIC HEALTH",Eaves Housing for Women Ltd,FLOATING SUPPORT SERVICES - PRIVATE CONTRACTORS PAYMENT,"1,534.24",Social Community Care Supplies & Service.Adult.NA
13/10/2015,HOUSING NEEDS,D Singh Properties Ltd TA DS Properties,BED & BREAKFAST - PRIVATE CONTRACTORS PAYMENT,"1,530.00",Housing Management.Letting Agents.NA
13/10/2015,HOUSING NEEDS,Bizylet Property Management Ltd,BED & BREAKFAST - PRIVATE CONTRACTORS PAYMENT,"1,530.00",Housing Management.Letting Agents.NA
13/10/2015,CHILDREN'S SERVICES,R@W Logistics Ltd,RENTS PAYABLE,"1,528.25","Social Community Care Supplies & Service.Adult.Temporary Accommodation, Short Stay"
13/10/2015,"STRATEGY & COMMISSIONING - CHILDREN, DISABILITIES & PUBLIC HEALTH",Southside Partnership,FLOATING SUPPORT SERVICES - PRIVATE CONTRACTORS PAYMENT,"1,506.84",Social Community Care Supplies & Service.Adult.Mental Health Services
13/10/2015,STRATEGY & COMMISSIONING - HOUSING & COMMUNITIES,Taslim Martin,ARTS AND LEISURE COSTS,"1,500.00",Arts & Leisure Services.Museums & Art.NA
13/10/2015,HOUSING NEEDS,LPB Housing,BED & BREAKFAST - PRIVATE CONTRACTORS PAYMENT,"1,500.00",Housing Management.Letting Agents.NA
13/10/2015,HOUSING NEEDS,Midos Estates Ltd,BED & BREAKFAST - PRIVATE CONTRACTORS PAYMENT,"1,500.00",Housing Management.Letting Agents.NA
13/10/2015,HOUSING NEEDS,Midos Estates Ltd,BED & BREAKFAST - PRIVATE CONTRACTORS PAYMENT,"1,500.00",Housing Management.Letting Agents.NA
13/10/2015,HOUSING NEEDS,AA Care Homes Ltd,BED & BREAKFAST - PRIVATE CONTRACTORS PAYMENT,"1,500.00",Housing Management.Letting Agents.NA
13/10/2015,HOUSING NEEDS,D Singh Properties Ltd TA DS Properties,BED & BREAKFAST - PRIVATE CONTRACTORS PAYMENT,"1,500.00",Housing Management.Letting Agents.NA
13/10/2015,HOUSING NEEDS,D Singh Properties Ltd TA DS Properties,BED & BREAKFAST - PRIVATE CONTRACTORS PAYMENT,"1,500.00",Housing Management.Letting Agents.NA
13/10/2015,HOUSING NEEDS,D Singh Properties Ltd TA DS Properties,BED & BREAKFAST - PRIVATE CONTRACTORS PAYMENT,"1,500.00",Housing Management.Letting Agents.NA
13/10/2015,HOUSING NEEDS,D Singh Properties Ltd TA DS Properties,BED & BREAKFAST - PRIVATE CONTRACTORS PAYMENT,"1,500.00",Housing Management.Letting Agents.NA
13/10/2015,HOUSING NEEDS,D Singh Properties Ltd TA DS Properties,BED & BREAKFAST - PRIVATE CONTRACTORS PAYMENT,"1,500.00",Housing Management.Letting Agents.NA
13/10/2015,HOUSING NEEDS,D Singh Properties Ltd TA DS Properties,BED & BREAKFAST - PRIVATE CONTRACTORS PAYMENT,"1,500.00",Housing Management.Letting Agents.NA
13/10/2015,HOUSING NEEDS,D Singh Properties Ltd TA DS Properties,BED & BREAKFAST - PRIVATE CONTRACTORS PAYMENT,"1,500.00",Housing Management.Letting Agents.NA
13/10/2015,HOUSING NEEDS,D Singh Properties Ltd TA DS Properties,BED & BREAKFAST - PRIVATE CONTRACTORS PAYMENT,"1,500.00",Housing Management.Letting Agents.NA
13/10/2015,HOUSING NEEDS,D Singh Properties Ltd TA DS Properties,BED & BREAKFAST - PRIVATE CONTRACTORS PAYMENT,"1,500.00",Housing Management.Letting Agents.NA
13/10/2015,HOUSING NEEDS,D Singh Properties Ltd TA DS Properties,BED & BREAKFAST - PRIVATE CONTRACTORS PAYMENT,"1,500.00",Housing Management.Letting Agents.NA
13/10/2015,HOUSING NEEDS,D Singh Properties Ltd TA DS Properties,BED & BREAKFAST - PRIVATE CONTRACTORS PAYMENT,"1,500.00",Housing Management.Letting Agents.NA
13/10/2015,HOUSING NEEDS,D Singh Properties Ltd TA DS Properties,BED & BREAKFAST - PRIVATE CONTRACTORS PAYMENT,"1,500.00",Housing Management.Letting Agents.NA
13/10/2015,HOUSING NEEDS,Bizylet Property Management Ltd,BED & BREAKFAST - PRIVATE CONTRACTORS PAYMENT,"1,500.00",Housing Management.Letting Agents.NA
13/10/2015,HOUSING NEEDS,Bizylet Property Management Ltd,BED & BREAKFAST - PRIVATE CONTRACTORS PAYMENT,"1,500.00",Housing Management.Letting Agents.NA
13/10/2015,HOUSING NEEDS,Bizylet Property Management Ltd,BED & BREAKFAST - PRIVATE CONTRACTORS PAYMENT,"1,500.00",Housing Management.Letting Agents.NA
13/10/2015,HOUSING NEEDS,Bizylet Property Management Ltd,BED & BREAKFAST - PRIVATE CONTRACTORS PAYMENT,"1,500.00",Housing Management.Letting Agents.NA
13/10/2015,HOUSING NEEDS,Bizylet Property Management Ltd,BED & BREAKFAST - PRIVATE CONTRACTORS PAYMENT,"1,500.00",Housing Management.Letting Agents.NA
13/10/2015,HOUSING NEEDS,Willow Estate Agents,BED & BREAKFAST - PRIVATE CONTRACTORS PAYMENT,"1,500.00",Housing Management.Letting Agents.NA
13/10/2015,HOUSING NEEDS,Denhan International,BED & BREAKFAST - PRIVATE CONTRACTORS PAYMENT,"1,470.00",Housing Management.Letting Agents.NA
13/10/2015,HOUSING MANAGEMENT SERVICES,Mears Ltd,RESPONSIVE REPAIRS - BUILDING,"1,456.40","Works - Construction, Repair & Maint.Buildings.Repair & Maintenance"
13/10/2015,HOUSING NEEDS,AA Care Homes Ltd,BED & BREAKFAST - PRIVATE CONTRACTORS PAYMENT,"1,455.00",Housing Management.Letting Agents.NA
13/10/2015,HOUSING MANAGEMENT SERVICES,Sir Frederick Snow & Partners Ltd,"MAINTENANCE - EQUIPMENT, FURNITURE AND MATERIALS","1,445.00","Works - Construction, Repair & Maint.Engineering.NA"
13/10/2015,HOUSING NEEDS,Denhan International,BED & BREAKFAST - PRIVATE CONTRACTORS PAYMENT,"1,440.00",Housing Management.Letting Agents.NA
13/10/2015,HOUSING NEEDS,Forbes And Sawyer_d,BED & BREAKFAST - PRIVATE CONTRACTORS PAYMENT,"1,440.00",Housing Management.Letting Agents.NA
13/10/2015,HOUSING NEEDS,Galaxy Lettings Ltd,BED & BREAKFAST - PRIVATE CONTRACTORS PAYMENT,"1,440.00",Housing Management.Housing Association Services.NA
13/10/2015,HOUSING NEEDS,Galaxy Lettings Ltd,BED & BREAKFAST - PRIVATE CONTRACTORS PAYMENT,"1,440.00",Housing Management.Housing Association Services.NA
13/10/2015,HOUSING NEEDS,Galaxy Lettings Ltd,BED & BREAKFAST - PRIVATE CONTRACTORS PAYMENT,"1,440.00",Housing Management.Housing Association Services.NA
13/10/2015,HOUSING NEEDS,Galaxy Lettings Ltd,BED & BREAKFAST - PRIVATE CONTRACTORS PAYMENT,"1,440.00",Housing Management.Housing Association Services.NA
13/10/2015,HOUSING NEEDS,Galaxy Lettings Ltd,BED & BREAKFAST - PRIVATE CONTRACTORS PAYMENT,"1,440.00",Housing Management.Housing Association Services.NA
13/10/2015,HOUSING NEEDS,Galaxy Lettings Ltd,BED & BREAKFAST - PRIVATE CONTRACTORS PAYMENT,"1,440.00",Housing Management.Housing Association Services.NA
13/10/2015,HOUSING NEEDS,Galaxy Lettings Ltd,BED & BREAKFAST - PRIVATE CONTRACTORS PAYMENT,"1,440.00",Housing Management.Housing Association Services.NA
13/10/2015,HOUSING NEEDS,Galaxy Lettings Ltd,BED & BREAKFAST - PRIVATE CONTRACTORS PAYMENT,"1,440.00",Housing Management.Housing Association Services.NA
13/10/2015,HOUSING NEEDS,D Singh Properties Ltd TA DS Properties,BED & BREAKFAST - PRIVATE CONTRACTORS PAYMENT,"1,440.00",Housing Management.Letting Agents.NA
13/10/2015,HOUSING NEEDS,D Singh Properties Ltd TA DS Properties,BED & BREAKFAST - PRIVATE CONTRACTORS PAYMENT,"1,440.00",Housing Management.Letting Agents.NA
13/10/2015,HOUSING NEEDS,AA Care Homes Ltd,BED & BREAKFAST - PRIVATE CONTRACTORS PAYMENT,"1,425.00",Housing Management.Letting Agents.NA
13/10/2015,HOUSING MANAGEMENT SERVICES,Mears Ltd,RESPONSIVE REPAIRS - BUILDING,"1,417.90","Works - Construction, Repair & Maint.Buildings.Repair & Maintenance"
13/10/2015,HOUSING NEEDS,Bizylet Property Management Ltd,BED & BREAKFAST - PRIVATE CONTRACTORS PAYMENT,"1,410.00",Housing Management.Letting Agents.NA
13/10/2015,HOUSING MANAGEMENT SERVICES,Mears Ltd,RESPONSIVE REPAIRS - BUILDING,"1,391.72","Works - Construction, Repair & Maint.Buildings.Repair & Maintenance"
13/10/2015,HOUSING MANAGEMENT SERVICES,Mears Ltd,RESPONSIVE REPAIRS - MECHANICAL AND ELECTRICAL,"1,388.36","Works - Construction, Repair & Maint.Buildings.Repair & Maintenance"
13/10/2015,HOUSING NEEDS,Midos Estates Ltd,BED & BREAKFAST - PRIVATE CONTRACTORS PAYMENT,"1,380.00",Housing Management.Letting Agents.NA
13/10/2015,HOUSING NEEDS,Midos Estates Ltd,BED & BREAKFAST - PRIVATE CONTRACTORS PAYMENT,"1,380.00",Housing Management.Letting Agents.NA
13/10/2015,HOUSING NEEDS,Midos Estates Ltd,BED & BREAKFAST - PRIVATE CONTRACTORS PAYMENT,"1,380.00",Housing Management.Letting Agents.NA
13/10/2015,HOUSING NEEDS,Midos Estates Ltd,BED & BREAKFAST - PRIVATE CONTRACTORS PAYMENT,"1,380.00",Housing Management.Letting Agents.NA
13/10/2015,HOUSING NEEDS,Midos Estates Ltd,BED & BREAKFAST - PRIVATE CONTRACTORS PAYMENT,"1,380.00",Housing Management.Letting Agents.NA
13/10/2015,HOUSING NEEDS,Midos Estates Ltd,BED & BREAKFAST - PRIVATE CONTRACTORS PAYMENT,"1,380.00",Housing Management.Letting Agents.NA
13/10/2015,HOUSING NEEDS,Midos Estates Ltd,BED & BREAKFAST - PRIVATE CONTRACTORS PAYMENT,"1,380.00",Housing Management.Letting Agents.NA
13/10/2015,HOUSING NEEDS,Midos Estates Ltd,BED & BREAKFAST - PRIVATE CONTRACTORS PAYMENT,"1,380.00",Housing Management.Letting Agents.NA
13/10/2015,HOUSING NEEDS,Midos Estates Ltd,BED & BREAKFAST - PRIVATE CONTRACTORS PAYMENT,"1,380.00",Housing Management.Letting Agents.NA
13/10/2015,HOUSING NEEDS,Midos Estates Ltd,BED & BREAKFAST - PRIVATE CONTRACTORS PAYMENT,"1,380.00",Housing Management.Letting Agents.NA
13/10/2015,HOUSING NEEDS,Midos Estates Ltd,BED & BREAKFAST - PRIVATE CONTRACTORS PAYMENT,"1,380.00",Housing Management.Letting Agents.NA
13/10/2015,HOUSING NEEDS,Midos Estates Ltd,BED & BREAKFAST - PRIVATE CONTRACTORS PAYMENT,"1,380.00",Housing Management.Letting Agents.NA
13/10/2015,HOUSING NEEDS,Midos Estates Ltd,BED & BREAKFAST - PRIVATE CONTRACTORS PAYMENT,"1,380.00",Housing Management.Letting Agents.NA
13/10/2015,HOUSING NEEDS,Midos Estates Ltd,BED & BREAKFAST - PRIVATE CONTRACTORS PAYMENT,"1,380.00",Housing Management.Letting Agents.NA
13/10/2015,HOUSING NEEDS,D Singh Properties Ltd TA DS Properties,BED & BREAKFAST - PRIVATE CONTRACTORS PAYMENT,"1,380.00",Housing Management.Letting Agents.NA
13/10/2015,HOUSING NEEDS,Midos Estates Ltd,BED & BREAKFAST - PRIVATE CONTRACTORS PAYMENT,"1,365.00",Housing Management.Letting Agents.NA
13/10/2015,HOUSING NEEDS,Midos Estates Ltd,BED & BREAKFAST - PRIVATE CONTRACTORS PAYMENT,"1,365.00",Housing Management.Letting Agents.NA
13/10/2015,HOUSING NEEDS,Midos Estates Ltd,BED & BREAKFAST - PRIVATE CONTRACTORS PAYMENT,"1,365.00",Housing Management.Letting Agents.NA
13/10/2015,HOUSING NEEDS,Midos Estates Ltd,BED & BREAKFAST - PRIVATE CONTRACTORS PAYMENT,"1,365.00",Housing Management.Letting Agents.NA
13/10/2015,HOUSING NEEDS,Galaxy Lettings Ltd,BED & BREAKFAST - PRIVATE CONTRACTORS PAYMENT,"1,365.00",Housing Management.Housing Association Services.NA
13/10/2015,HOUSING NEEDS,AA Care Homes Ltd,BED & BREAKFAST - PRIVATE CONTRACTORS PAYMENT,"1,365.00",Housing Management.Letting Agents.NA
13/10/2015,HOUSING NEEDS,D Singh Properties Ltd TA DS Properties,BED & BREAKFAST - PRIVATE CONTRACTORS PAYMENT,"1,365.00",Housing Management.Letting Agents.NA
13/10/2015,HOUSING NEEDS,D Singh Properties Ltd TA DS Properties,BED & BREAKFAST - PRIVATE CONTRACTORS PAYMENT,"1,365.00",Housing Management.Letting Agents.NA
13/10/2015,HOUSING NEEDS,D Singh Properties Ltd TA DS Properties,BED & BREAKFAST - PRIVATE CONTRACTORS PAYMENT,"1,365.00",Housing Management.Letting Agents.NA
13/10/2015,HOUSING NEEDS,D Singh Properties Ltd TA DS Properties,BED & BREAKFAST - PRIVATE CONTRACTORS PAYMENT,"1,365.00",Housing Management.Letting Agents.NA
13/10/2015,HOUSING NEEDS,D Singh Properties Ltd TA DS Properties,BED & BREAKFAST - PRIVATE CONTRACTORS PAYMENT,"1,365.00",Housing Management.Letting Agents.NA
13/10/2015,HOUSING NEEDS,Midos Estates Ltd,BED & BREAKFAST - PRIVATE CONTRACTORS PAYMENT,"1,350.00",Housing Management.Letting Agents.NA
13/10/2015,HOUSING NEEDS,Midos Estates Ltd,BED & BREAKFAST - PRIVATE CONTRACTORS PAYMENT,"1,350.00",Housing Management.Letting Agents.NA
13/10/2015,HOUSING NEEDS,ITA Lettings Ltd,BED & BREAKFAST - PRIVATE CONTRACTORS PAYMENT,"1,350.00",Housing Management.Letting Agents.NA
13/10/2015,HOUSING NEEDS,AA Care Homes Ltd,BED & BREAKFAST - PRIVATE CONTRACTORS PAYMENT,"1,350.00",Housing Management.Letting Agents.NA
13/10/2015,HOUSING NEEDS,AA Care Homes Ltd,BED & BREAKFAST - PRIVATE CONTRACTORS PAYMENT,"1,350.00",Housing Management.Letting Agents.NA
13/10/2015,HOUSING NEEDS,AA Care Homes Ltd,BED & BREAKFAST - PRIVATE CONTRACTORS PAYMENT,"1,350.00",Housing Management.Letting Agents.NA
13/10/2015,HOUSING NEEDS,AA Care Homes Ltd,BED & BREAKFAST - PRIVATE CONTRACTORS PAYMENT,"1,350.00",Housing Management.Letting Agents.NA
13/10/2015,HOUSING NEEDS,AA Care Homes Ltd,BED & BREAKFAST - PRIVATE CONTRACTORS PAYMENT,"1,350.00",Housing Management.Letting Agents.NA
13/10/2015,HOUSING NEEDS,AA Care Homes Ltd,BED & BREAKFAST - PRIVATE CONTRACTORS PAYMENT,"1,350.00",Housing Management.Letting Agents.NA
13/10/2015,HOUSING NEEDS,UK Room (London) Ltd,BED & BREAKFAST - PRIVATE CONTRACTORS PAYMENT,"1,350.00",Housing Management.Letting Agents.NA
13/10/2015,HOUSING NEEDS,D Singh Properties Ltd TA DS Properties,BED & BREAKFAST - PRIVATE CONTRACTORS PAYMENT,"1,350.00",Housing Management.Letting Agents.NA
13/10/2015,HOUSING NEEDS,Bizylet Property Management Ltd,BED & BREAKFAST - PRIVATE CONTRACTORS PAYMENT,"1,350.00",Housing Management.Letting Agents.NA
13/10/2015,HOUSING NEEDS,Bizylet Property Management Ltd,BED & BREAKFAST - PRIVATE CONTRACTORS PAYMENT,"1,350.00",Housing Management.Letting Agents.NA
13/10/2015,HOUSING NEEDS,Bizylet Property Management Ltd,BED & BREAKFAST - PRIVATE CONTRACTORS PAYMENT,"1,350.00",Housing Management.Letting Agents.NA
13/10/2015,HOUSING NEEDS,Willow Estate Agents,BED & BREAKFAST - PRIVATE CONTRACTORS PAYMENT,"1,350.00",Housing Management.Letting Agents.NA
13/10/2015,HOUSING NEEDS,Midos Estates Ltd,BED & BREAKFAST - PRIVATE CONTRACTORS PAYMENT,"1,320.00",Housing Management.Letting Agents.NA
13/10/2015,HOUSING NEEDS,Galaxy Lettings Ltd,BED & BREAKFAST - PRIVATE CONTRACTORS PAYMENT,"1,320.00",Housing Management.Housing Association Services.NA
13/10/2015,HOUSING NEEDS,Willow Estate Agents,BED & BREAKFAST - PRIVATE CONTRACTORS PAYMENT,"1,320.00",Housing Management.Letting Agents.NA
13/10/2015,HOUSING NEEDS,Willow Estate Agents,BED & BREAKFAST - PRIVATE CONTRACTORS PAYMENT,"1,320.00",Housing Management.Letting Agents.NA
13/10/2015,HOUSING NEEDS,D Singh Properties Ltd TA DS Properties,BED & BREAKFAST - PRIVATE CONTRACTORS PAYMENT,"1,302.00",Housing Management.Letting Agents.NA
13/10/2015,HOUSING NEEDS,Denhan International,BED & BREAKFAST - PRIVATE CONTRACTORS PAYMENT,"1,290.00",Housing Management.Letting Agents.NA
13/10/2015,HOUSING NEEDS,Midos Estates Ltd,BED & BREAKFAST - PRIVATE CONTRACTORS PAYMENT,"1,290.00",Housing Management.Letting Agents.NA
13/10/2015,HOUSING NEEDS,Midos Estates Ltd,BED & BREAKFAST - PRIVATE CONTRACTORS PAYMENT,"1,290.00",Housing Management.Letting Agents.NA
13/10/2015,HOUSING NEEDS,Galaxy Lettings Ltd,BED & BREAKFAST - PRIVATE CONTRACTORS PAYMENT,"1,290.00",Housing Management.Housing Association Services.NA
13/10/2015,HOUSING NEEDS,Galaxy Lettings Ltd,BED & BREAKFAST - PRIVATE CONTRACTORS PAYMENT,"1,290.00",Housing Management.Housing Association Services.NA
13/10/2015,HOUSING NEEDS,D Singh Properties Ltd TA DS Properties,BED & BREAKFAST - PRIVATE CONTRACTORS PAYMENT,"1,290.00",Housing Management.Letting Agents.NA
13/10/2015,HOUSING NEEDS,D Singh Properties Ltd TA DS Properties,BED & BREAKFAST - PRIVATE CONTRACTORS PAYMENT,"1,290.00",Housing Management.Letting Agents.NA
13/10/2015,HOUSING NEEDS,Bizylet Property Management Ltd,BED & BREAKFAST - PRIVATE CONTRACTORS PAYMENT,"1,290.00",Housing Management.Letting Agents.NA
13/10/2015,HOUSING NEEDS,Bizylet Property Management Ltd,BED & BREAKFAST - PRIVATE CONTRACTORS PAYMENT,"1,290.00",Housing Management.Letting Agents.NA
13/10/2015,HOUSING NEEDS,Willow Estate Agents,BED & BREAKFAST - PRIVATE CONTRACTORS PAYMENT,"1,290.00",Housing Management.Letting Agents.NA
13/10/2015,HOUSING MANAGEMENT SERVICES,Eden Brown Ltd,STAFF RECRUITMENT COSTS,"1,274.40",Human Resources.Recruitment & Assessment.NA
13/10/2015,ADULT SOCIAL CARE,Holistic Community Care Ltd,DOMICILIARY CARE - THIRD PARTY,"1,267.14",Social Community Care Supplies & Service.Adult.Domiciliary Care
13/10/2015,"STRATEGY & COMMISSIONING - CHILDREN, DISABILITIES & PUBLIC HEALTH",Look Ahead Housing & Care Ltd,PRIVATE CONTRACTORS PAYMENT - OTHER,"1,263.45",Social Community Care Supplies & Service.Adult.Advice & Counselling Services
13/10/2015,HOUSING NEEDS,Denhan International,BED & BREAKFAST - PRIVATE CONTRACTORS PAYMENT,"1,260.00",Housing Management.Letting Agents.NA
13/10/2015,HOUSING NEEDS,Midos Estates Ltd,BED & BREAKFAST - PRIVATE CONTRACTORS PAYMENT,"1,260.00",Housing Management.Letting Agents.NA
13/10/2015,HOUSING NEEDS,Midos Estates Ltd,BED & BREAKFAST - PRIVATE CONTRACTORS PAYMENT,"1,260.00",Housing Management.Letting Agents.NA
13/10/2015,HOUSING NEEDS,Midos Estates Ltd,BED & BREAKFAST - PRIVATE CONTRACTORS PAYMENT,"1,260.00",Housing Management.Letting Agents.NA
13/10/2015,HOUSING NEEDS,Midos Estates Ltd,BED & BREAKFAST - PRIVATE CONTRACTORS PAYMENT,"1,260.00",Housing Management.Letting Agents.NA
13/10/2015,HOUSING NEEDS,Midos Estates Ltd,BED & BREAKFAST - PRIVATE CONTRACTORS PAYMENT,"1,260.00",Housing Management.Letting Agents.NA
13/10/2015,HOUSING NEEDS,Midos Estates Ltd,BED & BREAKFAST - PRIVATE CONTRACTORS PAYMENT,"1,260.00",Housing Management.Letting Agents.NA
13/10/2015,HOUSING NEEDS,Midos Estates Ltd,BED & BREAKFAST - PRIVATE CONTRACTORS PAYMENT,"1,260.00",Housing Management.Letting Agents.NA
13/10/2015,HOUSING NEEDS,AA Care Homes Ltd,BED & BREAKFAST - PRIVATE CONTRACTORS PAYMENT,"1,260.00",Housing Management.Letting Agents.NA
13/10/2015,HOUSING NEEDS,D Singh Properties Ltd TA DS Properties,BED & BREAKFAST - PRIVATE CONTRACTORS PAYMENT,"1,260.00",Housing Management.Letting Agents.NA
13/10/2015,HOUSING NEEDS,D Singh Properties Ltd TA DS Properties,BED & BREAKFAST - PRIVATE CONTRACTORS PAYMENT,"1,254.00",Housing Management.Letting Agents.NA
13/10/2015,HOUSING MANAGEMENT SERVICES,Mears Ltd,RESPONSIVE REPAIRS - BUILDING,"1,250.69","Works - Construction, Repair & Maint.Buildings.Repair & Maintenance"
13/10/2015,HOUSING MANAGEMENT SERVICES,Mears Ltd,RESPONSIVE REPAIRS - BUILDING,"1,250.00","Works - Construction, Repair & Maint.Buildings.Repair & Maintenance"
13/10/2015,HOUSING MANAGEMENT SERVICES,Mears Ltd,RESPONSIVE REPAIRS - BUILDING,"1,250.00","Works - Construction, Repair & Maint.Buildings.Repair & Maintenance"
13/10/2015,HOUSING NEEDS,D Singh Properties Ltd TA DS Properties,BED & BREAKFAST - PRIVATE CONTRACTORS PAYMENT,"1,240.00",Housing Management.Letting Agents.NA
13/10/2015,HOUSING MANAGEMENT SERVICES,Mears Ltd,RESPONSIVE REPAIRS - BUILDING,"1,231.60","Works - Construction, Repair & Maint.Buildings.Repair & Maintenance"
13/10/2015,HOUSING NEEDS,Midos Estates Ltd,BED & BREAKFAST - PRIVATE CONTRACTORS PAYMENT,"1,230.00",Housing Management.Letting Agents.NA
13/10/2015,HOUSING NEEDS,Midos Estates Ltd,BED & BREAKFAST - PRIVATE CONTRACTORS PAYMENT,"1,230.00",Housing Management.Letting Agents.NA
13/10/2015,HOUSING NEEDS,Midos Estates Ltd,BED & BREAKFAST - PRIVATE CONTRACTORS PAYMENT,"1,230.00",Housing Management.Letting Agents.NA
13/10/2015,HOUSING NEEDS,Midos Estates Ltd,BED & BREAKFAST - PRIVATE CONTRACTORS PAYMENT,"1,230.00",Housing Management.Letting Agents.NA
13/10/2015,HOUSING NEEDS,Midos Estates Ltd,BED & BREAKFAST - PRIVATE CONTRACTORS PAYMENT,"1,230.00",Housing Management.Letting Agents.NA
13/10/2015,HOUSING NEEDS,Midos Estates Ltd,BED & BREAKFAST - PRIVATE CONTRACTORS PAYMENT,"1,230.00",Housing Management.Letting Agents.NA
13/10/2015,HOUSING NEEDS,Midos Estates Ltd,BED & BREAKFAST - PRIVATE CONTRACTORS PAYMENT,"1,230.00",Housing Management.Letting Agents.NA
13/10/2015,HOUSING NEEDS,AA Care Homes Ltd,BED & BREAKFAST - PRIVATE CONTRACTORS PAYMENT,"1,230.00",Housing Management.Letting Agents.NA
13/10/2015,HOUSING NEEDS,Hytyme Ltd,BED & BREAKFAST - PRIVATE CONTRACTORS PAYMENT,"1,230.00",Housing Management.Letting Agents.NA
13/10/2015,HOUSING NEEDS,D Singh Properties Ltd TA DS Properties,BED & BREAKFAST - PRIVATE CONTRACTORS PAYMENT,"1,230.00",Housing Management.Letting Agents.NA
13/10/2015,HOUSING NEEDS,D Singh Properties Ltd TA DS Properties,BED & BREAKFAST - PRIVATE CONTRACTORS PAYMENT,"1,230.00",Housing Management.Letting Agents.NA
13/10/2015,HOUSING NEEDS,Bizylet Property Management Ltd,BED & BREAKFAST - PRIVATE CONTRACTORS PAYMENT,"1,230.00",Housing Management.Letting Agents.NA
13/10/2015,HOUSING NEEDS,Willow Estate Agents,BED & BREAKFAST - PRIVATE CONTRACTORS PAYMENT,"1,230.00",Housing Management.Letting Agents.NA
13/10/2015,HOUSING NEEDS,Willow Estate Agents,BED & BREAKFAST - PRIVATE CONTRACTORS PAYMENT,"1,230.00",Housing Management.Letting Agents.NA
13/10/2015,HOUSING NEEDS,Willow Estate Agents,BED & BREAKFAST - PRIVATE CONTRACTORS PAYMENT,"1,230.00",Housing Management.Letting Agents.NA
13/10/2015,HOUSING NEEDS,Willow Estate Agents,BED & BREAKFAST - PRIVATE CONTRACTORS PAYMENT,"1,230.00",Housing Management.Letting Agents.NA
13/10/2015,HOUSING NEEDS,Willow Estate Agents,BED & BREAKFAST - PRIVATE CONTRACTORS PAYMENT,"1,230.00",Housing Management.Letting Agents.NA
13/10/2015,HOUSING NEEDS,Willow Estate Agents,BED & BREAKFAST - PRIVATE CONTRACTORS PAYMENT,"1,230.00",Housing Management.Letting Agents.NA
13/10/2015,HOUSING NEEDS,Willow Estate Agents,BED & BREAKFAST - PRIVATE CONTRACTORS PAYMENT,"1,230.00",Housing Management.Letting Agents.NA
13/10/2015,HOUSING NEEDS,Willow Estate Agents,BED & BREAKFAST - PRIVATE CONTRACTORS PAYMENT,"1,230.00",Housing Management.Letting Agents.NA
13/10/2015,HOUSING NEEDS,Willow Estate Agents,BED & BREAKFAST - PRIVATE CONTRACTORS PAYMENT,"1,230.00",Housing Management.Letting Agents.NA
13/10/2015,HOUSING NEEDS,Willow Estate Agents,BED & BREAKFAST - PRIVATE CONTRACTORS PAYMENT,"1,230.00",Housing Management.Letting Agents.NA
13/10/2015,HOUSING NEEDS,Willow Estate Agents,BED & BREAKFAST - PRIVATE CONTRACTORS PAYMENT,"1,230.00",Housing Management.Letting Agents.NA
13/10/2015,HOUSING NEEDS,Willow Estate Agents,BED & BREAKFAST - PRIVATE CONTRACTORS PAYMENT,"1,230.00",Housing Management.Letting Agents.NA
13/10/2015,HOUSING NEEDS,Midos Estates Ltd,BED & BREAKFAST - PRIVATE CONTRACTORS PAYMENT,"1,220.00",Housing Management.Letting Agents.NA
13/10/2015,CORPORATE ITEMS,Mears Ltd,MISCELLANEOUS EXPENSES,"1,219.56","Works - Construction, Repair & Maint.Buildings.Repair & Maintenance"
13/10/2015,HOUSING NEEDS,LPB Housing,BED & BREAKFAST - PRIVATE CONTRACTORS PAYMENT,"1,215.00",Housing Management.Letting Agents.NA
13/10/2015,HOUSING NEEDS,D Singh Properties Ltd TA DS Properties,BED & BREAKFAST - PRIVATE CONTRACTORS PAYMENT,"1,210.00",Housing Management.Letting Agents.NA
13/10/2015,CHILDREN'S SERVICES,Norbury Property Services (London) Ltd,BED & BREAKFAST - PRIVATE CONTRACTORS PAYMENT,"1,209.00","Social Community Care Supplies & Service.Adult.Temporary Accommodation, Short Stay"
13/10/2015,HOUSING NEEDS,Midos Estates Ltd,BED & BREAKFAST - PRIVATE CONTRACTORS PAYMENT,"1,200.00",Housing Management.Letting Agents.NA
13/10/2015,HOUSING NEEDS,Midos Estates Ltd,BED & BREAKFAST - PRIVATE CONTRACTORS PAYMENT,"1,200.00",Housing Management.Letting Agents.NA
13/10/2015,HOUSING NEEDS,Midos Estates Ltd,BED & BREAKFAST - PRIVATE CONTRACTORS PAYMENT,"1,200.00",Housing Management.Letting Agents.NA
13/10/2015,HOUSING NEEDS,Midos Estates Ltd,BED & BREAKFAST - PRIVATE CONTRACTORS PAYMENT,"1,200.00",Housing Management.Letting Agents.NA
13/10/2015,HOUSING NEEDS,Galaxy Lettings Ltd,BED & BREAKFAST - PRIVATE CONTRACTORS PAYMENT,"1,200.00",Housing Management.Housing Association Services.NA
13/10/2015,HOUSING NEEDS,Hytyme Ltd,BED & BREAKFAST - PRIVATE CONTRACTORS PAYMENT,"1,200.00",Housing Management.Letting Agents.NA
13/10/2015,HOUSING NEEDS,Hytyme Ltd,BED & BREAKFAST - PRIVATE CONTRACTORS PAYMENT,"1,200.00",Housing Management.Letting Agents.NA
13/10/2015,HOUSING NEEDS,D Singh Properties Ltd TA DS Properties,BED & BREAKFAST - PRIVATE CONTRACTORS PAYMENT,"1,200.00",Housing Management.Letting Agents.NA
13/10/2015,HOUSING NEEDS,D Singh Properties Ltd TA DS Properties,BED & BREAKFAST - PRIVATE CONTRACTORS PAYMENT,"1,200.00",Housing Management.Letting Agents.NA
13/10/2015,HOUSING NEEDS,Denhan International,BED & BREAKFAST - PRIVATE CONTRACTORS PAYMENT,"1,188.00",Housing Management.Letting Agents.NA
13/10/2015,HOUSING NEEDS,UK Room (London) Ltd,BED & BREAKFAST - PRIVATE CONTRACTORS PAYMENT,"1,188.00",Housing Management.Letting Agents.NA
13/10/2015,HOUSING MANAGEMENT SERVICES,Mears Ltd,RESPONSIVE REPAIRS - MECHANICAL AND ELECTRICAL,"1,187.50","Works - Construction, Repair & Maint.Buildings.Repair & Maintenance"
13/10/2015,HOUSING MANAGEMENT SERVICES,Mears Ltd,RESPONSIVE REPAIRS - MECHANICAL AND ELECTRICAL,"1,187.20","Works - Construction, Repair & Maint.Buildings.Repair & Maintenance"
13/10/2015,HOUSING MANAGEMENT SERVICES,Mears Ltd,RESPONSIVE REPAIRS - BUILDING,"1,187.12","Works - Construction, Repair & Maint.Buildings.Repair & Maintenance"
13/10/2015,HOUSING NEEDS,AA Care Homes Ltd,BED & BREAKFAST - PRIVATE CONTRACTORS PAYMENT,"1,170.00",Housing Management.Letting Agents.NA
